Organisation Code,Organisation Label,Effective Date,Organisational Unit,Service Division Label,Category Internal Name,Purpose,Detailed Expenditure Code,Payment Date,Transaction Number,Irrecoverable VAT Amount,Amount,Capital Or Revenue,Beneficiary Name,Procurement Card
Http://opendatacommunities.org/id/metropolitan-district-council/leeds,Leeds City Council,31/08/2021,City Development,Economic Development,Supplies and Services,Grant Related Expenditure,290,04/08/2021,2108-00001,0.00,2833.00,R,A  Khatib,No
Http://opendatacommunities.org/id/metropolitan-district-council/leeds,Leeds City Council,31/08/2021,Adults and Health,Services For Older People Under 65 P/Dis,Agency Payments,Sheltered Accommodation,569,18/08/2021,2108-00002,0.00,5400.00,R,A & V TRANSITIONAL HOMES,No
Http://opendatacommunities.org/id/metropolitan-district-council/leeds,Leeds City Council,31/08/2021,Resources and Housing,Leeds Building Services,Supplies and Services,Operational Materials,205,03/08/2021,2108-00003,0.00,24.05,R,A ANDREWS & SONS (MARBLES & TILES),No
Http://opendatacommunities.org/id/metropolitan-district-council/leeds,Leeds City Council,31/08/2021,Children and Families,Social Care,Agency Payments,Services Rendered By Other Organisations,511,06/08/2021,2108-00004,0.00,173.94,R,REDACTED PERSONAL DATA,No
Http://opendatacommunities.org/id/metropolitan-district-council/leeds,Leeds City Council,31/08/2021,City Development,Economic Development,Supplies and Services,Grant Related Expenditure,290,02/08/2021,2108-00005,0.00,8000.00,R,A C Entertainment Technologies Ltd,No
Http://opendatacommunities.org/id/metropolitan-district-council/leeds,Leeds City Council,31/08/2021,Children and Families,Social Care,Agency Payments,Services Rendered By Other Organisations,511,06/08/2021,2108-00006,0.00,695.76,R,REDACTED PERSONAL DATA,No
Http://opendatacommunities.org/id/metropolitan-district-council/leeds,Leeds City Council,31/08/2021,Resources and Housing,HRA Housing Leeds,Capital,CONSTRUCTION,3,05/08/2021,2108-00007,0.00,24853.47,C,A Connolly Limited,No
Http://opendatacommunities.org/id/metropolitan-district-council/leeds,Leeds City Council,31/08/2021,Resources and Housing,Leeds Building Services,Supplies and Services,Other Hired And Contracted Services,265,03/08/2021,2108-00008,0.00,3295.00,R,A Coole Electrical Ltd,No
Http://opendatacommunities.org/id/metropolitan-district-council/leeds,Leeds City Council,31/08/2021,Resources and Housing,Leeds Building Services,Supplies and Services,Other Hired And Contracted Services,265,03/08/2021,2108-00009,0.00,2853.00,R,A Coole Electrical Ltd,No
Http://opendatacommunities.org/id/metropolitan-district-council/leeds,Leeds City Council,31/08/2021,Resources and Housing,Leeds Building Services,Supplies and Services,Other Hired And Contracted Services,265,03/08/2021,2108-00010,0.00,1130.00,R,A Coole Electrical Ltd,No
Http://opendatacommunities.org/id/metropolitan-district-council/leeds,Leeds City Council,31/08/2021,Resources and Housing,Leeds Building Services,Supplies and Services,Other Hired And Contracted Services,265,06/08/2021,2108-00011,0.00,1755.00,R,A Coole Electrical Ltd,No
Http://opendatacommunities.org/id/metropolitan-district-council/leeds,Leeds City Council,31/08/2021,Resources and Housing,Leeds Building Services,Supplies and Services,Other Hired And Contracted Services,265,06/08/2021,2108-00012,0.00,3892.00,R,A Coole Electrical Ltd,No
Http://opendatacommunities.org/id/metropolitan-district-council/leeds,Leeds City Council,31/08/2021,Resources and Housing,Leeds Building Services,Supplies and Services,Other Hired And Contracted Services,265,06/08/2021,2108-00013,0.00,2791.00,R,A Coole Electrical Ltd,No
Http://opendatacommunities.org/id/metropolitan-district-council/leeds,Leeds City Council,31/08/2021,Resources and Housing,Leeds Building Services,Supplies and Services,Other Hired And Contracted Services,265,09/08/2021,2108-00014,0.00,2985.00,R,A Coole Electrical Ltd,No
Http://opendatacommunities.org/id/metropolitan-district-council/leeds,Leeds City Council,31/08/2021,Resources and Housing,Leeds Building Services,Supplies and Services,Other Hired And Contracted Services,265,09/08/2021,2108-00015,0.00,2505.00,R,A Coole Electrical Ltd,No
Http://opendatacommunities.org/id/metropolitan-district-council/leeds,Leeds City Council,31/08/2021,Resources and Housing,Leeds Building Services,Supplies and Services,Other Hired And Contracted Services,265,09/08/2021,2108-00016,0.00,2985.00,R,A Coole Electrical Ltd,No
Http://opendatacommunities.org/id/metropolitan-district-council/leeds,Leeds City Council,31/08/2021,Resources and Housing,Leeds Building Services,Supplies and Services,Other Hired And Contracted Services,265,09/08/2021,2108-00017,0.00,2491.00,R,A Coole Electrical Ltd,No
Http://opendatacommunities.org/id/metropolitan-district-council/leeds,Leeds City Council,31/08/2021,Resources and Housing,Leeds Building Services,Supplies and Services,Other Hired And Contracted Services,265,09/08/2021,2108-00018,0.00,2080.00,R,A Coole Electrical Ltd,No
Http://opendatacommunities.org/id/metropolitan-district-council/leeds,Leeds City Council,31/08/2021,Resources and Housing,Leeds Building Services,Supplies and Services,Other Hired And Contracted Services,265,09/08/2021,2108-00019,0.00,3130.00,R,A Coole Electrical Ltd,No
Http://opendatacommunities.org/id/metropolitan-district-council/leeds,Leeds City Council,31/08/2021,Resources and Housing,Leeds Building Services,Supplies and Services,Other Hired And Contracted Services,265,09/08/2021,2108-00020,0.00,3016.00,R,A Coole Electrical Ltd,No
Http://opendatacommunities.org/id/metropolitan-district-council/leeds,Leeds City Council,31/08/2021,Children and Families,Social Care,Agency Payments,Contact,548,23/08/2021,2108-00021,0.00,37.60,R,REDACTED PERSONAL DATA,No
Http://opendatacommunities.org/id/metropolitan-district-council/leeds,Leeds City Council,31/08/2021,Children and Families,Social Care,Agency Payments,Contact,548,27/08/2021,2108-00022,0.00,9.40,R,REDACTED PERSONAL DATA,No
Http://opendatacommunities.org/id/metropolitan-district-council/leeds,Leeds City Council,31/08/2021,Communities and Environment,Customer Access,Supplies and Services,Bought In Professional Services,277,26/08/2021,2108-00023,0.00,36.00,R,A D Dumitru,No
Http://opendatacommunities.org/id/metropolitan-district-council/leeds,Leeds City Council,31/08/2021,Communities and Environment,Customer Access,Supplies and Services,Bought In Professional Services,277,26/08/2021,2108-00024,0.00,9.00,R,A D Dumitru,No
Http://opendatacommunities.org/id/metropolitan-district-council/leeds,Leeds City Council,31/08/2021,Communities and Environment,Customer Access,Supplies and Services,Bought In Professional Services,277,26/08/2021,2108-00025,0.00,9.00,R,A D Dumitru,No
Http://opendatacommunities.org/id/metropolitan-district-council/leeds,Leeds City Council,31/08/2021,Communities and Environment,Communities,Supplies and Services,Other Hired And Contracted Services,265,27/08/2021,2108-00026,0.00,175.00,R,REDACTED PERSONAL DATA,No
Http://opendatacommunities.org/id/metropolitan-district-council/leeds,Leeds City Council,31/08/2021,Children and Families,Social Care,Agency Payments,Services Rendered By Voluntary Sector,505,04/08/2021,2108-00027,0.00,1149.72,R,REDACTED PERSONAL DATA,No
Http://opendatacommunities.org/id/metropolitan-district-council/leeds,Leeds City Council,31/08/2021,Children and Families,Social Care,Agency Payments,Services Rendered By Voluntary Sector,505,06/08/2021,2108-00028,0.00,6668.59,R,REDACTED PERSONAL DATA,No
Http://opendatacommunities.org/id/metropolitan-district-council/leeds,Leeds City Council,31/08/2021,Children and Families,Social Care,Agency Payments,Services Rendered By Voluntary Sector,505,06/08/2021,2108-00029,0.00,652.80,R,REDACTED PERSONAL DATA,No
Http://opendatacommunities.org/id/metropolitan-district-council/leeds,Leeds City Council,31/08/2021,Children and Families,Social Care,Agency Payments,Services Rendered By Voluntary Sector,505,06/08/2021,2108-00030,0.00,103.35,R,REDACTED PERSONAL DATA,No
Http://opendatacommunities.org/id/metropolitan-district-council/leeds,Leeds City Council,31/08/2021,Resources and Housing,HRA Housing Leeds,Capital,OTHER COSTS,7,31/08/2021,2108-00031,0.00,309.17,C,REDACTED PERSONAL DATA,No
Http://opendatacommunities.org/id/metropolitan-district-council/leeds,Leeds City Council,31/08/2021,Children and Families,Social Care,Agency Payments,Services Rendered By Other Organisations,511,04/08/2021,2108-00032,0.00,418.08,R,REDACTED PERSONAL DATA,No
Http://opendatacommunities.org/id/metropolitan-district-council/leeds,Leeds City Council,31/08/2021,Children and Families,Social Care,Agency Payments,Services Rendered By Other Organisations,511,06/08/2021,2108-00033,0.00,173.94,R,REDACTED PERSONAL DATA,No
Http://opendatacommunities.org/id/metropolitan-district-council/leeds,Leeds City Council,31/08/2021,City Development,Economic Development,Supplies and Services,Grant Related Expenditure,290,11/08/2021,2108-00034,0.00,250.00,R,A Haddish,No
Http://opendatacommunities.org/id/metropolitan-district-council/leeds,Leeds City Council,31/08/2021,Children and Families,Social Care,Agency Payments,Services Rendered By Other Organisations,511,06/08/2021,2108-00035,0.00,347.88,R,REDACTED PERSONAL DATA,No
Http://opendatacommunities.org/id/metropolitan-district-council/leeds,Leeds City Council,31/08/2021,Resources and Housing,HRA Housing Leeds,Capital,OTHER COSTS,7,13/08/2021,2108-00036,0.00,200.00,C,REDACTED PERSONAL DATA,No
Http://opendatacommunities.org/id/metropolitan-district-council/leeds,Leeds City Council,31/08/2021,Children and Families,Social Care,Agency Payments,Services Rendered By Other Organisations,511,06/08/2021,2108-00037,0.00,774.03,R,REDACTED PERSONAL DATA,No
Http://opendatacommunities.org/id/metropolitan-district-council/leeds,Leeds City Council,31/08/2021,Adults and Health,Other Generic Services,Agency Payments,Fees To Carers,563,16/08/2021,2108-00038,0.00,452.64,R,REDACTED PERSONAL DATA,No
Http://opendatacommunities.org/id/metropolitan-district-council/leeds,Leeds City Council,31/08/2021,Adults and Health,Other Generic Services,Agency Payments,Fees To Carers,563,16/08/2021,2108-00039,0.00,50.40,R,REDACTED PERSONAL DATA,No
Http://opendatacommunities.org/id/metropolitan-district-council/leeds,Leeds City Council,31/08/2021,Adults and Health,Other Generic Services,Agency Payments,Fees To Carers,563,20/08/2021,2108-00040,0.00,204.75,R,REDACTED PERSONAL DATA,No
Http://opendatacommunities.org/id/metropolitan-district-council/leeds,Leeds City Council,31/08/2021,Communities and Environment,Benefits Welfare and Poverty,Supplies and Services,Grant Related Expenditure,298,04/08/2021,2108-00041,0.00,500.00,R,REDACTED PERSONAL DATA,No
Http://opendatacommunities.org/id/metropolitan-district-council/leeds,Leeds City Council,31/08/2021,Resources and Housing,Leeds Building Services,Supplies and Services,Operational Materials,205,03/08/2021,2108-00042,0.00,48.83,R,A J H  Pump Supply & Repair Ltd,No
Http://opendatacommunities.org/id/metropolitan-district-council/leeds,Leeds City Council,31/08/2021,Resources and Housing,Leeds Building Services,Supplies and Services,Operational Materials,205,03/08/2021,2108-00043,0.00,161.40,R,A J H  Pump Supply & Repair Ltd,No
Http://opendatacommunities.org/id/metropolitan-district-council/leeds,Leeds City Council,31/08/2021,Resources and Housing,Leeds Building Services,Supplies and Services,Operational Materials,205,03/08/2021,2108-00044,0.00,795.00,R,A J H  Pump Supply & Repair Ltd,No
Http://opendatacommunities.org/id/metropolitan-district-council/leeds,Leeds City Council,31/08/2021,Resources and Housing,Leeds Building Services,Supplies and Services,Operational Materials,205,20/08/2021,2108-00045,0.00,55.85,R,A J H  Pump Supply & Repair Ltd,No
Http://opendatacommunities.org/id/metropolitan-district-council/leeds,Leeds City Council,31/08/2021,Resources and Housing,Leeds Building Services,Supplies and Services,Operational Materials,205,25/08/2021,2108-00046,0.00,157.00,R,A J H  Pump Supply & Repair Ltd,No
Http://opendatacommunities.org/id/metropolitan-district-council/leeds,Leeds City Council,31/08/2021,Strategic Landlord,Housing Management,Supplies and Services,Compensation Claims,200,17/08/2021,2108-00047,0.00,200.00,R,REDACTED PERSONAL DATA,No
Http://opendatacommunities.org/id/metropolitan-district-council/leeds,Leeds City Council,31/08/2021,City Development,Economic Development,Supplies and Services,Grant Related Expenditure,290,03/08/2021,2108-00048,0.00,1150.00,R,A J Yeadon,No
Http://opendatacommunities.org/id/metropolitan-district-council/leeds,Leeds City Council,31/08/2021,Children and Families,Social Care,Agency Payments,Services Rendered By Other Organisations,511,04/08/2021,2108-00049,0.00,209.04,R,REDACTED PERSONAL DATA,No
Http://opendatacommunities.org/id/metropolitan-district-council/leeds,Leeds City Council,31/08/2021,Children and Families,Social Care,Agency Payments,Services Rendered By Other Organisations,511,06/08/2021,2108-00050,0.00,1739.40,R,REDACTED PERSONAL DATA,No
Http://opendatacommunities.org/id/metropolitan-district-council/leeds,Leeds City Council,31/08/2021,Communities and Environment,Elections Licensing and Registration,External Income,Admissions Booking Fees & Ticket Sales,933,20/08/2021,2108-00051,0.00,100.00,R,REDACTED PERSONAL DATA,No
Http://opendatacommunities.org/id/metropolitan-district-council/leeds,Leeds City Council,31/08/2021,City Development,Economic Development,Supplies and Services,Grant Related Expenditure,290,03/08/2021,2108-00052,0.00,250.00,R,A Little Something Extra Ltd,No
Http://opendatacommunities.org/id/metropolitan-district-council/leeds,Leeds City Council,31/08/2021,Communities and Environment,Customer Access,Supplies and Services,Bought In Professional Services,277,04/08/2021,2108-00053,0.00,18.00,R,A MOHAMMED,No
Http://opendatacommunities.org/id/metropolitan-district-council/leeds,Leeds City Council,31/08/2021,Communities and Environment,Customer Access,Supplies and Services,Bought In Professional Services,277,04/08/2021,2108-00054,0.00,18.00,R,A MOHAMMED,No
Http://opendatacommunities.org/id/metropolitan-district-council/leeds,Leeds City Council,31/08/2021,Communities and Environment,Customer Access,Supplies and Services,Bought In Professional Services,277,04/08/2021,2108-00055,0.00,18.00,R,A MOHAMMED,No
Http://opendatacommunities.org/id/metropolitan-district-council/leeds,Leeds City Council,31/08/2021,Communities and Environment,Customer Access,Supplies and Services,Bought In Professional Services,277,04/08/2021,2108-00056,0.00,27.00,R,A MOHAMMED,No
Http://opendatacommunities.org/id/metropolitan-district-council/leeds,Leeds City Council,31/08/2021,Communities and Environment,Customer Access,Supplies and Services,Bought In Professional Services,277,04/08/2021,2108-00057,0.00,9.00,R,A MOHAMMED,No
Http://opendatacommunities.org/id/metropolitan-district-council/leeds,Leeds City Council,31/08/2021,Communities and Environment,Customer Access,Supplies and Services,Bought In Professional Services,277,04/08/2021,2108-00058,0.00,18.00,R,A MOHAMMED,No
Http://opendatacommunities.org/id/metropolitan-district-council/leeds,Leeds City Council,31/08/2021,Communities and Environment,Customer Access,Supplies and Services,Bought In Professional Services,277,04/08/2021,2108-00059,0.00,18.00,R,A MOHAMMED,No
Http://opendatacommunities.org/id/metropolitan-district-council/leeds,Leeds City Council,31/08/2021,Communities and Environment,Customer Access,Supplies and Services,Bought In Professional Services,277,04/08/2021,2108-00060,0.00,18.00,R,A MOHAMMED,No
Http://opendatacommunities.org/id/metropolitan-district-council/leeds,Leeds City Council,31/08/2021,Communities and Environment,Customer Access,Supplies and Services,Bought In Professional Services,277,04/08/2021,2108-00061,0.00,22.50,R,A MOHAMMED,No
Http://opendatacommunities.org/id/metropolitan-district-council/leeds,Leeds City Council,31/08/2021,Communities and Environment,Customer Access,Supplies and Services,Bought In Professional Services,277,04/08/2021,2108-00062,0.00,18.00,R,A MOHAMMED,No
Http://opendatacommunities.org/id/metropolitan-district-council/leeds,Leeds City Council,31/08/2021,Communities and Environment,Customer Access,Supplies and Services,Bought In Professional Services,277,11/08/2021,2108-00063,0.00,18.00,R,A MOHAMMED,No
Http://opendatacommunities.org/id/metropolitan-district-council/leeds,Leeds City Council,31/08/2021,Communities and Environment,Customer Access,Supplies and Services,Bought In Professional Services,277,11/08/2021,2108-00064,0.00,18.00,R,A MOHAMMED,No
Http://opendatacommunities.org/id/metropolitan-district-council/leeds,Leeds City Council,31/08/2021,Communities and Environment,Customer Access,Supplies and Services,Bought In Professional Services,277,11/08/2021,2108-00065,0.00,18.00,R,A MOHAMMED,No
Http://opendatacommunities.org/id/metropolitan-district-council/leeds,Leeds City Council,31/08/2021,Communities and Environment,Customer Access,Supplies and Services,Bought In Professional Services,277,11/08/2021,2108-00066,0.00,18.00,R,A MOHAMMED,No
Http://opendatacommunities.org/id/metropolitan-district-council/leeds,Leeds City Council,31/08/2021,Communities and Environment,Customer Access,Supplies and Services,Bought In Professional Services,277,11/08/2021,2108-00067,0.00,18.00,R,A MOHAMMED,No
Http://opendatacommunities.org/id/metropolitan-district-council/leeds,Leeds City Council,31/08/2021,Communities and Environment,Customer Access,Supplies and Services,Bought In Professional Services,277,11/08/2021,2108-00068,0.00,18.00,R,A MOHAMMED,No
Http://opendatacommunities.org/id/metropolitan-district-council/leeds,Leeds City Council,31/08/2021,Communities and Environment,Customer Access,Supplies and Services,Bought In Professional Services,277,11/08/2021,2108-00069,0.00,9.00,R,A MOHAMMED,No
Http://opendatacommunities.org/id/metropolitan-district-council/leeds,Leeds City Council,31/08/2021,Communities and Environment,Customer Access,Supplies and Services,Bought In Professional Services,277,11/08/2021,2108-00070,0.00,18.00,R,A MOHAMMED,No
Http://opendatacommunities.org/id/metropolitan-district-council/leeds,Leeds City Council,31/08/2021,Communities and Environment,Customer Access,Supplies and Services,Bought In Professional Services,277,11/08/2021,2108-00071,0.00,18.00,R,A MOHAMMED,No
Http://opendatacommunities.org/id/metropolitan-district-council/leeds,Leeds City Council,31/08/2021,Communities and Environment,Customer Access,Supplies and Services,Bought In Professional Services,277,11/08/2021,2108-00072,0.00,18.00,R,A MOHAMMED,No
Http://opendatacommunities.org/id/metropolitan-district-council/leeds,Leeds City Council,31/08/2021,Communities and Environment,Customer Access,Supplies and Services,Bought In Professional Services,277,11/08/2021,2108-00073,0.00,18.00,R,A MOHAMMED,No
Http://opendatacommunities.org/id/metropolitan-district-council/leeds,Leeds City Council,31/08/2021,Communities and Environment,Customer Access,Supplies and Services,Bought In Professional Services,277,18/08/2021,2108-00074,0.00,27.00,R,A MOHAMMED,No
Http://opendatacommunities.org/id/metropolitan-district-council/leeds,Leeds City Council,31/08/2021,Communities and Environment,Customer Access,Supplies and Services,Bought In Professional Services,277,18/08/2021,2108-00075,0.00,18.00,R,A MOHAMMED,No
Http://opendatacommunities.org/id/metropolitan-district-council/leeds,Leeds City Council,31/08/2021,Communities and Environment,Customer Access,Supplies and Services,Bought In Professional Services,277,18/08/2021,2108-00076,0.00,18.00,R,A MOHAMMED,No
Http://opendatacommunities.org/id/metropolitan-district-council/leeds,Leeds City Council,31/08/2021,Communities and Environment,Customer Access,Supplies and Services,Bought In Professional Services,277,18/08/2021,2108-00077,0.00,18.00,R,A MOHAMMED,No
Http://opendatacommunities.org/id/metropolitan-district-council/leeds,Leeds City Council,31/08/2021,Communities and Environment,Customer Access,Supplies and Services,Bought In Professional Services,277,18/08/2021,2108-00078,0.00,18.00,R,A MOHAMMED,No
Http://opendatacommunities.org/id/metropolitan-district-council/leeds,Leeds City Council,31/08/2021,Communities and Environment,Customer Access,Supplies and Services,Bought In Professional Services,277,18/08/2021,2108-00079,0.00,18.00,R,A MOHAMMED,No
Http://opendatacommunities.org/id/metropolitan-district-council/leeds,Leeds City Council,31/08/2021,Communities and Environment,Customer Access,Supplies and Services,Bought In Professional Services,277,18/08/2021,2108-00080,0.00,22.50,R,A MOHAMMED,No
Http://opendatacommunities.org/id/metropolitan-district-council/leeds,Leeds City Council,31/08/2021,Communities and Environment,Customer Access,Supplies and Services,Bought In Professional Services,277,18/08/2021,2108-00081,0.00,18.00,R,A MOHAMMED,No
Http://opendatacommunities.org/id/metropolitan-district-council/leeds,Leeds City Council,31/08/2021,Communities and Environment,Customer Access,Supplies and Services,Bought In Professional Services,277,18/08/2021,2108-00082,0.00,9.00,R,A MOHAMMED,No
Http://opendatacommunities.org/id/metropolitan-district-council/leeds,Leeds City Council,31/08/2021,Communities and Environment,Customer Access,Supplies and Services,Bought In Professional Services,277,18/08/2021,2108-00083,0.00,18.00,R,A MOHAMMED,No
Http://opendatacommunities.org/id/metropolitan-district-council/leeds,Leeds City Council,31/08/2021,Communities and Environment,Customer Access,Supplies and Services,Bought In Professional Services,277,18/08/2021,2108-00084,0.00,9.00,R,A MOHAMMED,No
Http://opendatacommunities.org/id/metropolitan-district-council/leeds,Leeds City Council,31/08/2021,Communities and Environment,Customer Access,Supplies and Services,Bought In Professional Services,277,26/08/2021,2108-00085,0.00,18.00,R,A MOHAMMED,No
Http://opendatacommunities.org/id/metropolitan-district-council/leeds,Leeds City Council,31/08/2021,Communities and Environment,Customer Access,Supplies and Services,Bought In Professional Services,277,26/08/2021,2108-00086,0.00,18.00,R,A MOHAMMED,No
Http://opendatacommunities.org/id/metropolitan-district-council/leeds,Leeds City Council,31/08/2021,Communities and Environment,Customer Access,Supplies and Services,Bought In Professional Services,277,26/08/2021,2108-00087,0.00,18.00,R,A MOHAMMED,No
Http://opendatacommunities.org/id/metropolitan-district-council/leeds,Leeds City Council,31/08/2021,Communities and Environment,Customer Access,Supplies and Services,Bought In Professional Services,277,26/08/2021,2108-00088,0.00,13.50,R,A MOHAMMED,No
Http://opendatacommunities.org/id/metropolitan-district-council/leeds,Leeds City Council,31/08/2021,Communities and Environment,Customer Access,Supplies and Services,Bought In Professional Services,277,26/08/2021,2108-00089,0.00,18.00,R,A MOHAMMED,No
Http://opendatacommunities.org/id/metropolitan-district-council/leeds,Leeds City Council,31/08/2021,Communities and Environment,Customer Access,Supplies and Services,Bought In Professional Services,277,26/08/2021,2108-00090,0.00,18.00,R,A MOHAMMED,No
Http://opendatacommunities.org/id/metropolitan-district-council/leeds,Leeds City Council,31/08/2021,Communities and Environment,Customer Access,Supplies and Services,Bought In Professional Services,277,26/08/2021,2108-00091,0.00,18.00,R,A MOHAMMED,No
Http://opendatacommunities.org/id/metropolitan-district-council/leeds,Leeds City Council,31/08/2021,Communities and Environment,Customer Access,Supplies and Services,Bought In Professional Services,277,26/08/2021,2108-00092,0.00,18.00,R,A MOHAMMED,No
Http://opendatacommunities.org/id/metropolitan-district-council/leeds,Leeds City Council,31/08/2021,Communities and Environment,Customer Access,Supplies and Services,Bought In Professional Services,277,26/08/2021,2108-00093,0.00,18.00,R,A MOHAMMED,No
Http://opendatacommunities.org/id/metropolitan-district-council/leeds,Leeds City Council,31/08/2021,Communities and Environment,Customer Access,Supplies and Services,Bought In Professional Services,277,26/08/2021,2108-00094,0.00,22.50,R,A MOHAMMED,No
Http://opendatacommunities.org/id/metropolitan-district-council/leeds,Leeds City Council,31/08/2021,Children and Families,Social Care,Agency Payments,Services Rendered By Other Organisations,511,04/08/2021,2108-00095,0.00,1254.24,R,REDACTED PERSONAL DATA,No
Http://opendatacommunities.org/id/metropolitan-district-council/leeds,Leeds City Council,31/08/2021,Children and Families,Social Care,Agency Payments,Services Rendered By Other Organisations,511,06/08/2021,2108-00096,0.00,1043.64,R,REDACTED PERSONAL DATA,No
Http://opendatacommunities.org/id/metropolitan-district-council/leeds,Leeds City Council,31/08/2021,Children and Families,Social Care,Agency Payments,Services Rendered By Other Organisations,511,06/08/2021,2108-00097,0.00,663.00,R,REDACTED PERSONAL DATA,No
Http://opendatacommunities.org/id/metropolitan-district-council/leeds,Leeds City Council,31/08/2021,Children and Families,Social Care,Agency Payments,Services Rendered By Other Organisations,511,06/08/2021,2108-00098,0.00,516.75,R,REDACTED PERSONAL DATA,No
Http://opendatacommunities.org/id/metropolitan-district-council/leeds,Leeds City Council,31/08/2021,Communities and Environment,Customer Access,Supplies and Services,Bought In Professional Services,277,04/08/2021,2108-00099,0.00,27.00,R,A NAMAKI,No
Http://opendatacommunities.org/id/metropolitan-district-council/leeds,Leeds City Council,31/08/2021,Communities and Environment,Customer Access,Supplies and Services,Bought In Professional Services,277,11/08/2021,2108-00100,0.00,18.00,R,A NAMAKI,No
Http://opendatacommunities.org/id/metropolitan-district-council/leeds,Leeds City Council,31/08/2021,Communities and Environment,Customer Access,Supplies and Services,Bought In Professional Services,277,11/08/2021,2108-00101,0.00,18.00,R,A NAMAKI,No
Http://opendatacommunities.org/id/metropolitan-district-council/leeds,Leeds City Council,31/08/2021,Communities and Environment,Customer Access,Supplies and Services,Bought In Professional Services,277,11/08/2021,2108-00102,0.00,9.00,R,A NAMAKI,No
Http://opendatacommunities.org/id/metropolitan-district-council/leeds,Leeds City Council,31/08/2021,Communities and Environment,Customer Access,Supplies and Services,Bought In Professional Services,277,11/08/2021,2108-00103,0.00,27.00,R,A NAMAKI,No
Http://opendatacommunities.org/id/metropolitan-district-council/leeds,Leeds City Council,31/08/2021,Communities and Environment,Customer Access,Supplies and Services,Bought In Professional Services,277,11/08/2021,2108-00104,0.00,18.00,R,A NAMAKI,No
Http://opendatacommunities.org/id/metropolitan-district-council/leeds,Leeds City Council,31/08/2021,Communities and Environment,Customer Access,Supplies and Services,Bought In Professional Services,277,18/08/2021,2108-00105,0.00,18.00,R,A NAMAKI,No
Http://opendatacommunities.org/id/metropolitan-district-council/leeds,Leeds City Council,31/08/2021,Communities and Environment,Customer Access,Supplies and Services,Bought In Professional Services,277,18/08/2021,2108-00106,0.00,18.00,R,A NAMAKI,No
Http://opendatacommunities.org/id/metropolitan-district-council/leeds,Leeds City Council,31/08/2021,Communities and Environment,Customer Access,Supplies and Services,Bought In Professional Services,277,26/08/2021,2108-00107,0.00,13.50,R,A NAMAKI,No
Http://opendatacommunities.org/id/metropolitan-district-council/leeds,Leeds City Council,31/08/2021,Communities and Environment,Customer Access,Supplies and Services,Bought In Professional Services,277,26/08/2021,2108-00108,0.00,9.00,R,A NAMAKI,No
Http://opendatacommunities.org/id/metropolitan-district-council/leeds,Leeds City Council,31/08/2021,Communities and Environment,Customer Access,Supplies and Services,Bought In Professional Services,277,26/08/2021,2108-00109,0.00,18.00,R,A NAMAKI,No
Http://opendatacommunities.org/id/metropolitan-district-council/leeds,Leeds City Council,31/08/2021,Children and Families,Social Care,Agency Payments,Services Rendered By Other Organisations,511,06/08/2021,2108-00110,0.00,173.94,R,REDACTED PERSONAL DATA,No
Http://opendatacommunities.org/id/metropolitan-district-council/leeds,Leeds City Council,31/08/2021,City Development,Libraries Arts & Heritage,Supplies and Services,Non-Recurring Grants,227,11/08/2021,2108-00111,0.00,1000.00,R,A Quiet Word Ltd,No
Http://opendatacommunities.org/id/metropolitan-district-council/leeds,Leeds City Council,31/08/2021,Children and Families,Social Care,Agency Payments,Services Rendered By Other Organisations,511,06/08/2021,2108-00112,0.00,521.82,R,REDACTED PERSONAL DATA,No
Http://opendatacommunities.org/id/metropolitan-district-council/leeds,Leeds City Council,31/08/2021,Children and Families,Social Care,Agency Payments,Independent Fostering Agencies,509,06/08/2021,2108-00113,0.00,1296.00,R,A Taxis,No
Http://opendatacommunities.org/id/metropolitan-district-council/leeds,Leeds City Council,31/08/2021,Children and Families,Social Care,Agency Payments,Independent Fostering Agencies,509,27/08/2021,2108-00114,0.00,1080.00,R,A Taxis,No
Http://opendatacommunities.org/id/metropolitan-district-council/leeds,Leeds City Council,31/08/2021,Children and Families,Social Care,Agency Payments,Services Rendered By Other Organisations,511,04/08/2021,2108-00115,0.00,209.04,R,REDACTED PERSONAL DATA,No
Http://opendatacommunities.org/id/metropolitan-district-council/leeds,Leeds City Council,31/08/2021,Children and Families,Social Care,Agency Payments,Services Rendered By Other Organisations,511,06/08/2021,2108-00116,0.00,347.88,R,REDACTED PERSONAL DATA,No
Http://opendatacommunities.org/id/metropolitan-district-council/leeds,Leeds City Council,31/08/2021,Children and Families,Social Care,Agency Payments,Services Rendered By Other Organisations,511,06/08/2021,2108-00117,0.00,175.50,R,REDACTED PERSONAL DATA,No
Http://opendatacommunities.org/id/metropolitan-district-council/leeds,Leeds City Council,31/08/2021,Children and Families,Social Care,Agency Payments,General External Residential Placements,507,17/08/2021,2108-00118,0.00,3080.00,R,A Wilderness Way Ltd,No
Http://opendatacommunities.org/id/metropolitan-district-council/leeds,Leeds City Council,31/08/2021,City Development,Economic Development,Supplies and Services,Grant Related Expenditure,290,05/08/2021,2108-00119,0.00,2000.00,R,A&C Design Shop Fitting And Maintenance,No
Http://opendatacommunities.org/id/metropolitan-district-council/leeds,Leeds City Council,31/08/2021,Communities and Environment,Waste Management,Capital,FURNITURE AND EQUIPMENT,5,05/08/2021,2108-00120,0.00,11488.00,C,A&C Weber Uk Ltd,No
Http://opendatacommunities.org/id/metropolitan-district-council/leeds,Leeds City Council,31/08/2021,Communities and Environment,Waste Management,Supplies and Services,Office Consumables,210,19/08/2021,2108-00121,0.00,330.00,R,A&C Weber Uk Ltd,No
Http://opendatacommunities.org/id/metropolitan-district-council/leeds,Leeds City Council,31/08/2021,Children and Families,Social Care,Supplies and Services,General Amenity For Clients/Residents,285,26/07/2021,2108-00122,0.00,74.98,R,A1 Trophy Company,Yes
Http://opendatacommunities.org/id/metropolitan-district-council/leeds,Leeds City Council,31/08/2021,City Development,Economic Development,Supplies and Services,Grant Related Expenditure,290,04/08/2021,2108-00123,0.00,1533.00,R,A2Z Bargins2020 Limited,No
Http://opendatacommunities.org/id/metropolitan-district-council/leeds,Leeds City Council,31/08/2021,Resources,Leeds Building Services,Employees,Training & Development,70,05/07/2021,2108-00124,0.00,579.17,R,Aaa Training Co Lt,Yes
Http://opendatacommunities.org/id/metropolitan-district-council/leeds,Leeds City Council,31/08/2021,Communities Housing and Environment,Parks And Countryside,Supplies and Services,Resaleable Materials,204,20/07/2021,2108-00125,0.00,265.20,R,Aagrah Foods,Yes
Http://opendatacommunities.org/id/metropolitan-district-council/leeds,Leeds City Council,31/08/2021,Children and Families,Social Care,Supplies and Services,Operational Materials,205,20/07/2021,2108-00126,0.00,91.56,R,Aardvark Archery,Yes
Http://opendatacommunities.org/id/metropolitan-district-council/leeds,Leeds City Council,31/08/2021,Adults and Health,Services For Older People - 65 And Over,Agency Payments,Residential Care Dementia,571,18/08/2021,2108-00127,0.00,1245.20,R,Aaron Court Care Home,No
Http://opendatacommunities.org/id/metropolitan-district-council/leeds,Leeds City Council,31/08/2021,Communities and Environment,Benefits Welfare and Poverty,Supplies and Services,Grant Related Expenditure,298,11/08/2021,2108-00128,0.00,500.00,R,REDACTED PERSONAL DATA,No
Http://opendatacommunities.org/id/metropolitan-district-council/leeds,Leeds City Council,31/08/2021,City Development,Libraries Arts & Heritage,Supplies and Services,Other Hired And Contracted Services,265,17/08/2021,2108-00129,0.00,279.00,R,AAT (GB) LTD,No
Http://opendatacommunities.org/id/metropolitan-district-council/leeds,Leeds City Council as Accountable Body,31/08/2021,Social Services Pooled Budgets,Leeds Community Equip Store Pooled Budgt,Supplies and Services,Other Equipment,203,20/08/2021,2108-00130,0.00,464.00,R,AAT (GB) LTD,No
Http://opendatacommunities.org/id/metropolitan-district-council/leeds,Leeds City Council as Accountable Body,31/08/2021,Social Services Pooled Budgets,Leeds Community Equip Store Pooled Budgt,Supplies and Services,Other Equipment,203,31/08/2021,2108-00131,0.00,495.00,R,AAT (GB) LTD,No
Http://opendatacommunities.org/id/metropolitan-district-council/leeds,Leeds City Council,31/08/2021,Communities and Environment,Customer Access,Supplies and Services,Bought In Professional Services,277,04/08/2021,2108-00132,0.00,13.50,R,Abadit Kiros,No
Http://opendatacommunities.org/id/metropolitan-district-council/leeds,Leeds City Council,31/08/2021,Communities and Environment,Customer Access,Supplies and Services,Bought In Professional Services,277,11/08/2021,2108-00133,0.00,18.00,R,Abadit Kiros,No
Http://opendatacommunities.org/id/metropolitan-district-council/leeds,Leeds City Council,31/08/2021,Communities and Environment,Customer Access,Supplies and Services,Bought In Professional Services,277,18/08/2021,2108-00134,0.00,18.00,R,Abadit Kiros,No
Http://opendatacommunities.org/id/metropolitan-district-council/leeds,Leeds City Council,31/08/2021,Adults and Health,Public Health,Agency Payments,Public Health Commissioned Services,526,06/08/2021,2108-00135,0.00,2464.68,R,Abbey Grange Medical Practice,No
Http://opendatacommunities.org/id/metropolitan-district-council/leeds,Leeds City Council,31/08/2021,Children and Families,Social Care,Agency Payments,Contact,548,28/07/2021,2108-00136,0.00,11.50,R,Abbey House Museum,Yes
Http://opendatacommunities.org/id/metropolitan-district-council/leeds,Leeds City Council,31/08/2021,Children and Families,Learning,Supplies and Services,Other Hired And Contracted Services,265,02/08/2021,2108-00137,0.00,375.00,R,Abbey Multi Academy Trust,No
Http://opendatacommunities.org/id/metropolitan-district-council/leeds,Leeds City Council,31/08/2021,Children and Families,Learning,Supplies and Services,Other Hired And Contracted Services,265,02/08/2021,2108-00138,0.00,375.00,R,Abbey Multi Academy Trust,No
Http://opendatacommunities.org/id/metropolitan-district-council/leeds,Leeds City Council,31/08/2021,Communities and Environment,Benefits Welfare and Poverty,Supplies and Services,Schools related grant expenditure,299,04/08/2021,2108-00139,0.00,30150.00,R,Abbey Multi Academy Trust,No
Http://opendatacommunities.org/id/metropolitan-district-council/leeds,Leeds City Council,31/08/2021,Communities and Environment,Benefits Welfare and Poverty,Supplies and Services,Schools related grant expenditure,299,04/08/2021,2108-00140,0.00,8100.00,R,Abbey Multi Academy Trust,No
Http://opendatacommunities.org/id/metropolitan-district-council/leeds,Leeds City Council,31/08/2021,Communities and Environment,Benefits Welfare and Poverty,Supplies and Services,Schools related grant expenditure,299,04/08/2021,2108-00141,0.00,4680.00,R,Abbey Multi Academy Trust,No
Http://opendatacommunities.org/id/metropolitan-district-council/leeds,Leeds City Council,31/08/2021,Communities and Environment,Benefits Welfare and Poverty,Supplies and Services,Schools related grant expenditure,299,04/08/2021,2108-00142,0.00,22140.00,R,Abbey Multi Academy Trust,No
Http://opendatacommunities.org/id/metropolitan-district-council/leeds,Leeds City Council,31/08/2021,Communities and Environment,Benefits Welfare and Poverty,Supplies and Services,Schools related grant expenditure,299,04/08/2021,2108-00143,0.00,1530.00,R,Abbey Multi Academy Trust,No
Http://opendatacommunities.org/id/metropolitan-district-council/leeds,Leeds City Council,31/08/2021,Children and Families,Social Care,Agency Payments,Services Rendered By Other Organisations,511,06/08/2021,2108-00144,0.00,40296.10,R,Abbey Multi Academy Trust,No
Http://opendatacommunities.org/id/metropolitan-district-council/leeds,Leeds City Council,31/08/2021,Children and Families,Social Care,Agency Payments,Services Rendered By Other Organisations,511,06/08/2021,2108-00145,0.00,1456.00,R,Abbey Multi Academy Trust,No
Http://opendatacommunities.org/id/metropolitan-district-council/leeds,Leeds City Council,31/08/2021,Children and Families,Social Care,Agency Payments,Services Rendered By Other Organisations,511,06/08/2021,2108-00146,0.00,516.75,R,Abbey Multi Academy Trust,No
Http://opendatacommunities.org/id/metropolitan-district-council/leeds,Leeds City Council,31/08/2021,Children and Families,Social Care,Agency Payments,Services Rendered By Other Organisations,511,04/08/2021,2108-00147,0.00,90.58,R,REDACTED PERSONAL DATA,No
Http://opendatacommunities.org/id/metropolitan-district-council/leeds,Leeds City Council,31/08/2021,Children and Families,Social Care,Agency Payments,Services Rendered By Other Organisations,511,06/08/2021,2108-00148,0.00,217.42,R,REDACTED PERSONAL DATA,No
Http://opendatacommunities.org/id/metropolitan-district-council/leeds,Leeds City Council,31/08/2021,Children and Families,Social Care,Agency Payments,Services Rendered By Other Organisations,511,06/08/2021,2108-00149,0.00,107.25,R,REDACTED PERSONAL DATA,No
Http://opendatacommunities.org/id/metropolitan-district-council/leeds,Leeds City Council,31/08/2021,Communities and Environment,Benefits Welfare and Poverty,Supplies and Services,Grant Related Expenditure,298,12/08/2021,2108-00150,0.00,500.00,R,REDACTED PERSONAL DATA,No
Http://opendatacommunities.org/id/metropolitan-district-council/leeds,Leeds City Council,31/08/2021,Children and Families,Social Care,Internal Recharges,Legal Disbursements,411,23/08/2021,2108-00151,0.00,77.75,R,Abbott Toxicology Ltd.,No
Http://opendatacommunities.org/id/metropolitan-district-council/leeds,Leeds City Council,31/08/2021,Children and Families,Social Care,Internal Recharges,Legal Disbursements,411,23/08/2021,2108-00152,0.00,33.00,R,Abbott Toxicology Ltd.,No
Http://opendatacommunities.org/id/metropolitan-district-council/leeds,Leeds City Council,31/08/2021,Children and Families,Social Care,Agency Payments,Services Rendered By Other Organisations,511,04/08/2021,2108-00153,0.00,3312.48,R,Abc Daycare And Ozone Out Of School,No
Http://opendatacommunities.org/id/metropolitan-district-council/leeds,Leeds City Council,31/08/2021,Children and Families,Social Care,Agency Payments,Services Rendered By Other Organisations,511,06/08/2021,2108-00154,0.00,3362.84,R,Abc Daycare And Ozone Out Of School,No
Http://opendatacommunities.org/id/metropolitan-district-council/leeds,Leeds City Council,31/08/2021,Children and Families,Social Care,Agency Payments,Services Rendered By Other Organisations,511,06/08/2021,2108-00155,0.00,397.50,R,Abc Daycare And Ozone Out Of School,No
Http://opendatacommunities.org/id/metropolitan-district-council/leeds,Leeds City Council,31/08/2021,Children and Families,Social Care,Agency Payments,Services Rendered By Other Organisations,511,06/08/2021,2108-00156,0.00,318.00,R,Abc Daycare And Ozone Out Of School,No
Http://opendatacommunities.org/id/metropolitan-district-council/leeds,Leeds City Council,31/08/2021,Children and Families,Social Care,Agency Payments,Services Rendered By Other Organisations,511,04/08/2021,2108-00157,0.00,10870.08,R,ABC NURSERY AT LUFC,No
Http://opendatacommunities.org/id/metropolitan-district-council/leeds,Leeds City Council,31/08/2021,Children and Families,Social Care,Agency Payments,Services Rendered By Other Organisations,511,06/08/2021,2108-00158,0.00,6623.10,R,ABC NURSERY AT LUFC,No
Http://opendatacommunities.org/id/metropolitan-district-council/leeds,Leeds City Council,31/08/2021,Children and Families,Social Care,Agency Payments,Services Rendered By Other Organisations,511,06/08/2021,2108-00159,0.00,2083.50,R,ABC NURSERY AT LUFC,No
Http://opendatacommunities.org/id/metropolitan-district-council/leeds,Leeds City Council,31/08/2021,Children and Families,Social Care,Agency Payments,Services Rendered By Other Organisations,511,06/08/2021,2108-00160,0.00,516.75,R,ABC NURSERY AT LUFC,No
Http://opendatacommunities.org/id/metropolitan-district-council/leeds,Leeds City Council,31/08/2021,Children and Families,Social Care,Agency Payments,Services Rendered By Other Organisations,511,04/08/2021,2108-00161,0.00,1672.32,R,Abc@D'S Childcare,No
Http://opendatacommunities.org/id/metropolitan-district-council/leeds,Leeds City Council,31/08/2021,Children and Families,Social Care,Agency Payments,Services Rendered By Other Organisations,511,06/08/2021,2108-00162,0.00,4522.44,R,Abc@D'S Childcare,No
Http://opendatacommunities.org/id/metropolitan-district-council/leeds,Leeds City Council,31/08/2021,Children and Families,Social Care,Agency Payments,Services Rendered By Other Organisations,511,06/08/2021,2108-00163,0.00,1706.25,R,Abc@D'S Childcare,No
Http://opendatacommunities.org/id/metropolitan-district-council/leeds,Leeds City Council,31/08/2021,City Development,Economic Development,Supplies and Services,Grant Related Expenditure,290,11/08/2021,2108-00164,0.00,250.00,R,Abdul Jabbar,No
Http://opendatacommunities.org/id/metropolitan-district-council/leeds,Leeds City Council,31/08/2021,Communities and Environment,Customer Access,Supplies and Services,Bought In Professional Services,277,04/08/2021,2108-00165,0.00,18.00,R,Abdul Kalam,No
Http://opendatacommunities.org/id/metropolitan-district-council/leeds,Leeds City Council,31/08/2021,Communities and Environment,Customer Access,Supplies and Services,Bought In Professional Services,277,04/08/2021,2108-00166,0.00,27.00,R,Abdul Kalam,No
Http://opendatacommunities.org/id/metropolitan-district-council/leeds,Leeds City Council,31/08/2021,City Development,Economic Development,Supplies and Services,Grant Related Expenditure,290,10/08/2021,2108-00167,0.00,250.00,R,Abdul Malik,No
Http://opendatacommunities.org/id/metropolitan-district-council/leeds,Leeds City Council,31/08/2021,Communities and Environment,Customer Access,Supplies and Services,Bought In Professional Services,277,11/08/2021,2108-00168,0.00,9.00,R,Abdulahad Denha,No
Http://opendatacommunities.org/id/metropolitan-district-council/leeds,Leeds City Council,31/08/2021,Communities and Environment,Customer Access,Supplies and Services,Bought In Professional Services,277,11/08/2021,2108-00169,0.00,18.00,R,Abdulahad Denha,No
Http://opendatacommunities.org/id/metropolitan-district-council/leeds,Leeds City Council,31/08/2021,Communities and Environment,Customer Access,Supplies and Services,Bought In Professional Services,277,04/08/2021,2108-00170,0.00,21.60,R,Abdulrahim Dastyar,No
Http://opendatacommunities.org/id/metropolitan-district-council/leeds,Leeds City Council,31/08/2021,Communities and Environment,Customer Access,Supplies and Services,Bought In Professional Services,277,18/08/2021,2108-00171,0.00,18.00,R,Abdulrahim Dastyar,No
Http://opendatacommunities.org/id/metropolitan-district-council/leeds,Leeds City Council,31/08/2021,Communities and Environment,Customer Access,Supplies and Services,Bought In Professional Services,277,18/08/2021,2108-00172,0.00,9.00,R,Abdulrahim Dastyar,No
Http://opendatacommunities.org/id/metropolitan-district-council/leeds,Leeds City Council,31/08/2021,Adults and Health,Services For Older People - 65 And Over,Agency Payments,Nursing Home,570,18/08/2021,2108-00173,0.00,26729.94,R,Aberford Hall,No
Http://opendatacommunities.org/id/metropolitan-district-council/leeds,Leeds City Council,31/08/2021,Resources and Housing,Leeds Building Services,Supplies and Services,Operational Materials,205,06/08/2021,2108-00174,0.00,1405.21,R,ABI GARAGE DOORS LTD,No
Http://opendatacommunities.org/id/metropolitan-district-council/leeds,Leeds City Council,31/08/2021,Resources and Housing,Leeds Building Services,Supplies and Services,Operational Materials,205,27/08/2021,2108-00175,0.00,300.00,R,ABI GARAGE DOORS LTD,No
Http://opendatacommunities.org/id/metropolitan-district-council/leeds,Leeds City Council,31/08/2021,City Development,Economic Development,Supplies and Services,Grant Related Expenditure,290,02/08/2021,2108-00176,0.00,500.00,R,Abid Hussain,No
Http://opendatacommunities.org/id/metropolitan-district-council/leeds,Leeds City Council,31/08/2021,City Development,Economic Development,Supplies and Services,Grant Related Expenditure,290,10/08/2021,2108-00177,0.00,250.00,R,Abid Hussain,No
Http://opendatacommunities.org/id/metropolitan-district-council/leeds,Leeds City Council,31/08/2021,City Development,Economic Development,Supplies and Services,Grant Related Expenditure,290,17/08/2021,2108-00178,0.00,500.00,R,Abid Hussain,No
Http://opendatacommunities.org/id/metropolitan-district-council/leeds,Leeds City Council,31/08/2021,City Development,Economic Development,Supplies and Services,Grant Related Expenditure,290,17/08/2021,2108-00179,0.00,250.00,R,Abid Hussain,No
Http://opendatacommunities.org/id/metropolitan-district-council/leeds,Leeds City Council,31/08/2021,Communities and Environment,Customer Access,Supplies and Services,Bought In Professional Services,277,04/08/2021,2108-00180,0.00,18.00,R,Abida Begum,No
Http://opendatacommunities.org/id/metropolitan-district-council/leeds,Leeds City Council,31/08/2021,Communities and Environment,Customer Access,Supplies and Services,Bought In Professional Services,277,04/08/2021,2108-00181,0.00,9.90,R,Abida Begum,No
Http://opendatacommunities.org/id/metropolitan-district-council/leeds,Leeds City Council,31/08/2021,Communities and Environment,Benefits Welfare and Poverty,Supplies and Services,Grant Related Expenditure,298,25/08/2021,2108-00182,0.00,500.00,R,REDACTED PERSONAL DATA,No
Http://opendatacommunities.org/id/metropolitan-district-council/leeds,Leeds City Council,31/08/2021,Children and Families,Social Care,Agency Payments,Contact,548,10/08/2021,2108-00183,0.00,35.00,R,REDACTED PERSONAL DATA,No
Http://opendatacommunities.org/id/metropolitan-district-council/leeds,Leeds City Council,31/08/2021,Communities and Environment,Benefits Welfare and Poverty,Supplies and Services,Grant Related Expenditure,290,09/08/2021,2108-00184,0.00,500.00,R,REDACTED PERSONAL DATA,No
Http://opendatacommunities.org/id/metropolitan-district-council/leeds,Leeds City Council,31/08/2021,Communities and Environment,Benefits Welfare and Poverty,Supplies and Services,Grant Related Expenditure,298,19/08/2021,2108-00185,0.00,500.00,R,REDACTED PERSONAL DATA,No
Http://opendatacommunities.org/id/metropolitan-district-council/leeds,Leeds City Council,31/08/2021,Communities and Environment,Benefits Welfare and Poverty,Supplies and Services,Grant Related Expenditure,298,11/08/2021,2108-00186,0.00,500.00,R,REDACTED PERSONAL DATA,No
Http://opendatacommunities.org/id/metropolitan-district-council/leeds,Leeds City Council,31/08/2021,Communities and Environment,Benefits Welfare and Poverty,Supplies and Services,Grant Related Expenditure,290,27/08/2021,2108-00187,0.00,500.00,R,REDACTED PERSONAL DATA,No
Http://opendatacommunities.org/id/metropolitan-district-council/leeds,Leeds City Council,31/08/2021,Communities and Environment,Benefits Welfare and Poverty,Supplies and Services,Grant Related Expenditure,290,27/08/2021,2108-00188,0.00,500.00,R,REDACTED PERSONAL DATA,No
Http://opendatacommunities.org/id/metropolitan-district-council/leeds,Leeds City Council,31/08/2021,Children and Families,Social Care,Agency Payments, Direct Work,549,12/08/2021,2108-00189,0.00,12.09,R,REDACTED PERSONAL DATA,No
Http://opendatacommunities.org/id/metropolitan-district-council/leeds,Leeds City Council,31/08/2021,Children and Families,Social Care,Appropriations,Leaving Care Allowances,634,12/08/2021,2108-00190,0.00,2.35,R,REDACTED PERSONAL DATA,No
Http://opendatacommunities.org/id/metropolitan-district-council/leeds,Leeds City Council,31/08/2021,City Development,Economic Development,Supplies and Services,Grant Related Expenditure,290,04/08/2021,2108-00191,0.00,1890.00,R,Abisher Ltd,No
Http://opendatacommunities.org/id/metropolitan-district-council/leeds,Leeds City Council,31/08/2021,City Development,Economic Development,Supplies and Services,Grant Related Expenditure,290,02/08/2021,2108-00192,0.00,5145.00,R,Able 2 Help Mobility Ltd,No
Http://opendatacommunities.org/id/metropolitan-district-council/leeds,Leeds City Council,31/08/2021,Children and Families,Social Care,Agency Payments, Direct Work,549,06/08/2021,2108-00193,0.00,150.00,R,REDACTED PERSONAL DATA,No
Http://opendatacommunities.org/id/metropolitan-district-council/leeds,Leeds City Council,31/08/2021,Resources and Housing,Legal Services,Internal Recharges,Legal Disbursements,411,20/08/2021,2108-00194,0.00,1044.00,R,ABR Solicitors,No
Http://opendatacommunities.org/id/metropolitan-district-council/leeds,Leeds City Council,31/08/2021,Communities and Environment,Parks and Countryside,Supplies and Services,Operational Materials,205,20/08/2021,2108-00195,0.00,2152.70,R,Abram Pulman & Sons Limited,No
Http://opendatacommunities.org/id/metropolitan-district-council/leeds,Leeds City Council,31/08/2021,Communities and Environment,Parks and Countryside,Supplies and Services,Operational Materials,205,20/08/2021,2108-00196,0.00,469.00,R,Abram Pulman & Sons Limited,No
Http://opendatacommunities.org/id/metropolitan-district-council/leeds,Leeds City Council,31/08/2021,Children and Families,Social Care,Supplies and Services,Food & Drink,231,30/06/2021,2108-00197,0.00,44.30,R,Abu Bakar,Yes
Http://opendatacommunities.org/id/metropolitan-district-council/leeds,Leeds City Council,31/08/2021,Adults and Health,Services For Adults Under 65 Mental/Dis,Agency Payments,Fees - Level 4,520,09/08/2021,2108-00198,0.00,175.00,R,Abubaker Denja Mohammed,No
Http://opendatacommunities.org/id/metropolitan-district-council/leeds,Leeds City Council,31/08/2021,Adults and Health,Services For Adults Under 65 Mental/Dis,Agency Payments,Fees - Level 4,520,23/08/2021,2108-00199,0.00,175.00,R,Abubaker Denja Mohammed,No
Http://opendatacommunities.org/id/metropolitan-district-council/leeds,Leeds City Council,31/08/2021,Adults and Health,Services For Adults Under 65 Mental/Dis,Agency Payments,Fees - Level 4,520,26/08/2021,2108-00200,0.00,175.00,R,Abubaker Denja Mohammed,No
Http://opendatacommunities.org/id/metropolitan-district-council/leeds,Leeds City Council,31/08/2021,Adults and Health,Services For Adults Under 65 Mental/Dis,Agency Payments,Fees - Level 4,520,26/08/2021,2108-00201,0.00,175.00,R,Abubaker Denja Mohammed,No
Http://opendatacommunities.org/id/metropolitan-district-council/leeds,Leeds City Council,31/08/2021,Adults and Health,Services For Adults Under 65 Mental/Dis,Agency Payments,Fees - Level 4,520,26/08/2021,2108-00202,0.00,175.00,R,Abubaker Denja Mohammed,No
Http://opendatacommunities.org/id/metropolitan-district-council/leeds,Leeds City Council,31/08/2021,Children and Families,Social Care,Agency Payments,Services Rendered By Other Organisations,511,03/08/2021,2108-00203,0.00,13426.80,R,Academies Enterprise Trust (AET),No
Http://opendatacommunities.org/id/metropolitan-district-council/leeds,Leeds City Council,31/08/2021,Communities and Environment,Benefits Welfare and Poverty,Supplies and Services,Schools related grant expenditure,299,04/08/2021,2108-00204,0.00,13320.00,R,Academies Enterprise Trust (AET),No
Http://opendatacommunities.org/id/metropolitan-district-council/leeds,Leeds City Council,31/08/2021,Children and Families,Social Care,Agency Payments,Services Rendered By Other Organisations,511,06/08/2021,2108-00205,0.00,44154.00,R,Academies Enterprise Trust (AET),No
Http://opendatacommunities.org/id/metropolitan-district-council/leeds,Leeds City Council,31/08/2021,Children and Families,Social Care,Agency Payments,Services Rendered By Other Organisations,511,06/08/2021,2108-00206,0.00,5928.00,R,Academies Enterprise Trust (AET),No
Http://opendatacommunities.org/id/metropolitan-district-council/leeds,Leeds City Council,31/08/2021,Children and Families,Social Care,Agency Payments,Services Rendered By Other Organisations,511,06/08/2021,2108-00207,0.00,310.05,R,Academies Enterprise Trust (AET),No
Http://opendatacommunities.org/id/metropolitan-district-council/leeds,Leeds City Council,31/08/2021,Adults and Health,Services For Older People - 65 And Over,Agency Payments,Home Care,568,11/08/2021,2108-00208,0.00,2342.34,R,Academy Care Ltd,No
Http://opendatacommunities.org/id/metropolitan-district-council/leeds,Leeds City Council,31/08/2021,Communities and Environment,Communities,Supplies and Services,'Well Being' Large Grants Projects,230,16/08/2021,2108-00209,0.00,2270.00,R,ACamps,No
Http://opendatacommunities.org/id/metropolitan-district-council/leeds,Leeds City Council,31/08/2021,Resources,Human Resources,Supplies and Services,Memberships,226,01/07/2021,2108-00210,0.00,70.00,R,Access Association,Yes
Http://opendatacommunities.org/id/metropolitan-district-council/leeds,Leeds City Council,31/08/2021,Resources,Commercial Services,Supplies and Services,Operational Materials,205,07/07/2021,2108-00211,0.00,505.14,R,Access Locksmiths,Yes
Http://opendatacommunities.org/id/metropolitan-district-council/leeds,Leeds City Council,31/08/2021,Resources,Facilities Management,Supplies and Services,Operational Materials,205,07/07/2021,2108-00212,0.00,958.94,R,Access Locksmiths,Yes
Http://opendatacommunities.org/id/metropolitan-district-council/leeds,Leeds City Council,31/08/2021,Communities Housing and Environment,Waste Management,Transport,Repair & Maintenance of  Plant,342,13/07/2021,2108-00213,0.00,57.25,R,Access Locksmiths,Yes
Http://opendatacommunities.org/id/metropolitan-district-council/leeds,Leeds City Council,31/08/2021,Communities Housing and Environment,Parks And Countryside,Supplies and Services,Operational Materials,205,23/07/2021,2108-00214,0.00,333.33,R,Access Locksmiths,Yes
Http://opendatacommunities.org/id/metropolitan-district-council/leeds,Leeds City Council,31/08/2021,Communities Housing and Environment,Waste Management,Transport,Repair & Maintenance of  Plant,342,29/07/2021,2108-00215,0.00,57.25,R,Access Locksmiths,Yes
Http://opendatacommunities.org/id/metropolitan-district-council/leeds,Leeds City Council,31/08/2021,Strategic Landlord,Housing Management,Premises,General Maintenance,104,27/08/2021,2108-00216,0.00,124.00,R,ACCESS LOCKSMITHS (LEEDS) LIMITED,No
Http://opendatacommunities.org/id/metropolitan-district-council/leeds,Leeds City Council,31/08/2021,Strategic Landlord,Housing Management,Supplies and Services,Resaleable Materials,204,27/08/2021,2108-00217,0.00,51.30,R,ACCESS LOCKSMITHS (LEEDS) LIMITED,No
Http://opendatacommunities.org/id/metropolitan-district-council/leeds,Leeds City Council,31/08/2021,Strategic Landlord,Housing Management,Supplies and Services,Resaleable Materials,204,27/08/2021,2108-00218,0.00,176.00,R,ACCESS LOCKSMITHS (LEEDS) LIMITED,No
Http://opendatacommunities.org/id/metropolitan-district-council/leeds,Leeds City Council,31/08/2021,Resources and Housing,HRA Housing Leeds,Capital,OTHER COSTS,7,27/08/2021,2108-00219,0.00,64.49,C,ACCESS LOCKSMITHS (LEEDS) LIMITED,No
Http://opendatacommunities.org/id/metropolitan-district-council/leeds,Leeds City Council,31/08/2021,Strategic Landlord,Housing Management,Premises,General Maintenance,104,27/08/2021,2108-00220,0.00,620.00,R,ACCESS LOCKSMITHS (LEEDS) LIMITED,No
Http://opendatacommunities.org/id/metropolitan-district-council/leeds,Leeds City Council,31/08/2021,Strategic Landlord,Property and Contracts,Premises,General Maintenance,104,27/08/2021,2108-00221,0.00,227.04,R,ACCESS LOCKSMITHS (LEEDS) LIMITED,No
Http://opendatacommunities.org/id/metropolitan-district-council/leeds,Leeds City Council,31/08/2021,Strategic Landlord,Property and Contracts,Premises,General Maintenance,104,27/08/2021,2108-00222,0.00,223.27,R,ACCESS LOCKSMITHS (LEEDS) LIMITED,No
Http://opendatacommunities.org/id/metropolitan-district-council/leeds,Leeds City Council,31/08/2021,Strategic Landlord,Property and Contracts,Premises,General Maintenance,104,27/08/2021,2108-00223,0.00,141.71,R,ACCESS LOCKSMITHS (LEEDS) LIMITED,No
Http://opendatacommunities.org/id/metropolitan-district-council/leeds,Leeds City Council,31/08/2021,Communities and Environment,Waste Management,Supplies and Services,Operational Furniture And Equipment,203,27/08/2021,2108-00224,0.00,550.00,R,ACCESS LOCKSMITHS (LEEDS) LIMITED,No
Http://opendatacommunities.org/id/metropolitan-district-council/leeds,Leeds City Council,31/08/2021,Resources and Housing,HRA Housing Leeds,Capital,OTHER COSTS,7,27/08/2021,2108-00225,0.00,154.00,C,ACCESS LOCKSMITHS (LEEDS) LIMITED,No
Http://opendatacommunities.org/id/metropolitan-district-council/leeds,Leeds City Council,31/08/2021,Resources and Housing,Facilities Management,Supplies and Services,Other Hired And Contracted Services,265,27/08/2021,2108-00226,0.00,67.41,R,ACCESS LOCKSMITHS (LEEDS) LIMITED,No
Http://opendatacommunities.org/id/metropolitan-district-council/leeds,Leeds City Council,31/08/2021,Strategic Landlord,Housing Management,Supplies and Services,Resaleable Materials,204,31/08/2021,2108-00227,0.00,310.00,R,ACCESS LOCKSMITHS (LEEDS) LIMITED,No
Http://opendatacommunities.org/id/metropolitan-district-council/leeds,Leeds City Council,31/08/2021,Insurance,Insurance,Supplies and Services,Insurance Claims,248,19/08/2021,2108-00228,0.00,20000.00,R,Accountant General Of The Senior Courts,No
Http://opendatacommunities.org/id/metropolitan-district-council/leeds,Leeds City Council,31/08/2021,City Development,Recreation,Transport,External Hire -Occasional,304,27/08/2021,2108-00229,0.00,128.65,R,ACE CONTAINER SERVICES LIMITED,No
Http://opendatacommunities.org/id/metropolitan-district-council/leeds,Leeds City Council,31/08/2021,City Development,Economic Development,Supplies and Services,Grant Related Expenditure,290,03/08/2021,2108-00230,0.00,2000.00,R,Ace Leaflet Distribution & Print Ltd,No
Http://opendatacommunities.org/id/metropolitan-district-council/leeds,Leeds City Council,31/08/2021,Children and Families,Partnerships & Health,Agency Payments,SEN Placements,566,02/08/2021,2108-00231,0.00,19014.93,R,ACKWORTH SCHOOL,No
Http://opendatacommunities.org/id/metropolitan-district-council/leeds,Leeds City Council,31/08/2021,Children and Families,Partnerships & Health,Agency Payments,SEN Placements,566,02/08/2021,2108-00232,0.00,19207.00,R,ACKWORTH SCHOOL,No
Http://opendatacommunities.org/id/metropolitan-district-council/leeds,Leeds City Council,31/08/2021,Children and Families,Partnerships & Health,Agency Payments,Home Care,568,02/08/2021,2108-00233,0.00,-192.07,R,ACKWORTH SCHOOL,No
Http://opendatacommunities.org/id/metropolitan-district-council/leeds,Leeds City Council,31/08/2021,Children and Families,Partnerships & Health,Agency Payments,SEN Placements,566,02/08/2021,2108-00234,0.00,19014.93,R,ACKWORTH SCHOOL,No
Http://opendatacommunities.org/id/metropolitan-district-council/leeds,Leeds City Council,31/08/2021,Children and Families,Partnerships & Health,Agency Payments,SEN Placements,566,02/08/2021,2108-00235,0.00,19014.93,R,ACKWORTH SCHOOL,No
Http://opendatacommunities.org/id/metropolitan-district-council/leeds,Leeds City Council,31/08/2021,Children and Families,Partnerships & Health,Agency Payments,SEN Placements,566,02/08/2021,2108-00236,0.00,19014.93,R,ACKWORTH SCHOOL,No
Http://opendatacommunities.org/id/metropolitan-district-council/leeds,Leeds City Council,31/08/2021,Children and Families,Partnerships & Health,Agency Payments,SEN Placements,566,02/08/2021,2108-00237,0.00,26307.92,R,ACKWORTH SCHOOL,No
Http://opendatacommunities.org/id/metropolitan-district-council/leeds,Leeds City Council,31/08/2021,Children and Families,Partnerships & Health,Agency Payments,SEN Placements,566,02/08/2021,2108-00238,0.00,19014.93,R,ACKWORTH SCHOOL,No
Http://opendatacommunities.org/id/metropolitan-district-council/leeds,Leeds City Council,31/08/2021,Communities Housing and Environment,Parks And Countryside,Supplies and Services,Operational Materials,205,20/07/2021,2108-00239,0.00,90.00,R,Acme Facilities Group,Yes
Http://opendatacommunities.org/id/metropolitan-district-council/leeds,Leeds City Council,31/08/2021,Adults and Health,Other Adult Services,Agency Payments,Residential,580,04/08/2021,2108-00240,0.00,385.84,R,Acorn Care & Education Ltd (Sales),No
Http://opendatacommunities.org/id/metropolitan-district-council/leeds,Leeds City Council,31/08/2021,Children and Families,Partnerships & Health,Agency Payments,SEN Placements,566,19/08/2021,2108-00241,0.00,13333.33,R,Acorn Care & Education Ltd (Sales),No
Http://opendatacommunities.org/id/metropolitan-district-council/leeds,Leeds City Council,31/08/2021,Children and Families,Social Care,Agency Payments,General External Residential Placements,507,19/08/2021,2108-00242,0.00,16692.86,R,Acorn Care & Education Ltd (Sales),No
Http://opendatacommunities.org/id/metropolitan-district-council/leeds,Leeds City Council,31/08/2021,Children and Families,Partnerships & Health,Agency Payments,SEN Placements,566,24/08/2021,2108-00243,0.00,19247.62,R,Acorn Care & Education Ltd (Sales),No
Http://opendatacommunities.org/id/metropolitan-district-council/leeds,Leeds City Council,31/08/2021,Children and Families,Social Care,Agency Payments,General External Residential Placements,507,26/08/2021,2108-00244,0.00,17249.29,R,Acorn Care & Education Ltd (Sales),No
Http://opendatacommunities.org/id/metropolitan-district-council/leeds,Leeds City Council,31/08/2021,Children and Families,Partnerships & Health,Agency Payments,SEN Placements,566,27/08/2021,2108-00245,0.00,18472.00,R,Acorn Care & Education Ltd (Sales),No
Http://opendatacommunities.org/id/metropolitan-district-council/leeds,Leeds City Council,31/08/2021,Children and Families,Social Care,Agency Payments,General External Residential Placements,507,27/08/2021,2108-00246,0.00,17249.29,R,Acorn Care & Education Ltd (Sales),No
Http://opendatacommunities.org/id/metropolitan-district-council/leeds,Leeds City Council,31/08/2021,City Development,Libraries Arts & Heritage,Supplies and Services,Other Hired And Contracted Services,265,06/08/2021,2108-00247,0.00,1560.00,R,Acorn Construction (Yorkshire) Ltd,No
Http://opendatacommunities.org/id/metropolitan-district-council/leeds,Leeds City Council,31/08/2021,Resources and Housing,Strategic Housing Partnership & Support,Supplies and Services,Other Hired And Contracted Services,265,18/08/2021,2108-00248,0.00,1035.60,R,Acorn Housing,No
Http://opendatacommunities.org/id/metropolitan-district-council/leeds,Leeds City Council,31/08/2021,Communities and Environment,Strategic Housing Partnership & Support,Supplies and Services,Other Hired And Contracted Services,265,26/08/2021,2108-00249,0.00,3679.59,R,Acorn Housing,No
Http://opendatacommunities.org/id/metropolitan-district-council/leeds,Leeds City Council,31/08/2021,Resources and Housing,Strategic Housing Partnership & Support,Supplies and Services,Other Hired And Contracted Services,265,26/08/2021,2108-00250,0.00,1464.40,R,Acorn Housing,No
Http://opendatacommunities.org/id/metropolitan-district-council/leeds,Leeds City Council,31/08/2021,Adults and Health,Services For Older People - 65 And Over,Agency Payments,Residential Care Dementia,571,18/08/2021,2108-00251,0.00,1640.48,R,Acorn Nursing Home,No
Http://opendatacommunities.org/id/metropolitan-district-council/leeds,Leeds City Council,31/08/2021,Children and Families,Social Care,Agency Payments,Services Rendered By Other Organisations,511,04/08/2021,2108-00252,0.00,1005.00,R,ACORNS NURSERY,No
Http://opendatacommunities.org/id/metropolitan-district-council/leeds,Leeds City Council,31/08/2021,Children and Families,Social Care,Agency Payments,Services Rendered By Other Organisations,511,06/08/2021,2108-00253,0.00,7363.46,R,ACORNS NURSERY,No
Http://opendatacommunities.org/id/metropolitan-district-council/leeds,Leeds City Council,31/08/2021,Children and Families,Social Care,Agency Payments,Services Rendered By Other Organisations,511,06/08/2021,2108-00254,0.00,136.50,R,ACORNS NURSERY,No
Http://opendatacommunities.org/id/metropolitan-district-council/leeds,Leeds City Council,31/08/2021,Adults and Health,Services For Older People - 65 And Over,Agency Payments,Nursing Home,570,18/08/2021,2108-00255,0.00,35546.61,R,Acre Green,No
Http://opendatacommunities.org/id/metropolitan-district-council/leeds,Leeds City Council,31/08/2021,Adults and Health,Services For Older People - 65 And Over,Agency Payments,Residential,580,18/08/2021,2108-00256,0.00,3927.20,R,Acre Green,No
Http://opendatacommunities.org/id/metropolitan-district-council/leeds,Leeds City Council,31/08/2021,Adults and Health,Services For Older People Under 65 P/Dis,Agency Payments,Nursing Home,570,18/08/2021,2108-00257,0.00,1970.40,R,Acre Green,No
Http://opendatacommunities.org/id/metropolitan-district-council/leeds,Leeds City Council,31/08/2021,Adults and Health,Services For Older People Under 65 P/Dis,Agency Payments,Residential,580,18/08/2021,2108-00258,0.00,1767.20,R,Acre Green,No
Http://opendatacommunities.org/id/metropolitan-district-council/leeds,Leeds City Council,31/08/2021,Children and Families,Social Care,Agency Payments,Services Rendered By Other Organisations,511,04/08/2021,2108-00259,0.00,8377.68,R,Acre Wood Day Nursery,No
Http://opendatacommunities.org/id/metropolitan-district-council/leeds,Leeds City Council,31/08/2021,Children and Families,Social Care,Agency Payments,Services Rendered By Other Organisations,511,06/08/2021,2108-00260,0.00,8175.18,R,Acre Wood Day Nursery,No
Http://opendatacommunities.org/id/metropolitan-district-council/leeds,Leeds City Council,31/08/2021,Children and Families,Social Care,Agency Payments,Services Rendered By Other Organisations,511,06/08/2021,2108-00261,0.00,1989.00,R,Acre Wood Day Nursery,No
Http://opendatacommunities.org/id/metropolitan-district-council/leeds,Leeds City Council,31/08/2021,Children and Families,Social Care,Agency Payments,Services Rendered By Other Organisations,511,06/08/2021,2108-00262,0.00,206.70,R,Acre Wood Day Nursery,No
Http://opendatacommunities.org/id/metropolitan-district-council/leeds,Leeds City Council,31/08/2021,Resources,Digital and Information Service,Supplies and Services,Computer Software & Equipment,214,09/07/2021,2108-00263,0.00,998.09,R,Acs Business Supplies Lt,Yes
Http://opendatacommunities.org/id/metropolitan-district-council/leeds,Leeds City Council,31/08/2021,City Development,Economic Development,Supplies and Services,Grant Related Expenditure,290,03/08/2021,2108-00264,0.00,2096.00,R,Act Up North Ltd,No
Http://opendatacommunities.org/id/metropolitan-district-council/leeds,Leeds City Council,31/08/2021,City Development,Highways,Supplies and Services,Operational Materials,205,12/08/2021,2108-00265,0.00,1488.40,R,Actavo Hire And Sales Uk Limited,No
Http://opendatacommunities.org/id/metropolitan-district-council/leeds,Leeds City Council,31/08/2021,Children and Families,Social Care,Agency Payments,Independent Fostering Agencies,509,20/08/2021,2108-00266,0.00,5060.44,R,Action For Children Services Ltd,No
Http://opendatacommunities.org/id/metropolitan-district-council/leeds,Leeds City Council,31/08/2021,City Development,Economic Development,Supplies and Services,Grant Related Expenditure,290,18/08/2021,2108-00267,0.00,3907.00,R,ACTIVE HIRE (LEEDS) LTD,No
Http://opendatacommunities.org/id/metropolitan-district-council/leeds,Leeds City Council,31/08/2021,Children and Families,Social Care,Agency Payments,Services Rendered By Other Organisations,511,04/08/2021,2108-00268,0.00,627.12,R,ACTIVE KIDS YEADON LLP,No
Http://opendatacommunities.org/id/metropolitan-district-council/leeds,Leeds City Council,31/08/2021,City Development,Economic Development,Supplies and Services,Grant Related Expenditure,290,04/08/2021,2108-00269,0.00,3001.00,R,ACTIVE KIDS YEADON LLP,No
Http://opendatacommunities.org/id/metropolitan-district-council/leeds,Leeds City Council as Accountable Body,31/08/2021,Social Services Pooled Budgets,Leeds Community Equip Store Pooled Budgt,Supplies and Services,Other Equipment,203,10/08/2021,2108-00270,0.00,255.00,R,Active Mobility Centre Ltd,No
Http://opendatacommunities.org/id/metropolitan-district-council/leeds,Leeds City Council,31/08/2021,Adults and Health,Services For Adults Under 65 Mental/Dis,Agency Payments,Sheltered Accommodation,569,18/08/2021,2108-00271,0.00,15773.16,R,Active Pathways,No
Http://opendatacommunities.org/id/metropolitan-district-council/leeds,Leeds City Council as Accountable Body,31/08/2021,Social Services Pooled Budgets,Jcs For People With Learning Disabilitie,Agency Payments,Sheltered Accommodation,569,18/08/2021,2108-00272,0.00,12452.52,R,Active Pathways,No
Http://opendatacommunities.org/id/metropolitan-district-council/leeds,Leeds City Council,31/08/2021,Adults and Health,Other Adult Services,Agency Payments,Nursing Home,570,16/08/2021,2108-00273,0.00,3206.90,R,Active Pathways Supported Living Ltd,No
Http://opendatacommunities.org/id/metropolitan-district-council/leeds,Leeds City Council,31/08/2021,City Development,Economic Development,Supplies and Services,Grant Related Expenditure,290,04/08/2021,2108-00274,0.00,3100.00,R,Acume UK LImited,No
Http://opendatacommunities.org/id/metropolitan-district-council/leeds,Leeds City Council,31/08/2021,Communities and Environment,Waste Management,Supplies and Services,Recycling & Reuse Charges,234,11/08/2021,2108-00275,0.00,3872.88,R,Acumen Waste Services Ltd,No
Http://opendatacommunities.org/id/metropolitan-district-council/leeds,Leeds City Council,31/08/2021,Communities and Environment,Waste Management,Supplies and Services,Recycling & Reuse Charges,234,13/08/2021,2108-00276,0.00,1043.28,R,Acumen Waste Services Ltd,No
Http://opendatacommunities.org/id/metropolitan-district-council/leeds,Leeds City Council,31/08/2021,Communities and Environment,Waste Management,Supplies and Services,Recycling & Reuse Charges,234,13/08/2021,2108-00277,0.00,1026.72,R,Acumen Waste Services Ltd,No
Http://opendatacommunities.org/id/metropolitan-district-council/leeds,Leeds City Council,31/08/2021,Communities and Environment,Waste Management,Supplies and Services,Recycling & Reuse Charges,234,13/08/2021,2108-00278,0.00,1053.36,R,Acumen Waste Services Ltd,No
Http://opendatacommunities.org/id/metropolitan-district-council/leeds,Leeds City Council,31/08/2021,Communities and Environment,Waste Management,Supplies and Services,Recycling & Reuse Charges,234,13/08/2021,2108-00279,0.00,979.92,R,Acumen Waste Services Ltd,No
Http://opendatacommunities.org/id/metropolitan-district-council/leeds,Leeds City Council,31/08/2021,Communities and Environment,Waste Management,Supplies and Services,Recycling & Reuse Charges,234,13/08/2021,2108-00280,0.00,1013.04,R,Acumen Waste Services Ltd,No
Http://opendatacommunities.org/id/metropolitan-district-council/leeds,Leeds City Council,31/08/2021,Communities and Environment,Waste Management,Supplies and Services,Recycling & Reuse Charges,234,13/08/2021,2108-00281,0.00,983.52,R,Acumen Waste Services Ltd,No
Http://opendatacommunities.org/id/metropolitan-district-council/leeds,Leeds City Council,31/08/2021,Communities and Environment,Waste Management,Supplies and Services,Recycling & Reuse Charges,234,13/08/2021,2108-00282,0.00,964.08,R,Acumen Waste Services Ltd,No
Http://opendatacommunities.org/id/metropolitan-district-council/leeds,Leeds City Council,31/08/2021,Communities and Environment,Waste Management,Supplies and Services,Recycling & Reuse Charges,234,13/08/2021,2108-00283,0.00,954.72,R,Acumen Waste Services Ltd,No
Http://opendatacommunities.org/id/metropolitan-district-council/leeds,Leeds City Council,31/08/2021,Communities and Environment,Waste Management,Supplies and Services,Recycling & Reuse Charges,234,13/08/2021,2108-00284,0.00,2975.04,R,Acumen Waste Services Ltd,No
Http://opendatacommunities.org/id/metropolitan-district-council/leeds,Leeds City Council,31/08/2021,Communities and Environment,Waste Management,Supplies and Services,Recycling & Reuse Charges,234,13/08/2021,2108-00285,0.00,1977.12,R,Acumen Waste Services Ltd,No
Http://opendatacommunities.org/id/metropolitan-district-council/leeds,Leeds City Council,31/08/2021,Communities and Environment,Waste Management,Supplies and Services,Recycling & Reuse Charges,234,18/08/2021,2108-00286,0.00,974.88,R,Acumen Waste Services Ltd,No
Http://opendatacommunities.org/id/metropolitan-district-council/leeds,Leeds City Council,31/08/2021,Communities and Environment,Waste Management,Supplies and Services,Recycling & Reuse Charges,234,18/08/2021,2108-00287,0.00,1000.08,R,Acumen Waste Services Ltd,No
Http://opendatacommunities.org/id/metropolitan-district-council/leeds,Leeds City Council,31/08/2021,Communities and Environment,Waste Management,Supplies and Services,Recycling & Reuse Charges,234,18/08/2021,2108-00288,0.00,1011.60,R,Acumen Waste Services Ltd,No
Http://opendatacommunities.org/id/metropolitan-district-council/leeds,Leeds City Council,31/08/2021,Communities and Environment,Waste Management,Supplies and Services,Recycling & Reuse Charges,234,18/08/2021,2108-00289,0.00,1007.28,R,Acumen Waste Services Ltd,No
Http://opendatacommunities.org/id/metropolitan-district-council/leeds,Leeds City Council,31/08/2021,Communities and Environment,Waste Management,Supplies and Services,Recycling & Reuse Charges,234,18/08/2021,2108-00290,0.00,619.92,R,Acumen Waste Services Ltd,No
Http://opendatacommunities.org/id/metropolitan-district-council/leeds,Leeds City Council,31/08/2021,Communities and Environment,Waste Management,Supplies and Services,Recycling & Reuse Charges,234,25/08/2021,2108-00291,0.00,1002.96,R,Acumen Waste Services Ltd,No
Http://opendatacommunities.org/id/metropolitan-district-council/leeds,Leeds City Council,31/08/2021,Communities and Environment,Waste Management,Supplies and Services,Recycling & Reuse Charges,234,25/08/2021,2108-00292,0.00,984.24,R,Acumen Waste Services Ltd,No
Http://opendatacommunities.org/id/metropolitan-district-council/leeds,Leeds City Council,31/08/2021,Communities and Environment,Waste Management,Supplies and Services,Waste Disposal Charges,236,26/08/2021,2108-00293,0.00,2753.90,R,Acumen Waste Services Ltd,No
Http://opendatacommunities.org/id/metropolitan-district-council/leeds,Leeds City Council,31/08/2021,Communities and Environment,Parks and Countryside,Supplies and Services,Resaleable Materials,204,11/08/2021,2108-00294,0.00,206.70,R,ACUSHNET EUROPE LIMITED,No
Http://opendatacommunities.org/id/metropolitan-district-council/leeds,Leeds City Council,31/08/2021,Resources and Housing,Shared Services,Supplies and Services,Other Hired And Contracted Services,265,06/08/2021,2108-00295,0.00,200.29,R,AD3 Envelope Printers Limited,No
Http://opendatacommunities.org/id/metropolitan-district-council/leeds,Leeds City Council,31/08/2021,Resources and Housing,Shared Services,Supplies and Services,Operational Materials,205,06/08/2021,2108-00296,0.00,1131.75,R,AD3 Envelope Printers Limited,No
Http://opendatacommunities.org/id/metropolitan-district-council/leeds,Leeds City Council,31/08/2021,Communities and Environment,Elections Licensing and Registration,External Income,Admissions Booking Fees & Ticket Sales,933,05/08/2021,2108-00297,0.00,110.00,R,REDACTED PERSONAL DATA,No
Http://opendatacommunities.org/id/metropolitan-district-council/leeds,Leeds City Council,31/08/2021,Communities and Environment,Benefits Welfare and Poverty,Supplies and Services,Grant Related Expenditure,298,04/08/2021,2108-00298,0.00,500.00,R,REDACTED PERSONAL DATA,No
Http://opendatacommunities.org/id/metropolitan-district-council/leeds,Leeds City Council,31/08/2021,Communities and Environment,Benefits Welfare and Poverty,Supplies and Services,Grant Related Expenditure,298,24/08/2021,2108-00299,0.00,500.00,R,REDACTED PERSONAL DATA,No
Http://opendatacommunities.org/id/metropolitan-district-council/leeds,Leeds City Council,31/08/2021,Communities and Environment,Benefits Welfare and Poverty,Supplies and Services,Grant Related Expenditure,298,26/08/2021,2108-00300,0.00,500.00,R,REDACTED PERSONAL DATA,No
Http://opendatacommunities.org/id/metropolitan-district-council/leeds,Leeds City Council,31/08/2021,Communities and Environment,Benefits Welfare and Poverty,Supplies and Services,Grant Related Expenditure,298,25/08/2021,2108-00301,0.00,500.00,R,REDACTED PERSONAL DATA,No
Http://opendatacommunities.org/id/metropolitan-district-council/leeds,Leeds City Council,31/08/2021,Communities and Environment,Benefits Welfare and Poverty,Supplies and Services,Grant Related Expenditure,298,18/08/2021,2108-00302,0.00,500.00,R,REDACTED PERSONAL DATA,No
Http://opendatacommunities.org/id/metropolitan-district-council/leeds,Leeds City Council,31/08/2021,Children and Families,Social Care,Appropriations,Leaving Care Allowances,634,06/08/2021,2108-00303,0.00,70.00,R,REDACTED PERSONAL DATA,No
Http://opendatacommunities.org/id/metropolitan-district-council/leeds,Leeds City Council,31/08/2021,Children and Families,Social Care,Appropriations,Leaving Care Allowances,634,13/08/2021,2108-00304,0.00,70.00,R,REDACTED PERSONAL DATA,No
Http://opendatacommunities.org/id/metropolitan-district-council/leeds,Leeds City Council,31/08/2021,Children and Families,Social Care,Appropriations,Leaving Care Allowances,634,20/08/2021,2108-00305,0.00,70.00,R,REDACTED PERSONAL DATA,No
Http://opendatacommunities.org/id/metropolitan-district-council/leeds,Leeds City Council,31/08/2021,Children and Families,Social Care,Appropriations,Leaving Care Allowances,634,27/08/2021,2108-00306,0.00,70.00,R,REDACTED PERSONAL DATA,No
Http://opendatacommunities.org/id/metropolitan-district-council/leeds,Leeds City Council,31/08/2021,Communities and Environment,Benefits Welfare and Poverty,Supplies and Services,Grant Related Expenditure,298,04/08/2021,2108-00307,0.00,500.00,R,REDACTED PERSONAL DATA,No
Http://opendatacommunities.org/id/metropolitan-district-council/leeds,Leeds City Council,31/08/2021,Communities and Environment,Benefits Welfare and Poverty,Supplies and Services,Grant Related Expenditure,298,10/08/2021,2108-00308,0.00,500.00,R,REDACTED PERSONAL DATA,No
Http://opendatacommunities.org/id/metropolitan-district-council/leeds,Leeds City Council,31/08/2021,Communities and Environment,Benefits Welfare and Poverty,Supplies and Services,Grant Related Expenditure,298,13/08/2021,2108-00309,0.00,500.00,R,REDACTED PERSONAL DATA,No
Http://opendatacommunities.org/id/metropolitan-district-council/leeds,Leeds City Council,31/08/2021,City Development,Economic Development,Supplies and Services,Grant Related Expenditure,290,03/08/2021,2108-00310,0.00,5605.00,R,Adamsons Ltd,No
Http://opendatacommunities.org/id/metropolitan-district-council/leeds,Leeds City Council,31/08/2021,Adults and Health,Services For Older People - 65 And Over,Agency Payments,Nursing Home,570,18/08/2021,2108-00311,0.00,2952.00,R,Adbolton Hall,No
Http://opendatacommunities.org/id/metropolitan-district-council/leeds,Leeds City Council,31/08/2021,Resources and Housing,Strategic Housing Partnerships,Capital,CONSTRUCTION,3,03/08/2021,2108-00312,0.00,1000.00,C,Add Construction,No
Http://opendatacommunities.org/id/metropolitan-district-council/leeds,Leeds City Council,31/08/2021,Children and Families,Social Care,Appropriations,Leaving Care Allowances,634,20/07/2021,2108-00313,0.00,74.97,R,Addis Ethiopian Restau,Yes
Http://opendatacommunities.org/id/metropolitan-district-council/leeds,Leeds City Council,31/08/2021,City Development,Asset Management Services,External Income,Dwelling Rents,951,06/08/2021,2108-00314,0.00,226352.00,R,Addleshaw Goddard Llp Client Ac,No
Http://opendatacommunities.org/id/metropolitan-district-council/leeds,Leeds City Council,31/08/2021,Adults and Health,Public Health,Agency Payments,Public Health Commissioned Services,526,06/08/2021,2108-00315,0.00,4714.68,R,Addlestone & Partners,No
Http://opendatacommunities.org/id/metropolitan-district-council/leeds,Leeds City Council,31/08/2021,Communities and Environment,Parks and Countryside,Supplies and Services,Other Hired And Contracted Services,265,26/08/2021,2108-00316,0.00,9342.00,R,Addlestone & Partners,No
Http://opendatacommunities.org/id/metropolitan-district-council/leeds,Leeds City Council,31/08/2021,Resources,Digital and Information Service,Employees,Agency Staff,8,01/07/2021,2108-00317,0.00,28682.91,R,Adecco Alfred Marks,Yes
Http://opendatacommunities.org/id/metropolitan-district-council/leeds,Leeds City Council,31/08/2021,Resources,Digital and Information Service,Employees,Agency Staff,8,21/07/2021,2108-00318,0.00,42750.54,R,Adecco Alfred Marks,Yes
Http://opendatacommunities.org/id/metropolitan-district-council/leeds,Leeds City Council,31/08/2021,Resources,Digital and Information Service,Employees,Agency Staff,8,28/07/2021,2108-00319,0.00,5527.76,R,Adecco Alfred Marks,Yes
Http://opendatacommunities.org/id/metropolitan-district-council/leeds,Leeds City Council,31/08/2021,Children and Families,Social Care,Agency Payments,Services Rendered By Voluntary Sector,505,04/08/2021,2108-00320,0.00,1881.36,R,ADEL PRE SCHOOL,No
Http://opendatacommunities.org/id/metropolitan-district-council/leeds,Leeds City Council,31/08/2021,Children and Families,Social Care,Agency Payments,Services Rendered By Voluntary Sector,505,06/08/2021,2108-00321,0.00,9731.72,R,ADEL PRE SCHOOL,No
Http://opendatacommunities.org/id/metropolitan-district-council/leeds,Leeds City Council,31/08/2021,Children and Families,Social Care,Agency Payments,Services Rendered By Other Organisations,511,06/08/2021,2108-00322,0.00,1187.25,R,ADEL PRE SCHOOL,No
Http://opendatacommunities.org/id/metropolitan-district-council/leeds,Leeds City Council,31/08/2021,Children and Families,Social Care,Agency Payments,Services Rendered By Voluntary Sector,505,06/08/2021,2108-00323,0.00,723.45,R,ADEL PRE SCHOOL,No
Http://opendatacommunities.org/id/metropolitan-district-council/leeds,Leeds City Council,31/08/2021,Communities Housing and Environment,Customer Access,Supplies and Services,Food & Drink,231,14/07/2021,2108-00324,0.00,10.00,R,Adel Sf Connect,Yes
Http://opendatacommunities.org/id/metropolitan-district-council/leeds,Leeds City Council,31/08/2021,City Development,Economic Development,Supplies and Services,Grant Related Expenditure,290,03/08/2021,2108-00325,0.00,1090.00,R,Adel Sports And Social Club,No
Http://opendatacommunities.org/id/metropolitan-district-council/leeds,Leeds City Council,31/08/2021,Children and Families,Social Care,Agency Payments,Contact,548,10/08/2021,2108-00326,0.00,6.70,R,REDACTED PERSONAL DATA,No
Http://opendatacommunities.org/id/metropolitan-district-council/leeds,Leeds City Council,31/08/2021,Children and Families,Social Care,Agency Payments,Contact,548,16/08/2021,2108-00327,0.00,6.70,R,REDACTED PERSONAL DATA,No
Http://opendatacommunities.org/id/metropolitan-district-council/leeds,Leeds City Council,31/08/2021,City Development,Recreation,Supplies and Services,Bought In Professional Services,277,20/08/2021,2108-00328,0.00,40.00,R,Adele Battersby,No
Http://opendatacommunities.org/id/metropolitan-district-council/leeds,Leeds City Council,31/08/2021,City Development,Recreation,Supplies and Services,Bought In Professional Services,277,27/08/2021,2108-00329,0.00,180.00,R,Adele Battersby,No
Http://opendatacommunities.org/id/metropolitan-district-council/leeds,Leeds City Council,31/08/2021,City Development,Recreation,Supplies and Services,Bought In Professional Services,277,27/08/2021,2108-00330,0.00,440.00,R,Adele Battersby,No
Http://opendatacommunities.org/id/metropolitan-district-council/leeds,Leeds City Council,31/08/2021,Communities and Environment,Benefits Welfare and Poverty,Supplies and Services,Grant Related Expenditure,298,03/08/2021,2108-00331,0.00,500.00,R,REDACTED PERSONAL DATA,No
Http://opendatacommunities.org/id/metropolitan-district-council/leeds,Leeds City Council,31/08/2021,Children and Families,Social Care,Agency Payments,Services Rendered By Other Organisations,511,04/08/2021,2108-00332,0.00,209.04,R,REDACTED PERSONAL DATA,No
Http://opendatacommunities.org/id/metropolitan-district-council/leeds,Leeds City Council,31/08/2021,Children and Families,Social Care,Agency Payments,Services Rendered By Other Organisations,511,10/08/2021,2108-00333,0.00,1391.52,R,REDACTED PERSONAL DATA,No
Http://opendatacommunities.org/id/metropolitan-district-council/leeds,Leeds City Council,31/08/2021,Children and Families,Social Care,Agency Payments,Services Rendered By Other Organisations,511,13/08/2021,2108-00334,0.00,399.75,R,REDACTED PERSONAL DATA,No
Http://opendatacommunities.org/id/metropolitan-district-council/leeds,Leeds City Council,31/08/2021,Children and Families,Social Care,Agency Payments,Contact,548,25/08/2021,2108-00335,0.00,16.00,R,REDACTED PERSONAL DATA,No
Http://opendatacommunities.org/id/metropolitan-district-council/leeds,Leeds City Council,31/08/2021,Communities and Environment,Benefits Welfare and Poverty,Supplies and Services,Grant Related Expenditure,290,03/08/2021,2108-00336,0.00,500.00,R,REDACTED PERSONAL DATA,No
Http://opendatacommunities.org/id/metropolitan-district-council/leeds,Leeds City Council,31/08/2021,Communities and Environment,Benefits Welfare and Poverty,Supplies and Services,Grant Related Expenditure,290,27/08/2021,2108-00337,0.00,500.00,R,REDACTED PERSONAL DATA,No
Http://opendatacommunities.org/id/metropolitan-district-council/leeds,Leeds City Council,31/08/2021,Children and Families,Social Care,Agency Payments,Contact,548,10/08/2021,2108-00338,0.00,24.90,R,REDACTED PERSONAL DATA,No
Http://opendatacommunities.org/id/metropolitan-district-council/leeds,Leeds City Council,31/08/2021,Children and Families,Social Care,Agency Payments,Contact,548,13/08/2021,2108-00339,0.00,3.50,R,REDACTED PERSONAL DATA,No
Http://opendatacommunities.org/id/metropolitan-district-council/leeds,Leeds City Council,31/08/2021,Children and Families,Social Care,Agency Payments,Contact,548,13/08/2021,2108-00340,0.00,24.90,R,REDACTED PERSONAL DATA,No
Http://opendatacommunities.org/id/metropolitan-district-council/leeds,Leeds City Council,31/08/2021,Children and Families,Social Care,Agency Payments,Contact,548,18/08/2021,2108-00341,0.00,10.00,R,REDACTED PERSONAL DATA,No
Http://opendatacommunities.org/id/metropolitan-district-council/leeds,Leeds City Council,31/08/2021,Children and Families,Social Care,Agency Payments,Contact,548,20/08/2021,2108-00342,0.00,5.00,R,REDACTED PERSONAL DATA,No
Http://opendatacommunities.org/id/metropolitan-district-council/leeds,Leeds City Council,31/08/2021,Children and Families,Social Care,Agency Payments,Contact,548,27/08/2021,2108-00343,0.00,24.90,R,REDACTED PERSONAL DATA,No
Http://opendatacommunities.org/id/metropolitan-district-council/leeds,Leeds City Council,31/08/2021,Communities and Environment,Benefits Welfare and Poverty,Supplies and Services,Grant Related Expenditure,298,20/08/2021,2108-00344,0.00,500.00,R,REDACTED PERSONAL DATA,No
Http://opendatacommunities.org/id/metropolitan-district-council/leeds,Leeds City Council,31/08/2021,Communities and Environment,Benefits Welfare and Poverty,Supplies and Services,Grant Related Expenditure,290,24/08/2021,2108-00345,0.00,500.00,R,REDACTED PERSONAL DATA,No
Http://opendatacommunities.org/id/metropolitan-district-council/leeds,Leeds City Council,31/08/2021,Children and Families,Social Care,Agency Payments,Section 17,551,06/08/2021,2108-00346,0.00,79.20,R,REDACTED PERSONAL DATA,No
Http://opendatacommunities.org/id/metropolitan-district-council/leeds,Leeds City Council,31/08/2021,Children and Families,Social Care,Agency Payments,Section 17,551,13/08/2021,2108-00347,0.00,79.20,R,REDACTED PERSONAL DATA,No
Http://opendatacommunities.org/id/metropolitan-district-council/leeds,Leeds City Council,31/08/2021,Children and Families,Social Care,Agency Payments,Section 17,551,20/08/2021,2108-00348,0.00,79.20,R,REDACTED PERSONAL DATA,No
Http://opendatacommunities.org/id/metropolitan-district-council/leeds,Leeds City Council,31/08/2021,Children and Families,Social Care,Agency Payments,Section 17,551,27/08/2021,2108-00349,0.00,79.20,R,REDACTED PERSONAL DATA,No
Http://opendatacommunities.org/id/metropolitan-district-council/leeds,Leeds City Council,31/08/2021,Resources and Housing,Leeds Building Services,Supplies and Services,Operational Materials,205,03/08/2021,2108-00350,0.00,103.03,R,ADI Global,No
Http://opendatacommunities.org/id/metropolitan-district-council/leeds,Leeds City Council,31/08/2021,Resources and Housing,Leeds Building Services,Supplies and Services,Operational Materials,205,03/08/2021,2108-00351,0.00,26.48,R,ADI Global,No
Http://opendatacommunities.org/id/metropolitan-district-council/leeds,Leeds City Council,31/08/2021,Resources and Housing,Leeds Building Services,Supplies and Services,Operational Materials,205,03/08/2021,2108-00352,0.00,387.84,R,ADI Global,No
Http://opendatacommunities.org/id/metropolitan-district-council/leeds,Leeds City Council,31/08/2021,Communities and Environment,Benefits Welfare and Poverty,Supplies and Services,Grant Related Expenditure,290,16/08/2021,2108-00353,0.00,500.00,R,REDACTED PERSONAL DATA,No
Http://opendatacommunities.org/id/metropolitan-district-council/leeds,Leeds City Council,31/08/2021,Insurance,Insurance,Supplies and Services,Insurance Claims,248,05/08/2021,2108-00354,0.00,160.00,R,Admiral Law,No
Http://opendatacommunities.org/id/metropolitan-district-council/leeds,Leeds City Council,31/08/2021,Resources and Housing,Sustainable Energy & Climate Change,Capital,OTHER COSTS,7,20/08/2021,2108-00355,0.00,2100.00,C,REDACTED COMMERCIAL CONFIDENTIALITY,No
Http://opendatacommunities.org/id/metropolitan-district-council/leeds,Leeds City Council,31/08/2021,Communities and Environment,Benefits Welfare and Poverty,Supplies and Services,Grant Related Expenditure,298,04/08/2021,2108-00356,0.00,500.00,R,REDACTED PERSONAL DATA,No
Http://opendatacommunities.org/id/metropolitan-district-council/leeds,Leeds City Council,31/08/2021,City Development,Libraries Arts & Heritage,Supplies and Services,Computer Software & Equipment,214,02/07/2021,2108-00357,0.00,41.62,R,Adobe Creative Cloud,Yes
Http://opendatacommunities.org/id/metropolitan-district-council/leeds,Leeds City Council,31/08/2021,City Development,Highways,Supplies and Services,Computer Software & Equipment,214,13/07/2021,2108-00358,0.00,84.29,R,Adobe Products,Yes
Http://opendatacommunities.org/id/metropolitan-district-council/leeds,Leeds City Council,31/08/2021,Children and Families,Social Care,Agency Payments,Independent Fostering Agencies,509,05/08/2021,2108-00359,0.00,3450.00,R,Adolescent And Childrens Trust,No
Http://opendatacommunities.org/id/metropolitan-district-council/leeds,Leeds City Council,31/08/2021,Children and Families,Social Care,Agency Payments,Independent Fostering Agencies,509,05/08/2021,2108-00360,0.00,3450.00,R,Adolescent And Childrens Trust,No
Http://opendatacommunities.org/id/metropolitan-district-council/leeds,Leeds City Council,31/08/2021,Children and Families,Social Care,Agency Payments,Independent Fostering Agencies,509,05/08/2021,2108-00361,0.00,3450.00,R,Adolescent And Childrens Trust,No
Http://opendatacommunities.org/id/metropolitan-district-council/leeds,Leeds City Council,31/08/2021,Children and Families,Social Care,Agency Payments,Independent Fostering Agencies,509,05/08/2021,2108-00362,0.00,3630.00,R,Adolescent And Childrens Trust,No
Http://opendatacommunities.org/id/metropolitan-district-council/leeds,Leeds City Council,31/08/2021,Children and Families,Social Care,Agency Payments,Independent Fostering Agencies,509,05/08/2021,2108-00363,0.00,3630.00,R,Adolescent And Childrens Trust,No
Http://opendatacommunities.org/id/metropolitan-district-council/leeds,Leeds City Council,31/08/2021,Children and Families,Social Care,Agency Payments,Independent Fostering Agencies,509,05/08/2021,2108-00364,0.00,3450.00,R,Adolescent And Childrens Trust,No
Http://opendatacommunities.org/id/metropolitan-district-council/leeds,Leeds City Council,31/08/2021,Children and Families,Social Care,Agency Payments,Independent Fostering Agencies,509,05/08/2021,2108-00365,0.00,4440.00,R,Adolescent And Childrens Trust,No
Http://opendatacommunities.org/id/metropolitan-district-council/leeds,Leeds City Council,31/08/2021,Children and Families,Social Care,Agency Payments,Independent Fostering Agencies,509,05/08/2021,2108-00366,0.00,3630.00,R,Adolescent And Childrens Trust,No
Http://opendatacommunities.org/id/metropolitan-district-council/leeds,Leeds City Council,31/08/2021,Children and Families,Social Care,Agency Payments,Independent Fostering Agencies,509,05/08/2021,2108-00367,0.00,3630.00,R,Adolescent And Childrens Trust,No
Http://opendatacommunities.org/id/metropolitan-district-council/leeds,Leeds City Council,31/08/2021,Children and Families,Social Care,Agency Payments,Independent Fostering Agencies,509,31/08/2021,2108-00368,0.00,1489.41,R,Adolescent And Childrens Trust,No
Http://opendatacommunities.org/id/metropolitan-district-council/leeds,Leeds City Council,31/08/2021,Adults and Health,Services For Adults Under 65 Mental/Dis,Agency Payments,Home Care,568,04/08/2021,2108-00369,0.00,165.00,R,Adopt Healthcare,No
Http://opendatacommunities.org/id/metropolitan-district-council/leeds,Leeds City Council,31/08/2021,Adults and Health,Services For Adults Under 65 Mental/Dis,Agency Payments,Home Care,568,12/08/2021,2108-00370,0.00,198.00,R,Adopt Healthcare,No
Http://opendatacommunities.org/id/metropolitan-district-council/leeds,Leeds City Council,31/08/2021,Adults and Health,Other Adult Services,Agency Payments,Nursing Home,570,16/08/2021,2108-00371,0.00,49.84,R,Adopt Healthcare,No
Http://opendatacommunities.org/id/metropolitan-district-council/leeds,Leeds City Council,31/08/2021,Adults and Health,Services For Adults Under 65 Mental/Dis,Agency Payments,Home Care,568,18/08/2021,2108-00372,0.00,198.00,R,Adopt Healthcare,No
Http://opendatacommunities.org/id/metropolitan-district-council/leeds,Leeds City Council,31/08/2021,Adults and Health,Services For Adults Under 65 Mental/Dis,Agency Payments,Home Care,568,25/08/2021,2108-00373,0.00,165.00,R,Adopt Healthcare,No
Http://opendatacommunities.org/id/metropolitan-district-council/leeds,Leeds City Council,31/08/2021,Children and Families,Social Care,Agency Payments,Placement Support,550,06/08/2021,2108-00374,0.00,21.15,R,REDACTED PERSONAL DATA,No
Http://opendatacommunities.org/id/metropolitan-district-council/leeds,Leeds City Council,31/08/2021,Children and Families,Social Care,Agency Payments,Contact,548,13/08/2021,2108-00375,0.00,21.15,R,REDACTED PERSONAL DATA,No
Http://opendatacommunities.org/id/metropolitan-district-council/leeds,Leeds City Council,31/08/2021,Children and Families,Social Care,Agency Payments,Placement Support,550,20/08/2021,2108-00376,0.00,21.15,R,REDACTED PERSONAL DATA,No
Http://opendatacommunities.org/id/metropolitan-district-council/leeds,Leeds City Council,31/08/2021,Children and Families,Social Care,Agency Payments,Placement Support,550,27/08/2021,2108-00377,0.00,21.15,R,REDACTED PERSONAL DATA,No
Http://opendatacommunities.org/id/metropolitan-district-council/leeds,Leeds City Council as Accountable Body,31/08/2021,Social Services Pooled Budgets,Jcs For People With Learning Disabilitie,Agency Payments,Residential,580,25/08/2021,2108-00378,0.00,2609.36,R,ADRIAN HOUSE,No
Http://opendatacommunities.org/id/metropolitan-district-council/leeds,Leeds City Council as Accountable Body,31/08/2021,Social Services Pooled Budgets,Jcs For People With Learning Disabilitie,Agency Payments,Residential,580,25/08/2021,2108-00379,0.00,2609.36,R,ADRIAN HOUSE,No
Http://opendatacommunities.org/id/metropolitan-district-council/leeds,Leeds City Council as Accountable Body,31/08/2021,Social Services Pooled Budgets,Jcs For People With Learning Disabilitie,Agency Payments,Residential,580,25/08/2021,2108-00380,0.00,2609.36,R,ADRIAN HOUSE,No
Http://opendatacommunities.org/id/metropolitan-district-council/leeds,Leeds City Council,31/08/2021,Children and Families,Social Care,Agency Payments,Placement Support,550,26/08/2021,2108-00381,0.00,200.00,R,REDACTED PERSONAL DATA,No
Http://opendatacommunities.org/id/metropolitan-district-council/leeds,Leeds City Council,31/08/2021,Communities and Environment,Benefits Welfare and Poverty,Supplies and Services,Grant Related Expenditure,298,02/08/2021,2108-00382,0.00,500.00,R,REDACTED PERSONAL DATA,No
Http://opendatacommunities.org/id/metropolitan-district-council/leeds,Leeds City Council,31/08/2021,Children and Families,Social Care,Internal Recharges,Legal Disbursements,411,04/08/2021,2108-00383,0.00,-1719.44,R,ADVANCED CHILD CARE ASSESSMENTS LTD,No
Http://opendatacommunities.org/id/metropolitan-district-council/leeds,Leeds City Council,31/08/2021,Children and Families,Social Care,Internal Recharges,Legal Disbursements,411,04/08/2021,2108-00384,0.00,3396.20,R,ADVANCED CHILD CARE ASSESSMENTS LTD,No
Http://opendatacommunities.org/id/metropolitan-district-council/leeds,Leeds City Council as Accountable Body,31/08/2021,Social Services Pooled Budgets,Jcs For People With Learning Disabilitie,Agency Payments,Home Care,568,06/08/2021,2108-00385,0.00,3269.42,R,Advantage Healthcare Ltd,No
Http://opendatacommunities.org/id/metropolitan-district-council/leeds,Leeds City Council as Accountable Body,31/08/2021,Social Services Pooled Budgets,Jcs For People With Learning Disabilitie,Agency Payments,Home Care,568,13/08/2021,2108-00386,0.00,1294.30,R,Advantage Healthcare Ltd,No
Http://opendatacommunities.org/id/metropolitan-district-council/leeds,Leeds City Council as Accountable Body,31/08/2021,Social Services Pooled Budgets,Jcs For People With Learning Disabilitie,Agency Payments,Home Care,568,17/08/2021,2108-00387,0.00,2242.50,R,Advantage Healthcare Ltd,No
Http://opendatacommunities.org/id/metropolitan-district-council/leeds,Leeds City Council as Accountable Body,31/08/2021,Social Services Pooled Budgets,Jcs For People With Learning Disabilitie,Agency Payments,Home Care,568,17/08/2021,2108-00388,0.00,2415.00,R,Advantage Healthcare Ltd,No
Http://opendatacommunities.org/id/metropolitan-district-council/leeds,Leeds City Council as Accountable Body,31/08/2021,Social Services Pooled Budgets,Jcs For People With Learning Disabilitie,Agency Payments,Home Care,568,17/08/2021,2108-00389,0.00,2328.75,R,Advantage Healthcare Ltd,No
Http://opendatacommunities.org/id/metropolitan-district-council/leeds,Leeds City Council as Accountable Body,31/08/2021,Social Services Pooled Budgets,Jcs For People With Learning Disabilitie,Agency Payments,Home Care,568,17/08/2021,2108-00390,0.00,2846.25,R,Advantage Healthcare Ltd,No
Http://opendatacommunities.org/id/metropolitan-district-council/leeds,Leeds City Council as Accountable Body,31/08/2021,Social Services Pooled Budgets,Jcs For People With Learning Disabilitie,Agency Payments,Home Care,568,17/08/2021,2108-00391,0.00,2328.75,R,Advantage Healthcare Ltd,No
Http://opendatacommunities.org/id/metropolitan-district-council/leeds,Leeds City Council as Accountable Body,31/08/2021,Social Services Pooled Budgets,Jcs For People With Learning Disabilitie,Agency Payments,Home Care,568,20/08/2021,2108-00392,0.00,1611.40,R,Advantage Healthcare Ltd,No
Http://opendatacommunities.org/id/metropolitan-district-council/leeds,Leeds City Council as Accountable Body,31/08/2021,Social Services Pooled Budgets,Jcs For People With Learning Disabilitie,Agency Payments,Home Care,568,23/08/2021,2108-00393,0.00,2242.50,R,Advantage Healthcare Ltd,No
Http://opendatacommunities.org/id/metropolitan-district-council/leeds,Leeds City Council as Accountable Body,31/08/2021,Social Services Pooled Budgets,Jcs For People With Learning Disabilitie,Agency Payments,Residential,580,18/08/2021,2108-00394,0.00,17105.76,R,ADVITAM LTD,No
Http://opendatacommunities.org/id/metropolitan-district-council/leeds,Leeds City Council,31/08/2021,Adults and Health,Services For Older People - 65 And Over,Agency Payments,Payments To Voluntary Organisations,561,06/08/2021,2108-00395,0.00,103916.67,R,Advonet,No
Http://opendatacommunities.org/id/metropolitan-district-council/leeds,Leeds City Council,31/08/2021,Adults and Health,Services For Adults Under 65 Mental/Dis,Agency Payments,Fees - Level 4,520,12/08/2021,2108-00396,0.00,198.00,R,AE BIA Assessments Limited,No
Http://opendatacommunities.org/id/metropolitan-district-council/leeds,Leeds City Council,31/08/2021,Adults and Health,Services For Adults Under 65 Mental/Dis,Agency Payments,Fees - Level 4,520,12/08/2021,2108-00397,0.00,198.00,R,AE BIA Assessments Limited,No
Http://opendatacommunities.org/id/metropolitan-district-council/leeds,Leeds City Council,31/08/2021,Adults and Health,Services For Adults Under 65 Mental/Dis,Agency Payments,Fees - Level 4,520,12/08/2021,2108-00398,0.00,198.00,R,AE BIA Assessments Limited,No
Http://opendatacommunities.org/id/metropolitan-district-council/leeds,Leeds City Council,31/08/2021,City Development,Highways,Capital,OTHER COSTS,7,11/08/2021,2108-00399,0.00,33771.25,C,Aecom Limited,No
Http://opendatacommunities.org/id/metropolitan-district-council/leeds,Leeds City Council,31/08/2021,City Development,Highways,Capital,OTHER COSTS,7,16/08/2021,2108-00400,0.00,41506.22,C,Aecom Limited,No
Http://opendatacommunities.org/id/metropolitan-district-council/leeds,Leeds City Council,31/08/2021,City Development,Highways,Capital,OTHER COSTS,7,31/08/2021,2108-00401,0.00,50240.51,C,Aecom Limited,No
Http://opendatacommunities.org/id/metropolitan-district-council/leeds,Leeds City Council,31/08/2021,Adults and Health,Services For Adults Under 65 Mental/Dis,Agency Payments,Home Care,568,05/08/2021,2108-00402,0.00,1818.50,R,Aegis Care Solutions Ltd,No
Http://opendatacommunities.org/id/metropolitan-district-council/leeds,Leeds City Council,31/08/2021,Adults and Health,Services For Adults Under 65 Mental/Dis,Agency Payments,Home Care,568,05/08/2021,2108-00403,0.00,1184.60,R,Aegis Care Solutions Ltd,No
Http://opendatacommunities.org/id/metropolitan-district-council/leeds,Leeds City Council,31/08/2021,Adults and Health,Services For Adults Under 65 Mental/Dis,Agency Payments,Home Care,568,05/08/2021,2108-00404,0.00,4096.00,R,Aegis Care Solutions Ltd,No
Http://opendatacommunities.org/id/metropolitan-district-council/leeds,Leeds City Council,31/08/2021,Adults and Health,Services For Adults Under 65 Mental/Dis,Agency Payments,Home Care,568,05/08/2021,2108-00405,0.00,1263.00,R,Aegis Care Solutions Ltd,No
Http://opendatacommunities.org/id/metropolitan-district-council/leeds,Leeds City Council,31/08/2021,Adults and Health,Services For Adults Under 65 Mental/Dis,Agency Payments,Home Care,568,05/08/2021,2108-00406,0.00,946.37,R,Aegis Care Solutions Ltd,No
Http://opendatacommunities.org/id/metropolitan-district-council/leeds,Leeds City Council,31/08/2021,Adults and Health,Services For Adults Under 65 Mental/Dis,Agency Payments,Home Care,568,05/08/2021,2108-00407,0.00,284.80,R,Aegis Care Solutions Ltd,No
Http://opendatacommunities.org/id/metropolitan-district-council/leeds,Leeds City Council,31/08/2021,Adults and Health,Services For Adults Under 65 Mental/Dis,Agency Payments,Home Care,568,05/08/2021,2108-00408,0.00,1100.00,R,Aegis Care Solutions Ltd,No
Http://opendatacommunities.org/id/metropolitan-district-council/leeds,Leeds City Council,31/08/2021,Adults and Health,Services For Adults Under 65 Mental/Dis,Agency Payments,Home Care,568,05/08/2021,2108-00409,0.00,1941.39,R,Aegis Care Solutions Ltd,No
Http://opendatacommunities.org/id/metropolitan-district-council/leeds,Leeds City Council,31/08/2021,Adults and Health,Services For Older People - 65 And Over,Agency Payments,Home Care,568,11/08/2021,2108-00410,0.00,24418.40,R,Aegis Care Solutions Ltd,No
Http://opendatacommunities.org/id/metropolitan-district-council/leeds,Leeds City Council,31/08/2021,Adults and Health,Services For Older People - 65 And Over,Agency Payments,HCAIT Other,577,11/08/2021,2108-00411,0.00,349.92,R,Aegis Care Solutions Ltd,No
Http://opendatacommunities.org/id/metropolitan-district-council/leeds,Leeds City Council,31/08/2021,Adults and Health,Services For Older People Under 65 P/Dis,Agency Payments,Home Care,568,11/08/2021,2108-00412,0.00,8708.40,R,Aegis Care Solutions Ltd,No
Http://opendatacommunities.org/id/metropolitan-district-council/leeds,Leeds City Council,31/08/2021,Adults and Health,Services For Older People Under 65 P/Dis,Agency Payments,HCAIT Community Support,575,11/08/2021,2108-00413,0.00,29.16,R,Aegis Care Solutions Ltd,No
Http://opendatacommunities.org/id/metropolitan-district-council/leeds,Leeds City Council as Accountable Body,31/08/2021,Social Services Pooled Budgets,Jcs For People With Learning Disabilitie,Agency Payments,Home Care,568,11/08/2021,2108-00414,0.00,1977.92,R,Aegis Care Solutions Ltd,No
Http://opendatacommunities.org/id/metropolitan-district-council/leeds,Leeds City Council,31/08/2021,Adults and Health,Services For Adults Under 65 Mental/Dis,Agency Payments,Home Care,568,12/08/2021,2108-00415,0.00,178.00,R,Aegis Care Solutions Ltd,No
Http://opendatacommunities.org/id/metropolitan-district-council/leeds,Leeds City Council,31/08/2021,Adults and Health,Services For Adults Under 65 Mental/Dis,Agency Payments,Home Care,568,23/08/2021,2108-00416,0.00,1548.60,R,Aegis Care Solutions Ltd,No
Http://opendatacommunities.org/id/metropolitan-district-council/leeds,Leeds City Council,31/08/2021,City Development,Economic Development,Supplies and Services,Grant Related Expenditure,290,03/08/2021,2108-00417,0.00,1937.00,R,Aeroservices Ltd,No
Http://opendatacommunities.org/id/metropolitan-district-council/leeds,Leeds City Council,31/08/2021,City Development,Libraries Arts & Heritage,Supplies and Services,Operational Materials,205,04/08/2021,2108-00418,0.00,310.00,R,Aesg Ltd,No
Http://opendatacommunities.org/id/metropolitan-district-council/leeds,Leeds City Council,31/08/2021,City Development,Libraries Arts & Heritage,Supplies and Services,Other Hired And Contracted Services,265,06/08/2021,2108-00419,0.00,660.00,R,Aesg Ltd,No
Http://opendatacommunities.org/id/metropolitan-district-council/leeds,Leeds City Council,31/08/2021,Adults and Health,Services For Older People - 65 And Over,Agency Payments,Home Care,568,02/08/2021,2108-00420,0.00,479.40,R,Affinity Trust,No
Http://opendatacommunities.org/id/metropolitan-district-council/leeds,Leeds City Council,31/08/2021,Adults and Health,Services For Older People - 65 And Over,Agency Payments,Home Care,568,02/08/2021,2108-00421,0.00,503.37,R,Affinity Trust,No
Http://opendatacommunities.org/id/metropolitan-district-council/leeds,Leeds City Council,31/08/2021,Adults and Health,Assessment And Care Management,Agency Payments,Home Care,568,04/08/2021,2108-00422,0.00,133.92,R,Affinity Trust,No
Http://opendatacommunities.org/id/metropolitan-district-council/leeds,Leeds City Council,31/08/2021,Adults and Health,Services For Adults Under 65 Mental/Dis,Agency Payments,Home Care,568,04/08/2021,2108-00423,0.00,535.68,R,Affinity Trust,No
Http://opendatacommunities.org/id/metropolitan-district-council/leeds,Leeds City Council,31/08/2021,Adults and Health,Services For Adults Under 65 Mental/Dis,Agency Payments,HCAIT Community Support,575,04/08/2021,2108-00424,0.00,334.80,R,Affinity Trust,No
Http://opendatacommunities.org/id/metropolitan-district-council/leeds,Leeds City Council,31/08/2021,Adults and Health,Services For Older People - 65 And Over,Agency Payments,HCAIT Community Support,575,04/08/2021,2108-00425,0.00,602.64,R,Affinity Trust,No
Http://opendatacommunities.org/id/metropolitan-district-council/leeds,Leeds City Council,31/08/2021,Adults and Health,Services For Older People Under 65 P/Dis,Agency Payments,Home Care,568,04/08/2021,2108-00426,0.00,803.52,R,Affinity Trust,No
Http://opendatacommunities.org/id/metropolitan-district-council/leeds,Leeds City Council,31/08/2021,Adults and Health,Services For Older People Under 65 P/Dis,Agency Payments,HCAIT Community Support,575,04/08/2021,2108-00427,0.00,719.82,R,Affinity Trust,No
Http://opendatacommunities.org/id/metropolitan-district-council/leeds,Leeds City Council as Accountable Body,31/08/2021,Social Services Pooled Budgets,Jcs For People With Learning Disabilitie,Agency Payments,Home Care,568,04/08/2021,2108-00428,0.00,334.80,R,Affinity Trust,No
Http://opendatacommunities.org/id/metropolitan-district-council/leeds,Leeds City Council,31/08/2021,Adults and Health,Other Adult Services,Agency Payments,Nursing Home,570,16/08/2021,2108-00429,0.00,3937.36,R,Affinity Trust,No
Http://opendatacommunities.org/id/metropolitan-district-council/leeds,Leeds City Council as Accountable Body,31/08/2021,Social Services Pooled Budgets,Jcs For People With Learning Disabilitie,Agency Payments,Day Centre,564,16/08/2021,2108-00430,0.00,-178.88,R,Affinity Trust,No
Http://opendatacommunities.org/id/metropolitan-district-council/leeds,Leeds City Council as Accountable Body,31/08/2021,Social Services Pooled Budgets,Jcs For People With Learning Disabilitie,Agency Payments,Day Centre,564,16/08/2021,2108-00431,0.00,-176.26,R,Affinity Trust,No
Http://opendatacommunities.org/id/metropolitan-district-council/leeds,Leeds City Council as Accountable Body,31/08/2021,Social Services Pooled Budgets,Jcs For People With Learning Disabilitie,Agency Payments,Day Centre,564,18/08/2021,2108-00432,0.00,15207.00,R,Affinity Trust,No
Http://opendatacommunities.org/id/metropolitan-district-council/leeds,Leeds City Council as Accountable Body,31/08/2021,Social Services Pooled Budgets,Jcs For People With Learning Disabilitie,Agency Payments,Day Centre,564,18/08/2021,2108-00433,0.00,14973.93,R,Affinity Trust,No
Http://opendatacommunities.org/id/metropolitan-district-council/leeds,Leeds City Council as Accountable Body,31/08/2021,Social Services Pooled Budgets,Jcs For People With Learning Disabilitie,Agency Payments,Day Centre,564,19/08/2021,2108-00434,0.00,31486.55,R,Affinity Trust,No
Http://opendatacommunities.org/id/metropolitan-district-council/leeds,Leeds City Council as Accountable Body,31/08/2021,Social Services Pooled Budgets,Jcs For People With Learning Disabilitie,Agency Payments,Day Centre,564,20/08/2021,2108-00435,0.00,13000.00,R,Affinity Trust,No
Http://opendatacommunities.org/id/metropolitan-district-council/leeds,Leeds City Council as Accountable Body,31/08/2021,Social Services Pooled Budgets,Jcs For People With Learning Disabilitie,Agency Payments,Day Centre,564,20/08/2021,2108-00436,0.00,14319.00,R,Affinity Trust,No
Http://opendatacommunities.org/id/metropolitan-district-council/leeds,Leeds City Council as Accountable Body,31/08/2021,Social Services Pooled Budgets,Jcs For People With Learning Disabilitie,Agency Payments,Day Centre,564,20/08/2021,2108-00437,0.00,9142.77,R,Affinity Trust,No
Http://opendatacommunities.org/id/metropolitan-district-council/leeds,Leeds City Council,31/08/2021,Adults and Health,Services For Older People - 65 And Over,Agency Payments,Home Care,568,24/08/2021,2108-00438,0.00,535.68,R,Affinity Trust,No
Http://opendatacommunities.org/id/metropolitan-district-council/leeds,Leeds City Council,31/08/2021,Adults and Health,Services For Adults Under 65 Mental/Dis,Agency Payments,Home Care,568,24/08/2021,2108-00439,0.00,1071.36,R,Affinity Trust,No
Http://opendatacommunities.org/id/metropolitan-district-council/leeds,Leeds City Council,31/08/2021,Adults and Health,Assessment And Care Management,Agency Payments,Home Care,568,25/08/2021,2108-00440,0.00,133.92,R,Affinity Trust,No
Http://opendatacommunities.org/id/metropolitan-district-council/leeds,Leeds City Council,31/08/2021,Adults and Health,Services For Adults Under 65 Mental/Dis,Agency Payments,Home Care,568,25/08/2021,2108-00441,0.00,535.68,R,Affinity Trust,No
Http://opendatacommunities.org/id/metropolitan-district-council/leeds,Leeds City Council,31/08/2021,Adults and Health,Services For Adults Under 65 Mental/Dis,Agency Payments,HCAIT Community Support,575,25/08/2021,2108-00442,0.00,334.80,R,Affinity Trust,No
Http://opendatacommunities.org/id/metropolitan-district-council/leeds,Leeds City Council,31/08/2021,Adults and Health,Services For Older People - 65 And Over,Agency Payments,HCAIT Community Support,575,25/08/2021,2108-00443,0.00,602.64,R,Affinity Trust,No
Http://opendatacommunities.org/id/metropolitan-district-council/leeds,Leeds City Council,31/08/2021,Adults and Health,Services For Older People Under 65 P/Dis,Agency Payments,Home Care,568,25/08/2021,2108-00444,0.00,803.52,R,Affinity Trust,No
Http://opendatacommunities.org/id/metropolitan-district-council/leeds,Leeds City Council,31/08/2021,Adults and Health,Services For Older People Under 65 P/Dis,Agency Payments,HCAIT Community Support,575,25/08/2021,2108-00445,0.00,736.56,R,Affinity Trust,No
Http://opendatacommunities.org/id/metropolitan-district-council/leeds,Leeds City Council as Accountable Body,31/08/2021,Social Services Pooled Budgets,Jcs For People With Learning Disabilitie,Agency Payments,Home Care,568,25/08/2021,2108-00446,0.00,334.80,R,Affinity Trust,No
Http://opendatacommunities.org/id/metropolitan-district-council/leeds,Leeds City Council as Accountable Body,31/08/2021,Social Services Pooled Budgets,Jcs For People With Learning Disabilitie,Agency Payments,Sheltered Accommodation,569,18/08/2021,2108-00447,0.00,188160.17,R,Affinity Trust North Divisional Office,No
Http://opendatacommunities.org/id/metropolitan-district-council/leeds,Leeds City Council,31/08/2021,Communities Housing and Environment,Parks And Countryside,Transport,Hire Of Movable Plant & Machinery,315,07/07/2021,2108-00448,0.00,950.00,R,Afi Uplift,Yes
Http://opendatacommunities.org/id/metropolitan-district-council/leeds,Leeds City Council,31/08/2021,Communities Housing and Environment,Parks And Countryside,Transport,Hire Of Movable Plant & Machinery,315,07/07/2021,2108-00449,0.00,950.00,R,Afi Uplift,Yes
Http://opendatacommunities.org/id/metropolitan-district-council/leeds,Leeds City Council,31/08/2021,Communities Housing and Environment,Parks And Countryside,Transport,Hire Of Movable Plant & Machinery,315,07/07/2021,2108-00450,0.00,950.00,R,Afi Uplift,Yes
Http://opendatacommunities.org/id/metropolitan-district-council/leeds,Leeds City Council,31/08/2021,Communities Housing and Environment,Parks And Countryside,Transport,Hire Of Movable Plant & Machinery,315,07/07/2021,2108-00451,0.00,950.00,R,Afi Uplift,Yes
Http://opendatacommunities.org/id/metropolitan-district-council/leeds,Leeds City Council,31/08/2021,City Development,Economic Development,Supplies and Services,Grant Related Expenditure,290,02/08/2021,2108-00452,0.00,8000.00,R,AFP Digital Ltd,No
Http://opendatacommunities.org/id/metropolitan-district-council/leeds,Leeds City Council,31/08/2021,Children and Families,Social Care,Supplies and Services,General Amenity For Clients/Residents,285,06/07/2021,2108-00453,0.00,67.11,R,Age Co Iadvisors,Yes
Http://opendatacommunities.org/id/metropolitan-district-council/leeds,Leeds City Council,31/08/2021,Adults and Health,Public Health,Agency Payments,Services Rendered By Voluntary Sector,505,05/08/2021,2108-00454,0.00,30000.00,R,Age Uk Leeds,No
Http://opendatacommunities.org/id/metropolitan-district-council/leeds,Leeds City Council,31/08/2021,Communities and Environment,Customer Access,Supplies and Services,Other Hired And Contracted Services,265,24/08/2021,2108-00455,0.00,75.00,R,Agency For Good Ltd,No
Http://opendatacommunities.org/id/metropolitan-district-council/leeds,Leeds City Council,31/08/2021,Communities and Environment,Benefits Welfare and Poverty,Supplies and Services,Grant Related Expenditure,290,13/08/2021,2108-00456,0.00,500.00,R,REDACTED PERSONAL DATA,No
Http://opendatacommunities.org/id/metropolitan-district-council/leeds,Leeds City Council,31/08/2021,Communities and Environment,Benefits Welfare and Poverty,Supplies and Services,Grant Related Expenditure,290,06/08/2021,2108-00457,0.00,500.00,R,REDACTED PERSONAL DATA,No
Http://opendatacommunities.org/id/metropolitan-district-council/leeds,Leeds City Council,31/08/2021,Communities and Environment,Benefits Welfare and Poverty,Supplies and Services,Grant Related Expenditure,298,27/08/2021,2108-00458,0.00,500.00,R,REDACTED PERSONAL DATA,No
Http://opendatacommunities.org/id/metropolitan-district-council/leeds,Leeds City Council,31/08/2021,Resources and Housing,Sustainable Energy & Air Quality,Internal Recharges,Corporate Communications,415,06/08/2021,2108-00459,0.00,4300.00,R,Ahead Partnership Ltd,No
Http://opendatacommunities.org/id/metropolitan-district-council/leeds,Leeds City Council,31/08/2021,City Development,Economic Development,Supplies and Services,Consultancy Services,259,19/08/2021,2108-00460,0.00,5000.00,R,Ahead Partnership Ltd,No
Http://opendatacommunities.org/id/metropolitan-district-council/leeds,Leeds City Council,31/08/2021,City Development,Economic Development,Supplies and Services,Grant Related Expenditure,290,11/08/2021,2108-00461,0.00,250.00,R,Ahmed Ali,No
Http://opendatacommunities.org/id/metropolitan-district-council/leeds,Leeds City Council,31/08/2021,Communities and Environment,Benefits Welfare and Poverty,Supplies and Services,Grant Related Expenditure,298,11/08/2021,2108-00462,0.00,500.00,R,REDACTED PERSONAL DATA,No
Http://opendatacommunities.org/id/metropolitan-district-council/leeds,Leeds City Council,31/08/2021,Adults and Health,Services For Older People - 65 And Over,Supplies and Services,Operational Furniture And Equipment,203,06/08/2021,2108-00463,0.00,5.40,R,AIDAPT BATHROOMS LTD,No
Http://opendatacommunities.org/id/metropolitan-district-council/leeds,Leeds City Council as Accountable Body,31/08/2021,Social Services Pooled Budgets,Leeds Community Equip Store Pooled Budgt,Supplies and Services,Other Equipment,203,13/08/2021,2108-00464,0.00,576.00,R,AIDAPT BATHROOMS LTD,No
Http://opendatacommunities.org/id/metropolitan-district-council/leeds,Leeds City Council as Accountable Body,31/08/2021,Social Services Pooled Budgets,Leeds Community Equip Store Pooled Budgt,Supplies and Services,Other Equipment,203,18/08/2021,2108-00465,0.00,840.00,R,AIDAPT BATHROOMS LTD,No
Http://opendatacommunities.org/id/metropolitan-district-council/leeds,Leeds City Council as Accountable Body,31/08/2021,Social Services Pooled Budgets,Leeds Community Equip Store Pooled Budgt,Supplies and Services,Other Equipment,203,18/08/2021,2108-00466,0.00,130.00,R,AIDAPT BATHROOMS LTD,No
Http://opendatacommunities.org/id/metropolitan-district-council/leeds,Leeds City Council as Accountable Body,31/08/2021,Social Services Pooled Budgets,Leeds Community Equip Store Pooled Budgt,Supplies and Services,Other Equipment,203,18/08/2021,2108-00467,0.00,640.00,R,AIDAPT BATHROOMS LTD,No
Http://opendatacommunities.org/id/metropolitan-district-council/leeds,Leeds City Council as Accountable Body,31/08/2021,Social Services Pooled Budgets,Leeds Community Equip Store Pooled Budgt,Supplies and Services,Other Equipment,203,18/08/2021,2108-00468,0.00,175.00,R,AIDAPT BATHROOMS LTD,No
Http://opendatacommunities.org/id/metropolitan-district-council/leeds,Leeds City Council as Accountable Body,31/08/2021,Social Services Pooled Budgets,Leeds Community Equip Store Pooled Budgt,Supplies and Services,Other Equipment,203,27/08/2021,2108-00469,0.00,562.70,R,AIDAPT BATHROOMS LTD,No
Http://opendatacommunities.org/id/metropolitan-district-council/leeds,Leeds City Council as Accountable Body,31/08/2021,Social Services Pooled Budgets,Leeds Community Equip Store Pooled Budgt,Supplies and Services,Other Equipment,203,27/08/2021,2108-00470,0.00,430.00,R,AIDAPT BATHROOMS LTD,No
Http://opendatacommunities.org/id/metropolitan-district-council/leeds,Leeds City Council as Accountable Body,31/08/2021,Social Services Pooled Budgets,Leeds Community Equip Store Pooled Budgt,Supplies and Services,Other Equipment,203,27/08/2021,2108-00471,0.00,2150.00,R,AIDAPT BATHROOMS LTD,No
Http://opendatacommunities.org/id/metropolitan-district-council/leeds,Leeds City Council,31/08/2021,Children and Families,Social Care,Appropriations,Leaving Care Allowances,634,03/08/2021,2108-00472,0.00,50.00,R,REDACTED PERSONAL DATA,No
Http://opendatacommunities.org/id/metropolitan-district-council/leeds,Leeds City Council,31/08/2021,Communities and Environment,Benefits Welfare and Poverty,Supplies and Services,Grant Related Expenditure,298,25/08/2021,2108-00473,0.00,500.00,R,REDACTED PERSONAL DATA,No
Http://opendatacommunities.org/id/metropolitan-district-council/leeds,Leeds City Council,31/08/2021,Children and Families,Partnerships & Health,Supplies and Services,Conference Meetings,253,24/08/2021,2108-00474,0.00,325.00,R,AIM PROJECT,No
Http://opendatacommunities.org/id/metropolitan-district-council/leeds,Leeds City Council,31/08/2021,Communities and Environment,Benefits Welfare and Poverty,Supplies and Services,Grant Related Expenditure,290,16/08/2021,2108-00475,0.00,500.00,R,REDACTED PERSONAL DATA,No
Http://opendatacommunities.org/id/metropolitan-district-council/leeds,Leeds City Council,31/08/2021,Communities and Environment,Benefits Welfare and Poverty,Supplies and Services,Grant Related Expenditure,290,16/08/2021,2108-00476,0.00,500.00,R,REDACTED PERSONAL DATA,No
Http://opendatacommunities.org/id/metropolitan-district-council/leeds,Leeds City Council,31/08/2021,Communities and Environment,Benefits Welfare and Poverty,Supplies and Services,Grant Related Expenditure,290,02/08/2021,2108-00477,0.00,500.00,R,REDACTED PERSONAL DATA,No
Http://opendatacommunities.org/id/metropolitan-district-council/leeds,Leeds City Council,31/08/2021,Communities and Environment,Benefits Welfare and Poverty,Supplies and Services,Grant Related Expenditure,298,13/08/2021,2108-00478,0.00,500.00,R,REDACTED PERSONAL DATA,No
Http://opendatacommunities.org/id/metropolitan-district-council/leeds,Leeds City Council,31/08/2021,Communities and Environment,Benefits Welfare and Poverty,Supplies and Services,Grant Related Expenditure,290,12/08/2021,2108-00479,0.00,500.00,R,REDACTED PERSONAL DATA,No
Http://opendatacommunities.org/id/metropolitan-district-council/leeds,Leeds City Council,31/08/2021,Communities and Environment,Benefits Welfare and Poverty,Supplies and Services,Grant Related Expenditure,290,12/08/2021,2108-00480,0.00,500.00,R,REDACTED PERSONAL DATA,No
Http://opendatacommunities.org/id/metropolitan-district-council/leeds,Leeds City Council,31/08/2021,Communities and Environment,Benefits Welfare and Poverty,Supplies and Services,Grant Related Expenditure,298,19/08/2021,2108-00481,0.00,500.00,R,REDACTED PERSONAL DATA,No
Http://opendatacommunities.org/id/metropolitan-district-council/leeds,Leeds City Council,31/08/2021,Children and Families,Social Care,Agency Payments,Section 17,551,13/08/2021,2108-00482,0.00,20.00,R,REDACTED PERSONAL DATA,No
Http://opendatacommunities.org/id/metropolitan-district-council/leeds,Leeds City Council,31/08/2021,Communities and Environment,Environmental Health,Supplies and Services,Other Hired And Contracted Services,265,27/08/2021,2108-00483,0.00,11.25,R,AIR LIQUIDE UK,No
Http://opendatacommunities.org/id/metropolitan-district-council/leeds,Leeds City Council,31/08/2021,Communities and Environment,Environmental Health,Supplies and Services,Other Hired And Contracted Services,265,27/08/2021,2108-00484,0.00,17.38,R,AIR LIQUIDE UK,No
Http://opendatacommunities.org/id/metropolitan-district-council/leeds,Leeds City Council,31/08/2021,City Development,Economic Development,Employees,Professional Subscriptions,89,26/07/2021,2108-00485,0.00,2820.00,R,Airdna Llc,Yes
Http://opendatacommunities.org/id/metropolitan-district-council/leeds,Leeds City Council,31/08/2021,Adults and Health,Public Health,Agency Payments,Public Health Commissioned Services,526,06/08/2021,2108-00486,0.00,5344.44,R,Aire Valley Surgery,No
Http://opendatacommunities.org/id/metropolitan-district-council/leeds,Leeds City Council,31/08/2021,Communities and Environment,Parks and Countryside,Supplies and Services,Other Hired And Contracted Services,265,04/08/2021,2108-00487,0.00,525.00,R,Aire Valley Tree Services Ltd,No
Http://opendatacommunities.org/id/metropolitan-district-council/leeds,Leeds City Council,31/08/2021,Communities and Environment,Parks and Countryside,Supplies and Services,Other Hired And Contracted Services,265,12/08/2021,2108-00488,0.00,1140.00,R,Aire Valley Tree Services Ltd,No
Http://opendatacommunities.org/id/metropolitan-district-council/leeds,Leeds City Council,31/08/2021,Communities and Environment,Parks and Countryside,Supplies and Services,Other Hired And Contracted Services,265,13/08/2021,2108-00489,0.00,475.00,R,Aire Valley Tree Services Ltd,No
Http://opendatacommunities.org/id/metropolitan-district-council/leeds,Leeds City Council,31/08/2021,Communities and Environment,Parks and Countryside,Supplies and Services,Other Hired And Contracted Services,265,13/08/2021,2108-00490,0.00,335.00,R,Aire Valley Tree Services Ltd,No
Http://opendatacommunities.org/id/metropolitan-district-council/leeds,Leeds City Council,31/08/2021,Adults and Health,Services For Older People - 65 And Over,Agency Payments,Residential Care Dementia,571,18/08/2021,2108-00491,0.00,49169.98,R,Aire View Residential Home,No
Http://opendatacommunities.org/id/metropolitan-district-council/leeds,Leeds City Council,31/08/2021,Adults and Health,Services For Older People - 65 And Over,Agency Payments,Residential,580,18/08/2021,2108-00492,0.00,5689.06,R,Aire View Residential Home,No
Http://opendatacommunities.org/id/metropolitan-district-council/leeds,Leeds City Council,31/08/2021,Adults and Health,Public Health,Agency Payments,Public Health Commissioned Services,526,06/08/2021,2108-00493,0.00,919.92,R,Aireborough Family Practice,No
Http://opendatacommunities.org/id/metropolitan-district-council/leeds,Leeds City Council,31/08/2021,City Development,Economic Development,Supplies and Services,Grant Related Expenditure,290,03/08/2021,2108-00494,0.00,561.00,R,Aireborough Thai Boxing Limited,No
Http://opendatacommunities.org/id/metropolitan-district-council/leeds,Leeds City Council,31/08/2021,Adults and Health,Services For Older People - 65 And Over,Agency Payments,Residential Care Dementia,571,18/08/2021,2108-00495,0.00,1518.60,R,Airedale Care Home,No
Http://opendatacommunities.org/id/metropolitan-district-council/leeds,Leeds City Council,31/08/2021,Adults and Health,Services For Older People - 65 And Over,Agency Payments,Residential,580,18/08/2021,2108-00496,0.00,22021.06,R,Airedale Care Home,No
Http://opendatacommunities.org/id/metropolitan-district-council/leeds,Leeds City Council,31/08/2021,Resources and Housing,Commercial Services,Supplies and Services,Operational Furniture And Equipment,203,25/08/2021,2108-00497,0.00,1197.00,R,AIREDALE CATERING EQUIPMENT LTD,No
Http://opendatacommunities.org/id/metropolitan-district-council/leeds,Leeds City Council,31/08/2021,Resources and Housing,Commercial Services,Supplies and Services,Operational Furniture And Equipment,203,27/08/2021,2108-00498,0.00,1735.00,R,AIREDALE CATERING EQUIPMENT LTD,No
Http://opendatacommunities.org/id/metropolitan-district-council/leeds,Leeds City Council,31/08/2021,Resources and Housing,Commercial Services,Supplies and Services,Operational Furniture And Equipment,203,27/08/2021,2108-00499,0.00,2368.00,R,AIREDALE CATERING EQUIPMENT LTD,No
Http://opendatacommunities.org/id/metropolitan-district-council/leeds,Leeds City Council,31/08/2021,Resources and Housing,Commercial Services,Premises,Fixtures & Fittings,131,27/08/2021,2108-00500,0.00,2368.00,R,AIREDALE CATERING EQUIPMENT LTD,No
Http://opendatacommunities.org/id/metropolitan-district-council/leeds,Leeds City Council,31/08/2021,City Development,Employment & Skills,Agency Payments,Contributions To Partnerships,544,26/08/2021,2108-00501,0.00,5700.55,R,Airnow Cybersecurity Limited,No
Http://opendatacommunities.org/id/metropolitan-district-council/leeds,Leeds City Council,31/08/2021,Children and Families,Social Care,Transport,Public Transport Expenses,310,05/07/2021,2108-00502,0.00,8.96,R,Airpay,Yes
Http://opendatacommunities.org/id/metropolitan-district-council/leeds,Leeds City Council,31/08/2021,Communities Housing and Environment,Strategic Housing Partnership & Support,Transport,Public Transport Expenses,310,07/07/2021,2108-00503,0.00,262.65,R,Airpay,Yes
Http://opendatacommunities.org/id/metropolitan-district-council/leeds,Leeds City Council,31/08/2021,Communities Housing and Environment,Strategic Housing Partnership & Support,Supplies and Services,Other Hired And Contracted Services,265,12/07/2021,2108-00504,0.00,5.29,R,Airpay,Yes
Http://opendatacommunities.org/id/metropolitan-district-council/leeds,Leeds City Council,31/08/2021,Communities Housing and Environment,Strategic Housing Partnership & Support,Transport,Public Transport Expenses,310,12/07/2021,2108-00505,0.00,5.62,R,Airpay,Yes
Http://opendatacommunities.org/id/metropolitan-district-council/leeds,Leeds City Council,31/08/2021,Children and Families,Social Care,Transport,Public Transport Expenses,310,13/07/2021,2108-00506,0.00,16.95,R,Airpay,Yes
Http://opendatacommunities.org/id/metropolitan-district-council/leeds,Leeds City Council,31/08/2021,Children and Families,Social Care,Transport,Public Transport Expenses,310,13/07/2021,2108-00507,0.00,14.65,R,Airpay,Yes
Http://opendatacommunities.org/id/metropolitan-district-council/leeds,Leeds City Council,31/08/2021,Communities Housing and Environment,Strategic Housing Partnership & Support,Supplies and Services,Other Hired And Contracted Services,265,14/07/2021,2108-00508,0.00,8.46,R,Airpay,Yes
Http://opendatacommunities.org/id/metropolitan-district-council/leeds,Leeds City Council,31/08/2021,Communities Housing and Environment,Strategic Housing Partnership & Support,Supplies and Services,Other Hired And Contracted Services,265,15/07/2021,2108-00509,0.00,9.04,R,Airpay,Yes
Http://opendatacommunities.org/id/metropolitan-district-council/leeds,Leeds City Council,31/08/2021,Children and Families,Social Care,Appropriations,Leaving Care Allowances,634,20/07/2021,2108-00510,0.00,11.05,R,Airpay,Yes
Http://opendatacommunities.org/id/metropolitan-district-council/leeds,Leeds City Council,31/08/2021,Children and Families,Social Care,Appropriations,Leaving Care Allowances,634,20/07/2021,2108-00511,0.00,4.85,R,Airpay,Yes
Http://opendatacommunities.org/id/metropolitan-district-council/leeds,Leeds City Council,31/08/2021,Children and Families,Social Care,Transport,Public Transport Expenses,310,20/07/2021,2108-00512,0.00,6.25,R,Airpay,Yes
Http://opendatacommunities.org/id/metropolitan-district-council/leeds,Leeds City Council,31/08/2021,Children and Families,Social Care,Transport,Public Transport Expenses,310,20/07/2021,2108-00513,0.00,6.85,R,Airpay,Yes
Http://opendatacommunities.org/id/metropolitan-district-council/leeds,Leeds City Council,31/08/2021,Children and Families,Social Care,Appropriations,Leaving Care Allowances,634,20/07/2021,2108-00514,0.00,10.25,R,Airpay,Yes
Http://opendatacommunities.org/id/metropolitan-district-council/leeds,Leeds City Council,31/08/2021,Children and Families,Social Care,Appropriations,Leaving Care Allowances,634,24/07/2021,2108-00515,0.00,14.15,R,Airpay 38028646-Amber Car,Yes
Http://opendatacommunities.org/id/metropolitan-district-council/leeds,Leeds City Council,31/08/2021,Children and Families,Social Care,Appropriations,Leaving Care Allowances,634,24/07/2021,2108-00516,0.00,15.05,R,Airpay 38033763-Amber Car,Yes
Http://opendatacommunities.org/id/metropolitan-district-council/leeds,Leeds City Council,31/08/2021,Children and Families,Social Care,Appropriations,Leaving Care Allowances,634,28/07/2021,2108-00517,0.00,14.45,R,Airpay 38089469-Amber Car,Yes
Http://opendatacommunities.org/id/metropolitan-district-council/leeds,Leeds City Council,31/08/2021,City Development,Economic Development,Supplies and Services,Grant Related Expenditure,290,10/08/2021,2108-00518,0.00,250.00,R,Airport Services Leeds Ltd,No
Http://opendatacommunities.org/id/metropolitan-district-council/leeds,Leeds City Council,31/08/2021,Communities and Environment,Community Safety,Supplies and Services,Bought In Professional Services,277,18/08/2021,2108-00519,0.00,1044.80,R,AIRWAVE SOLUTIONS LTD,No
Http://opendatacommunities.org/id/metropolitan-district-council/leeds,Leeds City Council,31/08/2021,Adults and Health,Services For Adults Under 65 Mental/Dis,Agency Payments,Fees - Level 4,520,20/08/2021,2108-00520,0.00,175.00,R,AIT Mitra Limited,No
Http://opendatacommunities.org/id/metropolitan-district-council/leeds,Leeds City Council,31/08/2021,Adults and Health,Services For Adults Under 65 Mental/Dis,Agency Payments,Fees - Level 4,520,26/08/2021,2108-00521,0.00,175.00,R,AIT Mitra Limited,No
Http://opendatacommunities.org/id/metropolitan-district-council/leeds,Leeds City Council,31/08/2021,Adults and Health,Services For Adults Under 65 Mental/Dis,Agency Payments,Fees - Level 4,520,26/08/2021,2108-00522,0.00,175.00,R,AIT Mitra Limited,No
Http://opendatacommunities.org/id/metropolitan-district-council/leeds,Leeds City Council,31/08/2021,Adults and Health,Services For Adults Under 65 Mental/Dis,Agency Payments,Fees - Level 4,520,31/08/2021,2108-00523,0.00,175.00,R,AIT Mitra Limited,No
Http://opendatacommunities.org/id/metropolitan-district-council/leeds,Leeds City Council,31/08/2021,Adults and Health,Services For Adults Under 65 Mental/Dis,Agency Payments,Fees - Level 4,520,31/08/2021,2108-00524,0.00,175.00,R,AIT Mitra Limited,No
Http://opendatacommunities.org/id/metropolitan-district-council/leeds,Leeds City Council,31/08/2021,Adults and Health,Services For Adults Under 65 Mental/Dis,Agency Payments,Fees - Level 4,520,31/08/2021,2108-00525,0.00,175.00,R,AIT Mitra Limited,No
Http://opendatacommunities.org/id/metropolitan-district-council/leeds,Leeds City Council as Accountable Body,31/08/2021,Social Services Pooled Budgets,Jcs For People With Learning Disabilitie,Agency Payments,Residential,580,18/08/2021,2108-00526,0.00,6707.12,R,AITCH care homes,No
Http://opendatacommunities.org/id/metropolitan-district-council/leeds,Leeds City Council,31/08/2021,Communities and Environment,Parks and Countryside,Supplies and Services,Operational Materials,205,25/08/2021,2108-00527,0.00,307.00,R,Aitkens Sportsturf Ltd,No
Http://opendatacommunities.org/id/metropolitan-district-council/leeds,Leeds City Council,31/08/2021,Resources and Housing,Human Resources,Employees,Occupational Health,85,16/08/2021,2108-00528,0.00,30.00,R,AJM Duvenage,No
Http://opendatacommunities.org/id/metropolitan-district-council/leeds,Leeds City Council,31/08/2021,Resources and Housing,Leeds Building Services,Supplies and Services,Operational Materials,205,10/08/2021,2108-00529,0.00,279.50,R,AJM FIXINGS & POWER TOOLS LTD,No
Http://opendatacommunities.org/id/metropolitan-district-council/leeds,Leeds City Council,31/08/2021,Resources and Housing,Leeds Building Services,Supplies and Services,Operational Materials,205,10/08/2021,2108-00530,0.00,1683.00,R,AJM FIXINGS & POWER TOOLS LTD,No
Http://opendatacommunities.org/id/metropolitan-district-council/leeds,Leeds City Council,31/08/2021,Resources and Housing,Leeds Building Services,Supplies and Services,STORES - CENTRAL AND OTHER DEPOTS,005,10/08/2021,2108-00531,0.00,563.33,R,AJM FIXINGS & POWER TOOLS LTD,No
Http://opendatacommunities.org/id/metropolitan-district-council/leeds,Leeds City Council,31/08/2021,Resources and Housing,Leeds Building Services,Supplies and Services,STORES - CENTRAL AND OTHER DEPOTS,005,10/08/2021,2108-00532,0.00,560.00,R,AJM FIXINGS & POWER TOOLS LTD,No
Http://opendatacommunities.org/id/metropolitan-district-council/leeds,Leeds City Council,31/08/2021,Resources and Housing,Leeds Building Services,Supplies and Services,STORES - CENTRAL AND OTHER DEPOTS,005,10/08/2021,2108-00533,0.00,188.50,R,AJM FIXINGS & POWER TOOLS LTD,No
Http://opendatacommunities.org/id/metropolitan-district-council/leeds,Leeds City Council,31/08/2021,Resources and Housing,Leeds Building Services,Supplies and Services,Operational Materials,205,10/08/2021,2108-00534,0.00,421.80,R,AJM FIXINGS & POWER TOOLS LTD,No
Http://opendatacommunities.org/id/metropolitan-district-council/leeds,Leeds City Council,31/08/2021,Resources and Housing,Leeds Building Services,Supplies and Services,STORES - CENTRAL AND OTHER DEPOTS,005,10/08/2021,2108-00535,0.00,4950.00,R,AJM FIXINGS & POWER TOOLS LTD,No
Http://opendatacommunities.org/id/metropolitan-district-council/leeds,Leeds City Council,31/08/2021,Resources and Housing,Leeds Building Services,Supplies and Services,STORES - CENTRAL AND OTHER DEPOTS,005,10/08/2021,2108-00536,0.00,563.00,R,AJM FIXINGS & POWER TOOLS LTD,No
Http://opendatacommunities.org/id/metropolitan-district-council/leeds,Leeds City Council,31/08/2021,Resources and Housing,Leeds Building Services,Supplies and Services,STORES - CENTRAL AND OTHER DEPOTS,005,10/08/2021,2108-00537,0.00,263.92,R,AJM FIXINGS & POWER TOOLS LTD,No
Http://opendatacommunities.org/id/metropolitan-district-council/leeds,Leeds City Council,31/08/2021,Resources and Housing,Leeds Building Services,Supplies and Services,STORES - CENTRAL AND OTHER DEPOTS,005,10/08/2021,2108-00538,0.00,432.00,R,AJM FIXINGS & POWER TOOLS LTD,No
Http://opendatacommunities.org/id/metropolitan-district-council/leeds,Leeds City Council,31/08/2021,Resources and Housing,Leeds Building Services,Supplies and Services,STORES - CENTRAL AND OTHER DEPOTS,005,12/08/2021,2108-00539,0.00,63.00,R,AJM FIXINGS & POWER TOOLS LTD,No
Http://opendatacommunities.org/id/metropolitan-district-council/leeds,Leeds City Council,31/08/2021,Resources and Housing,Leeds Building Services,Supplies and Services,Operational Furniture And Equipment,203,13/08/2021,2108-00540,0.00,39.00,R,AJM FIXINGS & POWER TOOLS LTD,No
Http://opendatacommunities.org/id/metropolitan-district-council/leeds,Leeds City Council,31/08/2021,Resources and Housing,Leeds Building Services,Supplies and Services,Operational Furniture And Equipment,203,16/08/2021,2108-00541,0.00,147.90,R,AJM FIXINGS & POWER TOOLS LTD,No
Http://opendatacommunities.org/id/metropolitan-district-council/leeds,Leeds City Council,31/08/2021,Resources and Housing,Leeds Building Services,Supplies and Services,Operational Furniture And Equipment,203,16/08/2021,2108-00542,0.00,150.07,R,AJM FIXINGS & POWER TOOLS LTD,No
Http://opendatacommunities.org/id/metropolitan-district-council/leeds,Leeds City Council,31/08/2021,Resources and Housing,Leeds Building Services,Supplies and Services,Operational Furniture And Equipment,203,16/08/2021,2108-00543,0.00,364.00,R,AJM FIXINGS & POWER TOOLS LTD,No
Http://opendatacommunities.org/id/metropolitan-district-council/leeds,Leeds City Council,31/08/2021,Resources and Housing,Leeds Building Services,Supplies and Services,Operational Furniture And Equipment,203,16/08/2021,2108-00544,0.00,134.00,R,AJM FIXINGS & POWER TOOLS LTD,No
Http://opendatacommunities.org/id/metropolitan-district-council/leeds,Leeds City Council,31/08/2021,Resources and Housing,Leeds Building Services,Premises,Cleaning Maintenance & Toiletries,127,18/08/2021,2108-00545,0.00,1530.00,R,AJM FIXINGS & POWER TOOLS LTD,No
Http://opendatacommunities.org/id/metropolitan-district-council/leeds,Leeds City Council,31/08/2021,Resources and Housing,Leeds Building Services,Supplies and Services,Operational Furniture And Equipment,203,18/08/2021,2108-00546,0.00,132.49,R,AJM FIXINGS & POWER TOOLS LTD,No
Http://opendatacommunities.org/id/metropolitan-district-council/leeds,Leeds City Council,31/08/2021,Resources and Housing,Leeds Building Services,Supplies and Services,Operational Furniture And Equipment,203,18/08/2021,2108-00547,0.00,77.49,R,AJM FIXINGS & POWER TOOLS LTD,No
Http://opendatacommunities.org/id/metropolitan-district-council/leeds,Leeds City Council,31/08/2021,Resources and Housing,Leeds Building Services,Supplies and Services,Operational Furniture And Equipment,203,18/08/2021,2108-00548,0.00,469.16,R,AJM FIXINGS & POWER TOOLS LTD,No
Http://opendatacommunities.org/id/metropolitan-district-council/leeds,Leeds City Council,31/08/2021,Resources and Housing,Leeds Building Services,Premises,Cleaning Maintenance & Toiletries,127,27/08/2021,2108-00549,0.00,18.37,R,AJM FIXINGS & POWER TOOLS LTD,No
Http://opendatacommunities.org/id/metropolitan-district-council/leeds,Leeds City Council,31/08/2021,Resources and Housing,Leeds Building Services,Supplies and Services,STORES - CENTRAL AND OTHER DEPOTS,005,27/08/2021,2108-00550,0.00,211.75,R,AJM FIXINGS & POWER TOOLS LTD,No
Http://opendatacommunities.org/id/metropolitan-district-council/leeds,Leeds City Council,31/08/2021,Resources and Housing,Leeds Building Services,Premises,Cleaning Maintenance & Toiletries,127,27/08/2021,2108-00551,0.00,56.36,R,AJM FIXINGS & POWER TOOLS LTD,No
Http://opendatacommunities.org/id/metropolitan-district-council/leeds,Leeds City Council,31/08/2021,Resources and Housing,Leeds Building Services,Supplies and Services,Operational Furniture And Equipment,203,27/08/2021,2108-00552,0.00,522.98,R,AJM FIXINGS & POWER TOOLS LTD,No
Http://opendatacommunities.org/id/metropolitan-district-council/leeds,Leeds City Council,31/08/2021,Resources and Housing,Leeds Building Services,Premises,Cleaning Maintenance & Toiletries,127,27/08/2021,2108-00553,0.00,387.45,R,AJM FIXINGS & POWER TOOLS LTD,No
Http://opendatacommunities.org/id/metropolitan-district-council/leeds,Leeds City Council,31/08/2021,Resources and Housing,Leeds Building Services,Supplies and Services,Operational Furniture And Equipment,203,27/08/2021,2108-00554,0.00,52.10,R,AJM FIXINGS & POWER TOOLS LTD,No
Http://opendatacommunities.org/id/metropolitan-district-council/leeds,Leeds City Council,31/08/2021,Resources and Housing,Leeds Building Services,Premises,Cleaning Maintenance & Toiletries,127,27/08/2021,2108-00555,0.00,703.00,R,AJM FIXINGS & POWER TOOLS LTD,No
Http://opendatacommunities.org/id/metropolitan-district-council/leeds,Leeds City Council,31/08/2021,Resources and Housing,Leeds Building Services,Supplies and Services,STORES - CENTRAL AND OTHER DEPOTS,005,27/08/2021,2108-00556,0.00,88.15,R,AJM FIXINGS & POWER TOOLS LTD,No
Http://opendatacommunities.org/id/metropolitan-district-council/leeds,Leeds City Council,31/08/2021,Resources and Housing,Leeds Building Services,Supplies and Services,Operational Furniture And Equipment,203,27/08/2021,2108-00557,0.00,100.65,R,AJM FIXINGS & POWER TOOLS LTD,No
Http://opendatacommunities.org/id/metropolitan-district-council/leeds,Leeds City Council,31/08/2021,Resources and Housing,Leeds Building Services,Supplies and Services,Operational Materials,205,27/08/2021,2108-00558,0.00,521.00,R,AJM FIXINGS & POWER TOOLS LTD,No
Http://opendatacommunities.org/id/metropolitan-district-council/leeds,Leeds City Council,31/08/2021,Resources and Housing,Leeds Building Services,Supplies and Services,STORES - CENTRAL AND OTHER DEPOTS,005,27/08/2021,2108-00559,0.00,1340.00,R,AJM FIXINGS & POWER TOOLS LTD,No
Http://opendatacommunities.org/id/metropolitan-district-council/leeds,Leeds City Council,31/08/2021,Resources and Housing,Leeds Building Services,Supplies and Services,Operational Furniture And Equipment,203,27/08/2021,2108-00560,0.00,89.98,R,AJM FIXINGS & POWER TOOLS LTD,No
Http://opendatacommunities.org/id/metropolitan-district-council/leeds,Leeds City Council,31/08/2021,Resources and Housing,Leeds Building Services,Supplies and Services,Operational Furniture And Equipment,203,27/08/2021,2108-00561,0.00,510.00,R,AJM FIXINGS & POWER TOOLS LTD,No
Http://opendatacommunities.org/id/metropolitan-district-council/leeds,Leeds City Council,31/08/2021,Resources and Housing,Leeds Building Services,Supplies and Services,Operational Furniture And Equipment,203,27/08/2021,2108-00562,0.00,285.00,R,AJM FIXINGS & POWER TOOLS LTD,No
Http://opendatacommunities.org/id/metropolitan-district-council/leeds,Leeds City Council,31/08/2021,Resources and Housing,Leeds Building Services,Supplies and Services,STORES - CENTRAL AND OTHER DEPOTS,005,27/08/2021,2108-00563,0.00,612.40,R,AJM FIXINGS & POWER TOOLS LTD,No
Http://opendatacommunities.org/id/metropolitan-district-council/leeds,Leeds City Council,31/08/2021,Resources and Housing,Leeds Building Services,Supplies and Services,STORES - CENTRAL AND OTHER DEPOTS,005,27/08/2021,2108-00564,0.00,280.00,R,AJM FIXINGS & POWER TOOLS LTD,No
Http://opendatacommunities.org/id/metropolitan-district-council/leeds,Leeds City Council,31/08/2021,Resources and Housing,Leeds Building Services,Premises,Cleaning Maintenance & Toiletries,127,27/08/2021,2108-00565,0.00,130.00,R,AJM FIXINGS & POWER TOOLS LTD,No
Http://opendatacommunities.org/id/metropolitan-district-council/leeds,Leeds City Council,31/08/2021,Resources and Housing,Leeds Building Services,Supplies and Services,Operational Furniture And Equipment,203,27/08/2021,2108-00566,0.00,224.72,R,AJM FIXINGS & POWER TOOLS LTD,No
Http://opendatacommunities.org/id/metropolitan-district-council/leeds,Leeds City Council,31/08/2021,Resources and Housing,Leeds Building Services,Premises,Cleaning Maintenance & Toiletries,127,27/08/2021,2108-00567,0.00,365.00,R,AJM FIXINGS & POWER TOOLS LTD,No
Http://opendatacommunities.org/id/metropolitan-district-council/leeds,Leeds City Council,31/08/2021,Resources and Housing,Leeds Building Services,Premises,Cleaning Maintenance & Toiletries,127,27/08/2021,2108-00568,0.00,14.49,R,AJM FIXINGS & POWER TOOLS LTD,No
Http://opendatacommunities.org/id/metropolitan-district-council/leeds,Leeds City Council,31/08/2021,Resources and Housing,Leeds Building Services,Supplies and Services,Operational Furniture And Equipment,203,27/08/2021,2108-00569,0.00,1119.48,R,AJM FIXINGS & POWER TOOLS LTD,No
Http://opendatacommunities.org/id/metropolitan-district-council/leeds,Leeds City Council,31/08/2021,Resources and Housing,Leeds Building Services,Premises,Cleaning Maintenance & Toiletries,127,27/08/2021,2108-00570,0.00,151.50,R,AJM FIXINGS & POWER TOOLS LTD,No
Http://opendatacommunities.org/id/metropolitan-district-council/leeds,Leeds City Council,31/08/2021,Resources and Housing,Leeds Building Services,Supplies and Services,Operational Furniture And Equipment,203,27/08/2021,2108-00571,0.00,96.44,R,AJM FIXINGS & POWER TOOLS LTD,No
Http://opendatacommunities.org/id/metropolitan-district-council/leeds,Leeds City Council,31/08/2021,Resources and Housing,Leeds Building Services,Supplies and Services,Operational Furniture And Equipment,203,27/08/2021,2108-00572,0.00,145.00,R,AJM FIXINGS & POWER TOOLS LTD,No
Http://opendatacommunities.org/id/metropolitan-district-council/leeds,Leeds City Council,31/08/2021,Resources and Housing,Leeds Building Services,Supplies and Services,Operational Furniture And Equipment,203,27/08/2021,2108-00573,0.00,29.99,R,AJM FIXINGS & POWER TOOLS LTD,No
Http://opendatacommunities.org/id/metropolitan-district-council/leeds,Leeds City Council,31/08/2021,City Development,Economic Development,Supplies and Services,Grant Related Expenditure,290,10/08/2021,2108-00574,0.00,250.00,R,Ajmal Mahmood,No
Http://opendatacommunities.org/id/metropolitan-district-council/leeds,Leeds City Council,31/08/2021,City Development,Libraries Arts & Heritage,Supplies and Services,Operational Furniture And Equipment,203,30/06/2021,2108-00575,0.00,45.00,R,Ajproducts.Co.Uk,Yes
Http://opendatacommunities.org/id/metropolitan-district-council/leeds,Leeds City Council,31/08/2021,City Development,Economic Development,Supplies and Services,Grant Related Expenditure,290,02/08/2021,2108-00576,0.00,2027.00,R,Aj'S Compliance And Auditing Ltd,No
Http://opendatacommunities.org/id/metropolitan-district-council/leeds,Leeds City Council,31/08/2021,Communities and Environment,Benefits Welfare and Poverty,Supplies and Services,Grant Related Expenditure,298,18/08/2021,2108-00577,0.00,500.00,R,REDACTED PERSONAL DATA,No
Http://opendatacommunities.org/id/metropolitan-district-council/leeds,Leeds City Council,31/08/2021,Resources and Housing,Sustainable Energy & Climate Change,Capital,OTHER COSTS,7,20/08/2021,2108-00578,0.00,2100.00,C,REDACTED COMMERCIAL CONFIDENTIALITY,No
Http://opendatacommunities.org/id/metropolitan-district-council/leeds,Leeds City Council,31/08/2021,City Development,Economic Development,Supplies and Services,Grant Related Expenditure,290,02/08/2021,2108-00579,0.00,500.00,R,Akmal Bilal,No
Http://opendatacommunities.org/id/metropolitan-district-council/leeds,Leeds City Council,31/08/2021,City Development,Economic Development,Supplies and Services,Grant Related Expenditure,290,11/08/2021,2108-00580,0.00,250.00,R,Akmal Bilal,No
Http://opendatacommunities.org/id/metropolitan-district-council/leeds,Leeds City Council,31/08/2021,Resources and Housing,Commercial Services,Supplies and Services,Operational Materials,205,20/08/2021,2108-00581,0.00,341.25,R,Akua Uk Ltd,No
Http://opendatacommunities.org/id/metropolitan-district-council/leeds,Leeds City Council,31/08/2021,Resources and Housing,Commercial Services,Supplies and Services,Operational Materials,205,24/08/2021,2108-00582,0.00,259.39,R,Akua Uk Ltd,No
Http://opendatacommunities.org/id/metropolitan-district-council/leeds,Leeds City Council,31/08/2021,Resources and Housing,Commercial Services,Supplies and Services,Operational Materials,205,24/08/2021,2108-00583,0.00,227.50,R,Akua Uk Ltd,No
Http://opendatacommunities.org/id/metropolitan-district-council/leeds,Leeds City Council,31/08/2021,Communities and Environment,Benefits Welfare and Poverty,Supplies and Services,Grant Related Expenditure,290,05/08/2021,2108-00584,0.00,500.00,R,REDACTED PERSONAL DATA,No
Http://opendatacommunities.org/id/metropolitan-district-council/leeds,Leeds City Council,31/08/2021,City Development,Libraries Arts & Heritage,Supplies and Services,Other Hired And Contracted Services,265,12/08/2021,2108-00585,0.00,23.33,R,ALAA Enterprises,No
Http://opendatacommunities.org/id/metropolitan-district-council/leeds,Leeds City Council,31/08/2021,Communities and Environment,Benefits Welfare and Poverty,Supplies and Services,Grant Related Expenditure,298,23/08/2021,2108-00586,0.00,500.00,R,REDACTED PERSONAL DATA,No
Http://opendatacommunities.org/id/metropolitan-district-council/leeds,Leeds City Council,31/08/2021,Resources,Democratic Services,Premises,Grounds Maintenance Work,111,06/07/2021,2108-00587,0.00,50.00,R,Alan Brown Flowers,Yes
Http://opendatacommunities.org/id/metropolitan-district-council/leeds,Leeds City Council,31/08/2021,City Development,Libraries Arts & Heritage,Supplies and Services,Operational Materials,205,09/07/2021,2108-00588,0.00,75.00,R,Alan Brown Flowers,Yes
Http://opendatacommunities.org/id/metropolitan-district-council/leeds,Leeds City Council,31/08/2021,Resources and Housing,Sustainable Energy & Climate Change,Capital,OTHER COSTS,7,04/08/2021,2108-00589,0.00,2100.00,C,REDACTED COMMERCIAL CONFIDENTIALITY,No
Http://opendatacommunities.org/id/metropolitan-district-council/leeds,Leeds City Council,31/08/2021,Communities and Environment,Benefits Welfare and Poverty,Supplies and Services,Grant Related Expenditure,290,10/08/2021,2108-00590,0.00,500.00,R,REDACTED PERSONAL DATA,No
Http://opendatacommunities.org/id/metropolitan-district-council/leeds,Leeds City Council,31/08/2021,Children and Families,Social Care,Agency Payments,Services Rendered By Other Organisations,511,06/08/2021,2108-00591,0.00,983.43,R,REDACTED PERSONAL DATA,No
Http://opendatacommunities.org/id/metropolitan-district-council/leeds,Leeds City Council,31/08/2021,Children and Families,Social Care,Agency Payments,Services Rendered By Other Organisations,511,06/08/2021,2108-00592,0.00,429.00,R,REDACTED PERSONAL DATA,No
Http://opendatacommunities.org/id/metropolitan-district-council/leeds,Leeds City Council,31/08/2021,Children and Families,Social Care,Agency Payments,Services Rendered By Other Organisations,511,06/08/2021,2108-00593,0.00,103.35,R,REDACTED PERSONAL DATA,No
Http://opendatacommunities.org/id/metropolitan-district-council/leeds,Leeds City Council,31/08/2021,City Development,Libraries Arts & Heritage,Supplies and Services,ART GALLERIES TOTAL STORES,003,20/08/2021,2108-00594,0.00,250.00,R,Alastair Laurence,No
Http://opendatacommunities.org/id/metropolitan-district-council/leeds,Leeds City Council,31/08/2021,Communities and Environment,Benefits Welfare and Poverty,Supplies and Services,Grant Related Expenditure,298,04/08/2021,2108-00595,0.00,500.00,R,REDACTED PERSONAL DATA,No
Http://opendatacommunities.org/id/metropolitan-district-council/leeds,Leeds City Council,31/08/2021,Resources and Housing,Strategic Housing Partnership & Support,Supplies and Services,Other Hired And Contracted Services,265,27/08/2021,2108-00596,0.00,969.23,R,Albert Morris,No
Http://opendatacommunities.org/id/metropolitan-district-council/leeds,Leeds City Council,31/08/2021,Communities and Environment,Benefits Welfare and Poverty,Supplies and Services,Grant Related Expenditure,298,04/08/2021,2108-00597,0.00,500.00,R,REDACTED PERSONAL DATA,No
Http://opendatacommunities.org/id/metropolitan-district-council/leeds,Leeds City Council as Accountable Body,31/08/2021,Social Services Pooled Budgets,Leeds Community Equip Store Pooled Budgt,Supplies and Services,Other Equipment,203,13/08/2021,2108-00598,0.00,85.00,R,ALBION ELECTRIC STORES LTD,No
Http://opendatacommunities.org/id/metropolitan-district-council/leeds,Leeds City Council,31/08/2021,City Development,Recreation,Supplies and Services,Operational Furniture And Equipment,203,27/08/2021,2108-00599,0.00,130.00,R,Albounce,No
Http://opendatacommunities.org/id/metropolitan-district-council/leeds,Leeds City Council,31/08/2021,Children and Families,Social Care,Premises,Cleaning Maintenance & Toiletries,127,26/07/2021,2108-00600,0.00,10.97,R,Aldi,Yes
Http://opendatacommunities.org/id/metropolitan-district-council/leeds,Leeds City Council,31/08/2021,Children and Families,Social Care,Supplies and Services,Food & Drink,231,26/07/2021,2108-00601,0.00,73.64,R,Aldi,Yes
Http://opendatacommunities.org/id/metropolitan-district-council/leeds,Leeds City Council,31/08/2021,Children and Families,Social Care,Supplies and Services,Food & Drink,231,07/07/2021,2108-00602,0.00,45.64,R,Aldi 40 779,Yes
Http://opendatacommunities.org/id/metropolitan-district-council/leeds,Leeds City Council,31/08/2021,Children and Families,Social Care,Appropriations,Leaving Care Allowances,634,28/07/2021,2108-00603,0.00,23.56,R,Aldi 40 779,Yes
Http://opendatacommunities.org/id/metropolitan-district-council/leeds,Leeds City Council,31/08/2021,Adults and Health,Provider Services,Premises,Maintenance Of Buildings,101,13/07/2021,2108-00604,0.00,4.98,R,Aldi 71 779,Yes
Http://opendatacommunities.org/id/metropolitan-district-council/leeds,Leeds City Council,31/08/2021,City Development,Highways,Supplies and Services,Food & Drink,231,20/07/2021,2108-00605,0.00,18.12,R,Aldi 71 779,Yes
Http://opendatacommunities.org/id/metropolitan-district-council/leeds,Leeds City Council,31/08/2021,Children and Families,Social Care,Supplies and Services,Food & Drink,231,08/07/2021,2108-00606,0.00,26.88,R,Aldi 779117,Yes
Http://opendatacommunities.org/id/metropolitan-district-council/leeds,Leeds City Council,31/08/2021,Children and Families,Social Care,Appropriations,Leaving Care Allowances,634,30/06/2021,2108-00607,0.00,8.78,R,Aldi 85 779,Yes
Http://opendatacommunities.org/id/metropolitan-district-council/leeds,Leeds City Council,31/08/2021,Adults and Health,Provider Services,Premises,Maintenance Of Buildings,101,13/07/2021,2108-00608,0.00,21.62,R,Aldi 88 779,Yes
Http://opendatacommunities.org/id/metropolitan-district-council/leeds,Leeds City Council,31/08/2021,Children and Families,Social Care,Appropriations,Leaving Care Allowances,634,26/07/2021,2108-00609,0.00,15.90,R,Aldi Stores,Yes
Http://opendatacommunities.org/id/metropolitan-district-council/leeds,Leeds City Council,31/08/2021,Communities and Environment,Benefits Welfare and Poverty,Supplies and Services,Grant Related Expenditure,298,24/08/2021,2108-00610,0.00,500.00,R,REDACTED PERSONAL DATA,No
Http://opendatacommunities.org/id/metropolitan-district-council/leeds,Leeds City Council,31/08/2021,Communities and Environment,Benefits Welfare and Poverty,Supplies and Services,Grant Related Expenditure,298,27/08/2021,2108-00611,0.00,500.00,R,REDACTED PERSONAL DATA,No
Http://opendatacommunities.org/id/metropolitan-district-council/leeds,Leeds City Council,31/08/2021,Communities and Environment,Benefits Welfare and Poverty,Supplies and Services,Grant Related Expenditure,298,12/08/2021,2108-00612,0.00,500.00,R,REDACTED PERSONAL DATA,No
Http://opendatacommunities.org/id/metropolitan-district-council/leeds,Leeds City Council,31/08/2021,Communities and Environment,Benefits Welfare and Poverty,Supplies and Services,Grant Related Expenditure,298,02/08/2021,2108-00613,0.00,500.00,R,REDACTED PERSONAL DATA,No
Http://opendatacommunities.org/id/metropolitan-district-council/leeds,Leeds City Council,31/08/2021,Communities and Environment,Benefits Welfare and Poverty,Supplies and Services,Grant Related Expenditure,290,12/08/2021,2108-00614,0.00,500.00,R,REDACTED PERSONAL DATA,No
Http://opendatacommunities.org/id/metropolitan-district-council/leeds,Leeds City Council,31/08/2021,Communities and Environment,Customer Access,Supplies and Services,Bought In Professional Services,277,04/08/2021,2108-00615,0.00,33.00,R,Alena Zueva,No
Http://opendatacommunities.org/id/metropolitan-district-council/leeds,Leeds City Council,31/08/2021,Communities and Environment,Customer Access,Supplies and Services,Bought In Professional Services,277,26/08/2021,2108-00616,0.00,13.50,R,Alena Zueva,No
Http://opendatacommunities.org/id/metropolitan-district-council/leeds,Leeds City Council,31/08/2021,Communities and Environment,Benefits Welfare and Poverty,Supplies and Services,Grant Related Expenditure,298,19/08/2021,2108-00617,0.00,500.00,R,REDACTED PERSONAL DATA,No
Http://opendatacommunities.org/id/metropolitan-district-council/leeds,Leeds City Council,31/08/2021,Communities and Environment,Benefits Welfare and Poverty,Supplies and Services,Grant Related Expenditure,298,27/08/2021,2108-00618,0.00,500.00,R,REDACTED PERSONAL DATA,No
Http://opendatacommunities.org/id/metropolitan-district-council/leeds,Leeds City Council,31/08/2021,Communities and Environment,Benefits Welfare and Poverty,Supplies and Services,Grant Related Expenditure,298,19/08/2021,2108-00619,0.00,500.00,R,REDACTED PERSONAL DATA,No
Http://opendatacommunities.org/id/metropolitan-district-council/leeds,Leeds City Council,31/08/2021,Resources and Housing,Commercial Services,Transport,Vehicle Spares,345,05/08/2021,2108-00620,0.00,135.00,R,ALEX WAGG,No
Http://opendatacommunities.org/id/metropolitan-district-council/leeds,Leeds City Council,31/08/2021,Resources and Housing,Commercial Services,Supplies and Services,Other Hired And Contracted Services,265,05/08/2021,2108-00621,0.00,202.50,R,ALEX WAGG,No
Http://opendatacommunities.org/id/metropolitan-district-council/leeds,Leeds City Council,31/08/2021,Resources and Housing,Commercial Services,Supplies and Services,Other Hired And Contracted Services,265,05/08/2021,2108-00622,0.00,90.00,R,ALEX WAGG,No
Http://opendatacommunities.org/id/metropolitan-district-council/leeds,Leeds City Council,31/08/2021,Resources and Housing,Commercial Services,Supplies and Services,Other Hired And Contracted Services,265,06/08/2021,2108-00623,0.00,90.00,R,ALEX WAGG,No
Http://opendatacommunities.org/id/metropolitan-district-council/leeds,Leeds City Council,31/08/2021,Resources and Housing,Commercial Services,Supplies and Services,Other Hired And Contracted Services,265,06/08/2021,2108-00624,0.00,100.00,R,ALEX WAGG,No
Http://opendatacommunities.org/id/metropolitan-district-council/leeds,Leeds City Council,31/08/2021,Resources and Housing,Commercial Services,Supplies and Services,Other Hired And Contracted Services,265,11/08/2021,2108-00625,0.00,100.00,R,ALEX WAGG,No
Http://opendatacommunities.org/id/metropolitan-district-council/leeds,Leeds City Council,31/08/2021,Resources and Housing,Commercial Services,Supplies and Services,Other Hired And Contracted Services,265,20/08/2021,2108-00626,0.00,70.00,R,ALEX WAGG,No
Http://opendatacommunities.org/id/metropolitan-district-council/leeds,Leeds City Council,31/08/2021,Resources and Housing,Commercial Services,Supplies and Services,Other Hired And Contracted Services,265,20/08/2021,2108-00627,0.00,70.00,R,ALEX WAGG,No
Http://opendatacommunities.org/id/metropolitan-district-council/leeds,Leeds City Council,31/08/2021,Resources and Housing,Commercial Services,Supplies and Services,Other Hired And Contracted Services,265,27/08/2021,2108-00628,0.00,70.00,R,ALEX WAGG,No
Http://opendatacommunities.org/id/metropolitan-district-council/leeds,Leeds City Council,31/08/2021,Resources and Housing,Commercial Services,Supplies and Services,Other Hired And Contracted Services,265,27/08/2021,2108-00629,0.00,100.00,R,ALEX WAGG,No
Http://opendatacommunities.org/id/metropolitan-district-council/leeds,Leeds City Council,31/08/2021,Resources and Housing,Commercial Services,Supplies and Services,Other Hired And Contracted Services,265,27/08/2021,2108-00630,0.00,40.00,R,ALEX WAGG,No
Http://opendatacommunities.org/id/metropolitan-district-council/leeds,Leeds City Council,31/08/2021,Resources and Housing,Commercial Services,Supplies and Services,Other Hired And Contracted Services,265,27/08/2021,2108-00631,0.00,120.00,R,ALEX WAGG,No
Http://opendatacommunities.org/id/metropolitan-district-council/leeds,Leeds City Council,31/08/2021,Resources and Housing,Commercial Services,Supplies and Services,Other Hired And Contracted Services,265,27/08/2021,2108-00632,0.00,425.00,R,ALEX WAGG,No
Http://opendatacommunities.org/id/metropolitan-district-council/leeds,Leeds City Council,31/08/2021,Resources and Housing,Commercial Services,Supplies and Services,Other Hired And Contracted Services,265,27/08/2021,2108-00633,0.00,70.00,R,ALEX WAGG,No
Http://opendatacommunities.org/id/metropolitan-district-council/leeds,Leeds City Council,31/08/2021,Communities and Environment,Benefits Welfare and Poverty,Supplies and Services,Grant Related Expenditure,290,10/08/2021,2108-00634,0.00,500.00,R,REDACTED PERSONAL DATA,No
Http://opendatacommunities.org/id/metropolitan-district-council/leeds,Leeds City Council,31/08/2021,Communities and Environment,Benefits Welfare and Poverty,Supplies and Services,Grant Related Expenditure,290,25/08/2021,2108-00635,0.00,500.00,R,REDACTED PERSONAL DATA,No
Http://opendatacommunities.org/id/metropolitan-district-council/leeds,Leeds City Council,31/08/2021,Adults and Health,Services For Older People - 65 And Over,Agency Payments,Residential Care Dementia,571,18/08/2021,2108-00636,0.00,14286.71,R,ALEXANDER RESIDENTIAL HOME,No
Http://opendatacommunities.org/id/metropolitan-district-council/leeds,Leeds City Council,31/08/2021,Adults and Health,Services For Older People - 65 And Over,Agency Payments,Residential,580,18/08/2021,2108-00637,0.00,15393.60,R,ALEXANDER RESIDENTIAL HOME,No
Http://opendatacommunities.org/id/metropolitan-district-council/leeds,Leeds City Council,31/08/2021,Adults and Health,Services For Older People Under 65 P/Dis,Agency Payments,Residential Care Dementia,571,18/08/2021,2108-00638,0.00,2094.40,R,ALEXANDER RESIDENTIAL HOME,No
Http://opendatacommunities.org/id/metropolitan-district-council/leeds,Leeds City Council,31/08/2021,Communities and Environment,Benefits Welfare and Poverty,Supplies and Services,Grant Related Expenditure,298,16/08/2021,2108-00639,0.00,500.00,R,REDACTED PERSONAL DATA,No
Http://opendatacommunities.org/id/metropolitan-district-council/leeds,Leeds City Council,31/08/2021,Children and Families,Social Care,Supplies and Services,General Amenity For Clients/Residents,285,06/08/2021,2108-00640,0.00,6.40,R,REDACTED PERSONAL DATA,No
Http://opendatacommunities.org/id/metropolitan-district-council/leeds,Leeds City Council,31/08/2021,Children and Families,Social Care,Transport,Public Transport Expenses,310,06/08/2021,2108-00641,0.00,24.40,R,REDACTED PERSONAL DATA,No
Http://opendatacommunities.org/id/metropolitan-district-council/leeds,Leeds City Council,31/08/2021,Communities and Environment,Customer Access,Supplies and Services,Bought In Professional Services,277,11/08/2021,2108-00642,0.00,36.00,R,Alexandra Costenco,No
Http://opendatacommunities.org/id/metropolitan-district-council/leeds,Leeds City Council,31/08/2021,Communities and Environment,Customer Access,Supplies and Services,Bought In Professional Services,277,11/08/2021,2108-00643,0.00,90.00,R,Alexandra Costenco,No
Http://opendatacommunities.org/id/metropolitan-district-council/leeds,Leeds City Council,31/08/2021,Communities and Environment,Customer Access,Supplies and Services,Bought In Professional Services,277,18/08/2021,2108-00644,0.00,90.00,R,Alexandra Costenco,No
Http://opendatacommunities.org/id/metropolitan-district-council/leeds,Leeds City Council,31/08/2021,Communities and Environment,Customer Access,Supplies and Services,Bought In Professional Services,277,18/08/2021,2108-00645,0.00,45.00,R,Alexandra Costenco,No
Http://opendatacommunities.org/id/metropolitan-district-council/leeds,Leeds City Council,31/08/2021,Communities and Environment,Customer Access,Supplies and Services,Bought In Professional Services,277,26/08/2021,2108-00646,0.00,36.00,R,Alexandra Costenco,No
Http://opendatacommunities.org/id/metropolitan-district-council/leeds,Leeds City Council,31/08/2021,Adults and Health,Services For Older People - 65 And Over,Agency Payments,Residential Care Dementia,571,18/08/2021,2108-00647,0.00,5646.96,R,ALEXANDRA COURT,No
Http://opendatacommunities.org/id/metropolitan-district-council/leeds,Leeds City Council,31/08/2021,Adults and Health,Services For Older People - 65 And Over,Agency Payments,Residential,580,18/08/2021,2108-00648,0.00,6138.04,R,ALEXANDRA COURT,No
Http://opendatacommunities.org/id/metropolitan-district-council/leeds,Leeds City Council,31/08/2021,Children and Families,Social Care,Appropriations,Leaving Care Allowances,634,25/08/2021,2108-00649,0.00,50.00,R,REDACTED PERSONAL DATA,No
Http://opendatacommunities.org/id/metropolitan-district-council/leeds,Leeds City Council,31/08/2021,Communities and Environment,Benefits Welfare and Poverty,Supplies and Services,Grant Related Expenditure,298,26/08/2021,2108-00650,0.00,500.00,R,REDACTED PERSONAL DATA,No
Http://opendatacommunities.org/id/metropolitan-district-council/leeds,Leeds City Council,31/08/2021,Communities and Environment,Benefits Welfare and Poverty,Supplies and Services,Grant Related Expenditure,298,05/08/2021,2108-00651,0.00,500.00,R,REDACTED PERSONAL DATA,No
Http://opendatacommunities.org/id/metropolitan-district-council/leeds,Leeds City Council,31/08/2021,Communities and Environment,Benefits Welfare and Poverty,Supplies and Services,Grant Related Expenditure,298,09/08/2021,2108-00652,0.00,500.00,R,REDACTED PERSONAL DATA,No
Http://opendatacommunities.org/id/metropolitan-district-council/leeds,Leeds City Council,31/08/2021,Children and Families,Social Care,Agency Payments,Services Rendered By Other Organisations,511,04/08/2021,2108-00653,0.00,783.90,R,REDACTED PERSONAL DATA,No
Http://opendatacommunities.org/id/metropolitan-district-council/leeds,Leeds City Council,31/08/2021,Adults and Health,Provider Services,Supplies and Services,Clothing & Uniforms,241,30/06/2021,2108-00654,0.00,91.73,R,Alexandra Website,Yes
Http://opendatacommunities.org/id/metropolitan-district-council/leeds,Leeds City Council,31/08/2021,Adults and Health,Provider Services,Supplies and Services,Clothing & Uniforms,241,07/07/2021,2108-00655,0.00,190.34,R,Alexandra Website,Yes
Http://opendatacommunities.org/id/metropolitan-district-council/leeds,Leeds City Council,31/08/2021,Adults and Health,Provider Services,Supplies and Services,Clothing & Uniforms,241,17/07/2021,2108-00656,0.00,69.93,R,Alexandra Website,Yes
Http://opendatacommunities.org/id/metropolitan-district-council/leeds,Leeds City Council,31/08/2021,Adults and Health,Provider Services,Supplies and Services,Clothing & Uniforms,241,26/07/2021,2108-00657,0.00,41.97,R,Alexandra Website,Yes
Http://opendatacommunities.org/id/metropolitan-district-council/leeds,Leeds City Council,31/08/2021,Adults and Health,Provider Services,Supplies and Services,Clothing & Uniforms,241,29/07/2021,2108-00658,0.00,34.97,R,Alexandra Website,Yes
Http://opendatacommunities.org/id/metropolitan-district-council/leeds,Leeds City Council,31/08/2021,Children and Families,Social Care,Agency Payments,Allowances,546,09/08/2021,2108-00659,0.00,50.00,R,REDACTED PERSONAL DATA,No
Http://opendatacommunities.org/id/metropolitan-district-council/leeds,Leeds City Council,31/08/2021,Resources and Housing,Leeds Building Services,Supplies and Services,Other Hired And Contracted Services,265,03/08/2021,2108-00660,0.00,1720.00,R,Alfred Bagnall & Sons (Leeds) Ltd,No
Http://opendatacommunities.org/id/metropolitan-district-council/leeds,Leeds City Council,31/08/2021,Resources and Housing,Leeds Building Services,Supplies and Services,Other Hired And Contracted Services,265,10/08/2021,2108-00661,0.00,1130.00,R,Alfred Bagnall & Sons (Leeds) Ltd,No
Http://opendatacommunities.org/id/metropolitan-district-council/leeds,Leeds City Council,31/08/2021,Resources and Housing,Leeds Building Services,Supplies and Services,Other Hired And Contracted Services,265,20/08/2021,2108-00662,0.00,750.00,R,Alfred Bagnall & Sons (Leeds) Ltd,No
Http://opendatacommunities.org/id/metropolitan-district-council/leeds,Leeds City Council,31/08/2021,Resources and Housing,Leeds Building Services,Supplies and Services,Other Hired And Contracted Services,265,27/08/2021,2108-00663,0.00,1400.00,R,Alfred Bagnall & Sons (Leeds) Ltd,No
Http://opendatacommunities.org/id/metropolitan-district-council/leeds,Leeds City Council,31/08/2021,Resources and Housing,Leeds Building Services,Supplies and Services,Other Hired And Contracted Services,265,27/08/2021,2108-00664,0.00,158.26,R,Alfred Bagnall & Sons (Leeds) Ltd,No
Http://opendatacommunities.org/id/metropolitan-district-council/leeds,Leeds City Council,31/08/2021,City Development,Economic Development,Supplies and Services,Grant Related Expenditure,290,10/08/2021,2108-00665,0.00,250.00,R,Ali Mawlood Amin,No
Http://opendatacommunities.org/id/metropolitan-district-council/leeds,Leeds City Council,31/08/2021,Communities and Environment,Customer Access,Supplies and Services,Bought In Professional Services,277,04/08/2021,2108-00666,0.00,18.00,R,Ali Pourakaberian,No
Http://opendatacommunities.org/id/metropolitan-district-council/leeds,Leeds City Council,31/08/2021,Communities and Environment,Customer Access,Supplies and Services,Bought In Professional Services,277,11/08/2021,2108-00667,0.00,18.00,R,Ali Pourakaberian,No
Http://opendatacommunities.org/id/metropolitan-district-council/leeds,Leeds City Council,31/08/2021,Communities and Environment,Customer Access,Supplies and Services,Bought In Professional Services,277,11/08/2021,2108-00668,0.00,18.00,R,Ali Pourakaberian,No
Http://opendatacommunities.org/id/metropolitan-district-council/leeds,Leeds City Council,31/08/2021,Communities and Environment,Customer Access,Supplies and Services,Bought In Professional Services,277,11/08/2021,2108-00669,0.00,9.00,R,Ali Pourakaberian,No
Http://opendatacommunities.org/id/metropolitan-district-council/leeds,Leeds City Council,31/08/2021,Communities and Environment,Customer Access,Supplies and Services,Bought In Professional Services,277,11/08/2021,2108-00670,0.00,18.00,R,Ali Pourakaberian,No
Http://opendatacommunities.org/id/metropolitan-district-council/leeds,Leeds City Council,31/08/2021,Communities and Environment,Customer Access,Supplies and Services,Bought In Professional Services,277,18/08/2021,2108-00671,0.00,21.00,R,Ali Pourakaberian,No
Http://opendatacommunities.org/id/metropolitan-district-council/leeds,Leeds City Council,31/08/2021,Communities and Environment,Customer Access,Supplies and Services,Bought In Professional Services,277,26/08/2021,2108-00672,0.00,9.00,R,Ali Pourakaberian,No
Http://opendatacommunities.org/id/metropolitan-district-council/leeds,Leeds City Council,31/08/2021,City Development,Recreation,Supplies and Services,Bought In Professional Services,277,27/08/2021,2108-00673,0.00,60.00,R,Alice M Richardson,No
Http://opendatacommunities.org/id/metropolitan-district-council/leeds,Leeds City Council,31/08/2021,City Development,Recreation,Supplies and Services,Bought In Professional Services,277,27/08/2021,2108-00674,0.00,80.00,R,Alice M Richardson,No
Http://opendatacommunities.org/id/metropolitan-district-council/leeds,Leeds City Council,31/08/2021,City Development,Recreation,Supplies and Services,Bought In Professional Services,277,27/08/2021,2108-00675,0.00,60.00,R,Alice M Richardson,No
Http://opendatacommunities.org/id/metropolitan-district-council/leeds,Leeds City Council,31/08/2021,City Development,Libraries Arts & Heritage,Supplies and Services,Bought In Professional Services,277,18/08/2021,2108-00676,0.00,2223.60,R,Alice Mary Duggan,No
Http://opendatacommunities.org/id/metropolitan-district-council/leeds,Leeds City Council,31/08/2021,Communities and Environment,Benefits Welfare and Poverty,Supplies and Services,Grant Related Expenditure,298,02/08/2021,2108-00677,0.00,500.00,R,REDACTED PERSONAL DATA,No
Http://opendatacommunities.org/id/metropolitan-district-council/leeds,Leeds City Council,31/08/2021,Communities and Environment,Benefits Welfare and Poverty,Supplies and Services,Grant Related Expenditure,298,06/08/2021,2108-00678,0.00,500.00,R,REDACTED PERSONAL DATA,No
Http://opendatacommunities.org/id/metropolitan-district-council/leeds,Leeds City Council,31/08/2021,Communities and Environment,Benefits Welfare and Poverty,Supplies and Services,Grant Related Expenditure,298,16/08/2021,2108-00679,0.00,500.00,R,REDACTED PERSONAL DATA,No
Http://opendatacommunities.org/id/metropolitan-district-council/leeds,Leeds City Council,31/08/2021,Communities and Environment,Benefits Welfare and Poverty,Supplies and Services,Grant Related Expenditure,298,17/08/2021,2108-00680,0.00,500.00,R,REDACTED PERSONAL DATA,No
Http://opendatacommunities.org/id/metropolitan-district-council/leeds,Leeds City Council,31/08/2021,Communities and Environment,Benefits Welfare and Poverty,Supplies and Services,Grant Related Expenditure,290,10/08/2021,2108-00681,0.00,500.00,R,REDACTED PERSONAL DATA,No
Http://opendatacommunities.org/id/metropolitan-district-council/leeds,Leeds City Council,31/08/2021,Strategic Landlord,Property and Contracts,Supplies and Services,Insurance Claims,248,19/08/2021,2108-00682,0.00,7099.68,R,Alison Law Solicitors,No
Http://opendatacommunities.org/id/metropolitan-district-council/leeds,Leeds City Council,31/08/2021,City Development,Recreation,External Income,Swimming Bath Charges,923,19/08/2021,2108-00683,0.00,24.95,R,REDACTED PERSONAL DATA,No
Http://opendatacommunities.org/id/metropolitan-district-council/leeds,Leeds City Council,31/08/2021,Communities and Environment,Benefits Welfare and Poverty,Supplies and Services,Grant Related Expenditure,298,06/08/2021,2108-00684,0.00,500.00,R,REDACTED PERSONAL DATA,No
Http://opendatacommunities.org/id/metropolitan-district-council/leeds,Leeds City Council,31/08/2021,Communities and Environment,Benefits Welfare and Poverty,Supplies and Services,Grant Related Expenditure,298,31/08/2021,2108-00685,0.00,500.00,R,REDACTED PERSONAL DATA,No
Http://opendatacommunities.org/id/metropolitan-district-council/leeds,Leeds City Council,31/08/2021,Children and Families,Social Care,Supplies and Services,Food & Drink,231,02/08/2021,2108-00686,0.00,6.98,R,REDACTED PERSONAL DATA,No
Http://opendatacommunities.org/id/metropolitan-district-council/leeds,Leeds City Council,31/08/2021,Children and Families,Social Care,Supplies and Services,Other Hired And Contracted Services,265,02/08/2021,2108-00687,0.00,18.50,R,REDACTED PERSONAL DATA,No
Http://opendatacommunities.org/id/metropolitan-district-council/leeds,Leeds City Council,31/08/2021,Children and Families,Social Care,Transport,Car & Motorcycle Allowances,311,02/08/2021,2108-00688,0.00,19.35,R,REDACTED PERSONAL DATA,No
Http://opendatacommunities.org/id/metropolitan-district-council/leeds,Leeds City Council,31/08/2021,Communities and Environment,Benefits Welfare and Poverty,Supplies and Services,Grant Related Expenditure,298,24/08/2021,2108-00689,0.00,500.00,R,REDACTED PERSONAL DATA,No
Http://opendatacommunities.org/id/metropolitan-district-council/leeds,Leeds City Council,31/08/2021,Children and Families,Social Care,Agency Payments,Education Fees/Bursary,565,20/08/2021,2108-00690,0.00,200.00,R,REDACTED PERSONAL DATA,No
Http://opendatacommunities.org/id/metropolitan-district-council/leeds,Leeds City Council,31/08/2021,City Development,Economic Development,Supplies and Services,Grant Related Expenditure,290,18/08/2021,2108-00691,0.00,2000.00,R,All Floors Direct Limited,No
Http://opendatacommunities.org/id/metropolitan-district-council/leeds,Leeds City Council,31/08/2021,City Development,Economic Development,Supplies and Services,Grant Related Expenditure,290,04/08/2021,2108-00692,0.00,1375.00,R,All Property Management,No
Http://opendatacommunities.org/id/metropolitan-district-council/leeds,Leeds City Council,31/08/2021,City Development,Economic Development,Supplies and Services,Grant Related Expenditure,290,03/08/2021,2108-00693,0.00,2000.00,R,All Rounder Cricket Ltd,No
Http://opendatacommunities.org/id/metropolitan-district-council/leeds,Leeds City Council,31/08/2021,Children and Families,Social Care,Agency Payments,Services Rendered By Other Organisations,511,06/08/2021,2108-00694,0.00,12117.82,R,All Stars Childcare,No
Http://opendatacommunities.org/id/metropolitan-district-council/leeds,Leeds City Council,31/08/2021,Children and Families,Social Care,Agency Payments,Services Rendered By Other Organisations,511,06/08/2021,2108-00695,0.00,949.00,R,All Stars Childcare,No
Http://opendatacommunities.org/id/metropolitan-district-council/leeds,Leeds City Council,31/08/2021,Children and Families,Social Care,Agency Payments,Services Rendered By Other Organisations,511,06/08/2021,2108-00696,0.00,103.35,R,All Stars Childcare,No
Http://opendatacommunities.org/id/metropolitan-district-council/leeds,Leeds City Council as Accountable Body,31/08/2021,Social Services Pooled Budgets,Jcs For People With Learning Disabilitie,Agency Payments,Sheltered Accommodation,569,18/08/2021,2108-00697,0.00,20359.24,R,Allerton Avenue,No
Http://opendatacommunities.org/id/metropolitan-district-council/leeds,Leeds City Council,31/08/2021,City Development,Economic Development,Supplies and Services,Grant Related Expenditure,290,03/08/2021,2108-00698,0.00,1978.00,R,Allerton Builders Leeds Limited,No
Http://opendatacommunities.org/id/metropolitan-district-council/leeds,Leeds City Council,31/08/2021,Adults and Health,Public Health,Agency Payments,Public Health Commissioned Services,526,06/08/2021,2108-00699,0.00,1836.40,R,Allerton Medical Centre,No
Http://opendatacommunities.org/id/metropolitan-district-council/leeds,Leeds City Council,31/08/2021,Adults and Health,Services For Older People - 65 And Over,Agency Payments,Nursing Care Dementia,574,18/08/2021,2108-00700,0.00,2390.08,R,ALLERTON PARK N H,No
Http://opendatacommunities.org/id/metropolitan-district-council/leeds,Leeds City Council,31/08/2021,Resources and Housing,Finance,Supplies and Services,Bank Charges,263,05/08/2021,2108-00701,0.00,165.93,R,ALLIANCE & LEICESTER COMMERCIAL BANK,No
Http://opendatacommunities.org/id/metropolitan-district-council/leeds,Leeds City Council,31/08/2021,Resources and Housing,Finance,Supplies and Services,Bank Charges,263,05/08/2021,2108-00702,0.00,100.00,R,ALLIANCE & LEICESTER COMMERCIAL BANK,No
Http://opendatacommunities.org/id/metropolitan-district-council/leeds,Leeds City Council,31/08/2021,Resources and Housing,Commercial Services,Supplies and Services,Operational Materials,205,04/08/2021,2108-00703,0.00,37.41,R,ALLIANCE DISPOSABLES LTD,No
Http://opendatacommunities.org/id/metropolitan-district-council/leeds,Leeds City Council,31/08/2021,Resources and Housing,Commercial Services,Supplies and Services,Operational Materials,205,04/08/2021,2108-00704,0.00,57.92,R,ALLIANCE DISPOSABLES LTD,No
Http://opendatacommunities.org/id/metropolitan-district-council/leeds,Leeds City Council,31/08/2021,Resources and Housing,Commercial Services,Supplies and Services,Operational Materials,205,04/08/2021,2108-00705,0.00,89.81,R,ALLIANCE DISPOSABLES LTD,No
Http://opendatacommunities.org/id/metropolitan-district-council/leeds,Leeds City Council,31/08/2021,Resources and Housing,Commercial Services,Supplies and Services,Operational Materials,205,04/08/2021,2108-00706,0.00,112.23,R,ALLIANCE DISPOSABLES LTD,No
Http://opendatacommunities.org/id/metropolitan-district-council/leeds,Leeds City Council,31/08/2021,Resources and Housing,Commercial Services,Supplies and Services,Operational Materials,205,04/08/2021,2108-00707,0.00,112.23,R,ALLIANCE DISPOSABLES LTD,No
Http://opendatacommunities.org/id/metropolitan-district-council/leeds,Leeds City Council,31/08/2021,Resources and Housing,Commercial Services,Supplies and Services,Operational Materials,205,04/08/2021,2108-00708,0.00,149.64,R,ALLIANCE DISPOSABLES LTD,No
Http://opendatacommunities.org/id/metropolitan-district-council/leeds,Leeds City Council,31/08/2021,Resources and Housing,Commercial Services,Supplies and Services,Operational Materials,205,04/08/2021,2108-00709,0.00,74.82,R,ALLIANCE DISPOSABLES LTD,No
Http://opendatacommunities.org/id/metropolitan-district-council/leeds,Leeds City Council,31/08/2021,Resources and Housing,Commercial Services,Supplies and Services,Operational Materials,205,04/08/2021,2108-00710,0.00,74.82,R,ALLIANCE DISPOSABLES LTD,No
Http://opendatacommunities.org/id/metropolitan-district-council/leeds,Leeds City Council,31/08/2021,Resources and Housing,Commercial Services,Supplies and Services,Operational Materials,205,04/08/2021,2108-00711,0.00,55.02,R,ALLIANCE DISPOSABLES LTD,No
Http://opendatacommunities.org/id/metropolitan-district-council/leeds,Leeds City Council,31/08/2021,Resources and Housing,Commercial Services,Supplies and Services,Operational Materials,205,04/08/2021,2108-00712,0.00,74.82,R,ALLIANCE DISPOSABLES LTD,No
Http://opendatacommunities.org/id/metropolitan-district-council/leeds,Leeds City Council,31/08/2021,Resources and Housing,Commercial Services,Supplies and Services,Operational Materials,205,04/08/2021,2108-00713,0.00,74.82,R,ALLIANCE DISPOSABLES LTD,No
Http://opendatacommunities.org/id/metropolitan-district-council/leeds,Leeds City Council,31/08/2021,Resources and Housing,Commercial Services,Supplies and Services,Operational Materials,205,04/08/2021,2108-00714,0.00,74.82,R,ALLIANCE DISPOSABLES LTD,No
Http://opendatacommunities.org/id/metropolitan-district-council/leeds,Leeds City Council,31/08/2021,Resources and Housing,Commercial Services,Supplies and Services,Operational Materials,205,04/08/2021,2108-00715,0.00,74.82,R,ALLIANCE DISPOSABLES LTD,No
Http://opendatacommunities.org/id/metropolitan-district-council/leeds,Leeds City Council,31/08/2021,Resources and Housing,Commercial Services,Supplies and Services,Operational Materials,205,04/08/2021,2108-00716,0.00,74.82,R,ALLIANCE DISPOSABLES LTD,No
Http://opendatacommunities.org/id/metropolitan-district-council/leeds,Leeds City Council,31/08/2021,Resources and Housing,Commercial Services,Supplies and Services,Operational Materials,205,04/08/2021,2108-00717,0.00,89.76,R,ALLIANCE DISPOSABLES LTD,No
Http://opendatacommunities.org/id/metropolitan-district-council/leeds,Leeds City Council,31/08/2021,Resources and Housing,Commercial Services,Supplies and Services,Operational Materials,205,04/08/2021,2108-00718,0.00,74.82,R,ALLIANCE DISPOSABLES LTD,No
Http://opendatacommunities.org/id/metropolitan-district-council/leeds,Leeds City Council,31/08/2021,Resources and Housing,Commercial Services,Supplies and Services,Operational Materials,205,04/08/2021,2108-00719,0.00,112.23,R,ALLIANCE DISPOSABLES LTD,No
Http://opendatacommunities.org/id/metropolitan-district-council/leeds,Leeds City Council,31/08/2021,Resources and Housing,Commercial Services,Supplies and Services,Operational Materials,205,04/08/2021,2108-00720,0.00,74.82,R,ALLIANCE DISPOSABLES LTD,No
Http://opendatacommunities.org/id/metropolitan-district-council/leeds,Leeds City Council,31/08/2021,Resources and Housing,Commercial Services,Supplies and Services,Operational Materials,205,04/08/2021,2108-00721,0.00,74.82,R,ALLIANCE DISPOSABLES LTD,No
Http://opendatacommunities.org/id/metropolitan-district-council/leeds,Leeds City Council,31/08/2021,Resources and Housing,Commercial Services,Supplies and Services,Operational Materials,205,04/08/2021,2108-00722,0.00,37.41,R,ALLIANCE DISPOSABLES LTD,No
Http://opendatacommunities.org/id/metropolitan-district-council/leeds,Leeds City Council,31/08/2021,Resources and Housing,Commercial Services,Supplies and Services,Operational Materials,205,06/08/2021,2108-00723,0.00,149.64,R,ALLIANCE DISPOSABLES LTD,No
Http://opendatacommunities.org/id/metropolitan-district-council/leeds,Leeds City Council,31/08/2021,Resources and Housing,Commercial Services,Supplies and Services,Operational Materials,205,06/08/2021,2108-00724,0.00,113.38,R,ALLIANCE DISPOSABLES LTD,No
Http://opendatacommunities.org/id/metropolitan-district-council/leeds,Leeds City Council,31/08/2021,Resources and Housing,Commercial Services,Supplies and Services,Operational Materials,205,06/08/2021,2108-00725,0.00,112.23,R,ALLIANCE DISPOSABLES LTD,No
Http://opendatacommunities.org/id/metropolitan-district-council/leeds,Leeds City Council,31/08/2021,Resources and Housing,Commercial Services,Supplies and Services,Operational Materials,205,06/08/2021,2108-00726,0.00,253.93,R,ALLIANCE DISPOSABLES LTD,No
Http://opendatacommunities.org/id/metropolitan-district-council/leeds,Leeds City Council,31/08/2021,Resources and Housing,Commercial Services,Supplies and Services,Operational Materials,205,06/08/2021,2108-00727,0.00,37.41,R,ALLIANCE DISPOSABLES LTD,No
Http://opendatacommunities.org/id/metropolitan-district-council/leeds,Leeds City Council,31/08/2021,Resources and Housing,Commercial Services,Supplies and Services,Operational Materials,205,06/08/2021,2108-00728,0.00,74.82,R,ALLIANCE DISPOSABLES LTD,No
Http://opendatacommunities.org/id/metropolitan-district-council/leeds,Leeds City Council,31/08/2021,Resources and Housing,Commercial Services,Supplies and Services,Operational Materials,205,06/08/2021,2108-00729,0.00,195.76,R,ALLIANCE DISPOSABLES LTD,No
Http://opendatacommunities.org/id/metropolitan-district-council/leeds,Leeds City Council,31/08/2021,Resources and Housing,Commercial Services,Supplies and Services,Operational Materials,205,06/08/2021,2108-00730,0.00,149.64,R,ALLIANCE DISPOSABLES LTD,No
Http://opendatacommunities.org/id/metropolitan-district-council/leeds,Leeds City Council,31/08/2021,Resources and Housing,Commercial Services,Supplies and Services,Operational Materials,205,06/08/2021,2108-00731,0.00,10.50,R,ALLIANCE DISPOSABLES LTD,No
Http://opendatacommunities.org/id/metropolitan-district-council/leeds,Leeds City Council,31/08/2021,Resources and Housing,Commercial Services,Supplies and Services,Operational Materials,205,06/08/2021,2108-00732,0.00,18.46,R,ALLIANCE DISPOSABLES LTD,No
Http://opendatacommunities.org/id/metropolitan-district-council/leeds,Leeds City Council,31/08/2021,Resources and Housing,Commercial Services,Supplies and Services,Operational Materials,205,06/08/2021,2108-00733,0.00,224.46,R,ALLIANCE DISPOSABLES LTD,No
Http://opendatacommunities.org/id/metropolitan-district-council/leeds,Leeds City Council,31/08/2021,Resources and Housing,Commercial Services,Supplies and Services,Operational Materials,205,06/08/2021,2108-00734,0.00,74.82,R,ALLIANCE DISPOSABLES LTD,No
Http://opendatacommunities.org/id/metropolitan-district-council/leeds,Leeds City Council,31/08/2021,Resources and Housing,Commercial Services,Supplies and Services,Operational Materials,205,06/08/2021,2108-00735,0.00,74.82,R,ALLIANCE DISPOSABLES LTD,No
Http://opendatacommunities.org/id/metropolitan-district-council/leeds,Leeds City Council,31/08/2021,Resources and Housing,Commercial Services,Supplies and Services,Operational Materials,205,09/08/2021,2108-00736,0.00,580.38,R,ALLIANCE DISPOSABLES LTD,No
Http://opendatacommunities.org/id/metropolitan-district-council/leeds,Leeds City Council,31/08/2021,Resources and Housing,Commercial Services,Supplies and Services,Operational Materials,205,11/08/2021,2108-00737,0.00,37.41,R,ALLIANCE DISPOSABLES LTD,No
Http://opendatacommunities.org/id/metropolitan-district-council/leeds,Leeds City Council,31/08/2021,Resources and Housing,Commercial Services,Supplies and Services,Operational Materials,205,11/08/2021,2108-00738,0.00,187.05,R,ALLIANCE DISPOSABLES LTD,No
Http://opendatacommunities.org/id/metropolitan-district-council/leeds,Leeds City Council,31/08/2021,Resources and Housing,Commercial Services,Supplies and Services,Operational Materials,205,11/08/2021,2108-00739,0.00,74.82,R,ALLIANCE DISPOSABLES LTD,No
Http://opendatacommunities.org/id/metropolitan-district-council/leeds,Leeds City Council,31/08/2021,Resources and Housing,Commercial Services,Supplies and Services,Operational Materials,205,11/08/2021,2108-00740,0.00,239.11,R,ALLIANCE DISPOSABLES LTD,No
Http://opendatacommunities.org/id/metropolitan-district-council/leeds,Leeds City Council,31/08/2021,Resources and Housing,Commercial Services,Supplies and Services,Operational Materials,205,11/08/2021,2108-00741,0.00,261.87,R,ALLIANCE DISPOSABLES LTD,No
Http://opendatacommunities.org/id/metropolitan-district-council/leeds,Leeds City Council,31/08/2021,Resources and Housing,Commercial Services,Supplies and Services,Operational Materials,205,11/08/2021,2108-00742,0.00,74.82,R,ALLIANCE DISPOSABLES LTD,No
Http://opendatacommunities.org/id/metropolitan-district-council/leeds,Leeds City Council,31/08/2021,Resources and Housing,Commercial Services,Supplies and Services,Operational Materials,205,11/08/2021,2108-00743,0.00,367.05,R,ALLIANCE DISPOSABLES LTD,No
Http://opendatacommunities.org/id/metropolitan-district-council/leeds,Leeds City Council,31/08/2021,Resources and Housing,Commercial Services,Supplies and Services,Operational Materials,205,11/08/2021,2108-00744,0.00,74.82,R,ALLIANCE DISPOSABLES LTD,No
Http://opendatacommunities.org/id/metropolitan-district-council/leeds,Leeds City Council,31/08/2021,Resources and Housing,Commercial Services,Supplies and Services,Operational Materials,205,11/08/2021,2108-00745,0.00,74.82,R,ALLIANCE DISPOSABLES LTD,No
Http://opendatacommunities.org/id/metropolitan-district-council/leeds,Leeds City Council,31/08/2021,Resources and Housing,Commercial Services,Supplies and Services,Operational Materials,205,11/08/2021,2108-00746,0.00,74.82,R,ALLIANCE DISPOSABLES LTD,No
Http://opendatacommunities.org/id/metropolitan-district-council/leeds,Leeds City Council,31/08/2021,Resources and Housing,Commercial Services,Supplies and Services,Operational Materials,205,11/08/2021,2108-00747,0.00,37.41,R,ALLIANCE DISPOSABLES LTD,No
Http://opendatacommunities.org/id/metropolitan-district-council/leeds,Leeds City Council,31/08/2021,Resources and Housing,Commercial Services,Supplies and Services,Operational Materials,205,11/08/2021,2108-00748,0.00,74.82,R,ALLIANCE DISPOSABLES LTD,No
Http://opendatacommunities.org/id/metropolitan-district-council/leeds,Leeds City Council,31/08/2021,Resources and Housing,Commercial Services,Supplies and Services,Operational Materials,205,11/08/2021,2108-00749,0.00,74.82,R,ALLIANCE DISPOSABLES LTD,No
Http://opendatacommunities.org/id/metropolitan-district-council/leeds,Leeds City Council,31/08/2021,Resources and Housing,Commercial Services,Supplies and Services,Operational Materials,205,11/08/2021,2108-00750,0.00,74.82,R,ALLIANCE DISPOSABLES LTD,No
Http://opendatacommunities.org/id/metropolitan-district-council/leeds,Leeds City Council,31/08/2021,Resources and Housing,Commercial Services,Supplies and Services,Operational Materials,205,11/08/2021,2108-00751,0.00,374.10,R,ALLIANCE DISPOSABLES LTD,No
Http://opendatacommunities.org/id/metropolitan-district-council/leeds,Leeds City Council,31/08/2021,Resources and Housing,Commercial Services,Supplies and Services,Operational Materials,205,11/08/2021,2108-00752,0.00,74.82,R,ALLIANCE DISPOSABLES LTD,No
Http://opendatacommunities.org/id/metropolitan-district-council/leeds,Leeds City Council,31/08/2021,Resources and Housing,Commercial Services,Supplies and Services,Operational Materials,205,11/08/2021,2108-00753,0.00,149.64,R,ALLIANCE DISPOSABLES LTD,No
Http://opendatacommunities.org/id/metropolitan-district-council/leeds,Leeds City Council,31/08/2021,Resources and Housing,Commercial Services,Supplies and Services,Operational Materials,205,12/08/2021,2108-00754,0.00,74.82,R,ALLIANCE DISPOSABLES LTD,No
Http://opendatacommunities.org/id/metropolitan-district-council/leeds,Leeds City Council,31/08/2021,Resources and Housing,Commercial Services,Supplies and Services,Operational Materials,205,12/08/2021,2108-00755,0.00,127.22,R,ALLIANCE DISPOSABLES LTD,No
Http://opendatacommunities.org/id/metropolitan-district-council/leeds,Leeds City Council,31/08/2021,Resources and Housing,Commercial Services,Supplies and Services,Operational Materials,205,12/08/2021,2108-00756,0.00,112.23,R,ALLIANCE DISPOSABLES LTD,No
Http://opendatacommunities.org/id/metropolitan-district-council/leeds,Leeds City Council,31/08/2021,Resources and Housing,Commercial Services,Supplies and Services,Operational Materials,205,12/08/2021,2108-00757,0.00,31.36,R,ALLIANCE DISPOSABLES LTD,No
Http://opendatacommunities.org/id/metropolitan-district-council/leeds,Leeds City Council,31/08/2021,Resources and Housing,Commercial Services,Supplies and Services,Operational Materials,205,12/08/2021,2108-00758,0.00,187.05,R,ALLIANCE DISPOSABLES LTD,No
Http://opendatacommunities.org/id/metropolitan-district-council/leeds,Leeds City Council,31/08/2021,Resources and Housing,Commercial Services,Supplies and Services,Operational Materials,205,12/08/2021,2108-00759,0.00,149.64,R,ALLIANCE DISPOSABLES LTD,No
Http://opendatacommunities.org/id/metropolitan-district-council/leeds,Leeds City Council,31/08/2021,Resources and Housing,Commercial Services,Supplies and Services,Operational Materials,205,12/08/2021,2108-00760,0.00,74.82,R,ALLIANCE DISPOSABLES LTD,No
Http://opendatacommunities.org/id/metropolitan-district-council/leeds,Leeds City Council,31/08/2021,Resources and Housing,Commercial Services,Supplies and Services,Operational Materials,205,12/08/2021,2108-00761,0.00,37.41,R,ALLIANCE DISPOSABLES LTD,No
Http://opendatacommunities.org/id/metropolitan-district-council/leeds,Leeds City Council,31/08/2021,Resources and Housing,Commercial Services,Supplies and Services,Operational Materials,205,12/08/2021,2108-00762,0.00,374.10,R,ALLIANCE DISPOSABLES LTD,No
Http://opendatacommunities.org/id/metropolitan-district-council/leeds,Leeds City Council,31/08/2021,Resources and Housing,Commercial Services,Supplies and Services,Operational Materials,205,12/08/2021,2108-00763,0.00,112.23,R,ALLIANCE DISPOSABLES LTD,No
Http://opendatacommunities.org/id/metropolitan-district-council/leeds,Leeds City Council,31/08/2021,Resources and Housing,Commercial Services,Supplies and Services,Operational Materials,205,12/08/2021,2108-00764,0.00,112.23,R,ALLIANCE DISPOSABLES LTD,No
Http://opendatacommunities.org/id/metropolitan-district-council/leeds,Leeds City Council,31/08/2021,Resources and Housing,Commercial Services,Supplies and Services,Operational Materials,205,12/08/2021,2108-00765,0.00,89.76,R,ALLIANCE DISPOSABLES LTD,No
Http://opendatacommunities.org/id/metropolitan-district-council/leeds,Leeds City Council,31/08/2021,Resources and Housing,Commercial Services,Supplies and Services,Operational Materials,205,12/08/2021,2108-00766,0.00,112.23,R,ALLIANCE DISPOSABLES LTD,No
Http://opendatacommunities.org/id/metropolitan-district-council/leeds,Leeds City Council,31/08/2021,Resources and Housing,Commercial Services,Supplies and Services,Operational Materials,205,13/08/2021,2108-00767,0.00,74.82,R,ALLIANCE DISPOSABLES LTD,No
Http://opendatacommunities.org/id/metropolitan-district-council/leeds,Leeds City Council,31/08/2021,Resources and Housing,Commercial Services,Supplies and Services,Operational Materials,205,13/08/2021,2108-00768,0.00,14.99,R,ALLIANCE DISPOSABLES LTD,No
Http://opendatacommunities.org/id/metropolitan-district-council/leeds,Leeds City Council,31/08/2021,Resources and Housing,Commercial Services,Supplies and Services,Operational Materials,205,13/08/2021,2108-00769,0.00,37.41,R,ALLIANCE DISPOSABLES LTD,No
Http://opendatacommunities.org/id/metropolitan-district-council/leeds,Leeds City Council,31/08/2021,Resources and Housing,Commercial Services,Supplies and Services,Operational Materials,205,13/08/2021,2108-00770,0.00,224.46,R,ALLIANCE DISPOSABLES LTD,No
Http://opendatacommunities.org/id/metropolitan-district-council/leeds,Leeds City Council,31/08/2021,Resources and Housing,Commercial Services,Supplies and Services,Operational Materials,205,13/08/2021,2108-00771,0.00,74.82,R,ALLIANCE DISPOSABLES LTD,No
Http://opendatacommunities.org/id/metropolitan-district-council/leeds,Leeds City Council,31/08/2021,Resources and Housing,Commercial Services,Supplies and Services,Operational Materials,205,13/08/2021,2108-00772,0.00,74.82,R,ALLIANCE DISPOSABLES LTD,No
Http://opendatacommunities.org/id/metropolitan-district-council/leeds,Leeds City Council,31/08/2021,Resources and Housing,Commercial Services,Supplies and Services,Operational Materials,205,13/08/2021,2108-00773,0.00,89.50,R,ALLIANCE DISPOSABLES LTD,No
Http://opendatacommunities.org/id/metropolitan-district-council/leeds,Leeds City Council,31/08/2021,Resources and Housing,Commercial Services,Supplies and Services,Operational Materials,205,13/08/2021,2108-00774,0.00,37.41,R,ALLIANCE DISPOSABLES LTD,No
Http://opendatacommunities.org/id/metropolitan-district-council/leeds,Leeds City Council,31/08/2021,Resources and Housing,Commercial Services,Supplies and Services,Operational Materials,205,13/08/2021,2108-00775,0.00,74.82,R,ALLIANCE DISPOSABLES LTD,No
Http://opendatacommunities.org/id/metropolitan-district-council/leeds,Leeds City Council,31/08/2021,Resources and Housing,Commercial Services,Supplies and Services,Operational Materials,205,13/08/2021,2108-00776,0.00,263.16,R,ALLIANCE DISPOSABLES LTD,No
Http://opendatacommunities.org/id/metropolitan-district-council/leeds,Leeds City Council,31/08/2021,Resources and Housing,Commercial Services,Supplies and Services,Operational Materials,205,13/08/2021,2108-00777,0.00,611.75,R,ALLIANCE DISPOSABLES LTD,No
